 Batch Number,Vendor Name,Invoice Number, Line,Line Amount,Account Description,Issue Date ,Total Amount Paid
300614G,*PREMIER VANGUARD LTD,697023,1,33.36,STATIONERY CONSUMABLES,03/07/2014,279.96
300614G,*PREMIER VANGUARD LTD,697023,2,166.8,STATIONERY CONSUMABLES,03/07/2014,
300614G,*PREMIER VANGUARD LTD,697023,3,79.8,STATIONERY CONSUMABLES,03/07/2014,
140724,THAMES WATER UTILITIES LTD====,0592996051F,1,639.07,WATER & SEWERAGE RATES,03/07/2014,639.07
140724,THAMES WATER UTILITIES LTD====,0833660263/,1,"1,158.57",WATER & SEWERAGE RATES,03/07/2014,"1,158.57"
140715,CORONA ENERGY RETAIL 4 LTD,930504141,1,6.68,GAS,03/07/2014,"13,723.13"
140715,CORONA ENERGY RETAIL 4 LTD,930504141,2,656.38,GAS,03/07/2014,
140715,CORONA ENERGY RETAIL 4 LTD,930504141,3,173.71,GAS,03/07/2014,
140715,CORONA ENERGY RETAIL 4 LTD,930504141,4,441.22,GAS,03/07/2014,
140715,CORONA ENERGY RETAIL 4 LTD,930504141,5,439.81,GAS,03/07/2014,
140715,CORONA ENERGY RETAIL 4 LTD,930504141,6,539.93,GAS,03/07/2014,
140715,CORONA ENERGY RETAIL 4 LTD,930504141,7,388.69,GAS,03/07/2014,
140715,CORONA ENERGY RETAIL 4 LTD,930504141,8,330.94,GAS,03/07/2014,
140715,CORONA ENERGY RETAIL 4 LTD,930504141,9,839.17,GAS,03/07/2014,
140715,CORONA ENERGY RETAIL 4 LTD,930504141,10,667.07,GAS,03/07/2014,
140715,CORONA ENERGY RETAIL 4 LTD,930504141,11,459.55,GAS,03/07/2014,
140715,CORONA ENERGY RETAIL 4 LTD,930504141,12,317.21,GAS,03/07/2014,
140715,CORONA ENERGY RETAIL 4 LTD,930504141,13,196.26,GAS,03/07/2014,
140715,CORONA ENERGY RETAIL 4 LTD,930504141,14,381.99,GAS,03/07/2014,
140715,CORONA ENERGY RETAIL 4 LTD,930504141,15,427.44,GAS,03/07/2014,
140715,CORONA ENERGY RETAIL 4 LTD,930504141,16,395.09,GAS,03/07/2014,
140715,CORONA ENERGY RETAIL 4 LTD,930504141,17,808.12,GAS,03/07/2014,
140715,CORONA ENERGY RETAIL 4 LTD,930504141,18,829.88,GAS,03/07/2014,
140715,CORONA ENERGY RETAIL 4 LTD,930504141,19,293.17,GAS,03/07/2014,
140715,CORONA ENERGY RETAIL 4 LTD,930504141,20,622.27,GAS,03/07/2014,
140715,CORONA ENERGY RETAIL 4 LTD,930504141,21,47.78,GAS,03/07/2014,
140715,CORONA ENERGY RETAIL 4 LTD,930504141,22,39.83,GAS,03/07/2014,
140715,CORONA ENERGY RETAIL 4 LTD,930504141,23,31.98,GAS,03/07/2014,
140715,CORONA ENERGY RETAIL 4 LTD,930504141,24,407.79,GAS,03/07/2014,
140715,CORONA ENERGY RETAIL 4 LTD,930504141,25,"1,028.83",GAS,03/07/2014,
140715,CORONA ENERGY RETAIL 4 LTD,930504141,26,579.83,GAS,03/07/2014,
140715,CORONA ENERGY RETAIL 4 LTD,930504141,27,306.84,GAS,03/07/2014,
140715,CORONA ENERGY RETAIL 4 LTD,930504141,28,464.22,GAS,03/07/2014,
140715,CORONA ENERGY RETAIL 4 LTD,930504141,29,359.25,GAS,03/07/2014,
140715,CORONA ENERGY RETAIL 4 LTD,930504141,30,199.54,GAS,03/07/2014,
140715,CORONA ENERGY RETAIL 4 LTD,930504141,31,673.06,GAS,03/07/2014,
140715,CORONA ENERGY RETAIL 4 LTD,930504141,32,369.6,GAS,03/07/2014,
140716,CORONA ENERGY RETAIL 4 LTD,930504142,1,645.45,GAS,03/07/2014,"11,265.34"
140716,CORONA ENERGY RETAIL 4 LTD,930504142,2,621.45,GAS,03/07/2014,
140716,CORONA ENERGY RETAIL 4 LTD,930504142,3,184.75,GAS,03/07/2014,
140716,CORONA ENERGY RETAIL 4 LTD,930504142,4,343.03,GAS,03/07/2014,
140716,CORONA ENERGY RETAIL 4 LTD,930504142,5,390.57,GAS,03/07/2014,
140716,CORONA ENERGY RETAIL 4 LTD,930504142,6,440.92,GAS,03/07/2014,
140716,CORONA ENERGY RETAIL 4 LTD,930504142,7,391.61,GAS,03/07/2014,
140716,CORONA ENERGY RETAIL 4 LTD,930504142,8,359.8,GAS,03/07/2014,
140716,CORONA ENERGY RETAIL 4 LTD,930504142,9,334.74,GAS,03/07/2014,
140716,CORONA ENERGY RETAIL 4 LTD,930504142,10,249.49,GAS,03/07/2014,
140716,CORONA ENERGY RETAIL 4 LTD,930504142,11,161.49,GAS,03/07/2014,
140716,CORONA ENERGY RETAIL 4 LTD,930504142,12,98.13,GAS,03/07/2014,
140716,CORONA ENERGY RETAIL 4 LTD,930504142,13,93.6,GAS,03/07/2014,
140716,CORONA ENERGY RETAIL 4 LTD,930504142,14,161.49,GAS,03/07/2014,
140716,CORONA ENERGY RETAIL 4 LTD,930504142,15,255.98,GAS,03/07/2014,
140716,CORONA ENERGY RETAIL 4 LTD,930504142,16,393.72,GAS,03/07/2014,
140716,CORONA ENERGY RETAIL 4 LTD,930504142,17,446.03,GAS,03/07/2014,
140716,CORONA ENERGY RETAIL 4 LTD,930504142,18,491.44,GAS,03/07/2014,
140716,CORONA ENERGY RETAIL 4 LTD,930504142,19,454.05,GAS,03/07/2014,
140716,CORONA ENERGY RETAIL 4 LTD,930504142,20,422.13,GAS,03/07/2014,
140716,CORONA ENERGY RETAIL 4 LTD,930504142,21,228.95,GAS,03/07/2014,
140716,CORONA ENERGY RETAIL 4 LTD,930504142,22,131.94,GAS,03/07/2014,
140716,CORONA ENERGY RETAIL 4 LTD,930504142,23,262.96,GAS,03/07/2014,
140716,CORONA ENERGY RETAIL 4 LTD,930504142,24,337.26,GAS,03/07/2014,
140716,CORONA ENERGY RETAIL 4 LTD,930504142,25,634.09,GAS,03/07/2014,
140716,CORONA ENERGY RETAIL 4 LTD,930504142,26,519.58,GAS,03/07/2014,
140716,CORONA ENERGY RETAIL 4 LTD,930504142,27,649.45,GAS,03/07/2014,
140716,CORONA ENERGY RETAIL 4 LTD,930504142,28,315.15,GAS,03/07/2014,
140716,CORONA ENERGY RETAIL 4 LTD,930504142,29,495.1,GAS,03/07/2014,
140716,CORONA ENERGY RETAIL 4 LTD,930504142,30,544.15,GAS,03/07/2014,
140716,CORONA ENERGY RETAIL 4 LTD,930504142,31,160.53,GAS,03/07/2014,
140716,CORONA ENERGY RETAIL 4 LTD,930504142,32,46.31,GAS,03/07/2014,
140717,CORONA ENERGY RETAIL 4 LTD,930504143,1,48.87,GAS,03/07/2014,"15,719.59"
140717,CORONA ENERGY RETAIL 4 LTD,930504143,2,933.4,GAS,03/07/2014,
140717,CORONA ENERGY RETAIL 4 LTD,930504143,3,43.55,GAS,03/07/2014,
140717,CORONA ENERGY RETAIL 4 LTD,930504143,4,475.18,GAS,03/07/2014,
140717,CORONA ENERGY RETAIL 4 LTD,930504143,5,388.61,GAS,03/07/2014,
140717,CORONA ENERGY RETAIL 4 LTD,930504143,6,141.27,GAS,03/07/2014,
140717,CORONA ENERGY RETAIL 4 LTD,930504143,7,386.34,GAS,03/07/2014,
140717,CORONA ENERGY RETAIL 4 LTD,930504143,8,350.38,GAS,03/07/2014,
140717,CORONA ENERGY RETAIL 4 LTD,930504143,9,27.04,GAS,03/07/2014,
140717,CORONA ENERGY RETAIL 4 LTD,930504143,10,648.83,GAS,03/07/2014,
140717,CORONA ENERGY RETAIL 4 LTD,930504143,11,385.83,GAS,03/07/2014,
140717,CORONA ENERGY RETAIL 4 LTD,930504143,12,280.8,GAS,03/07/2014,
140717,CORONA ENERGY RETAIL 4 LTD,930504143,13,248.98,GAS,03/07/2014,
140717,CORONA ENERGY RETAIL 4 LTD,930504143,14,378.24,GAS,03/07/2014,
140717,CORONA ENERGY RETAIL 4 LTD,930504143,15,483.84,GAS,03/07/2014,
140717,CORONA ENERGY RETAIL 4 LTD,930504143,16,355.56,GAS,03/07/2014,
140717,CORONA ENERGY RETAIL 4 LTD,930504143,17,495.95,GAS,03/07/2014,
140717,CORONA ENERGY RETAIL 4 LTD,930504143,18,290.57,GAS,03/07/2014,
140717,CORONA ENERGY RETAIL 4 LTD,930504143,19,496.43,GAS,03/07/2014,
140717,CORONA ENERGY RETAIL 4 LTD,930504143,20,247.64,GAS,03/07/2014,
140717,CORONA ENERGY RETAIL 4 LTD,930504143,21,601,GAS,03/07/2014,
140717,CORONA ENERGY RETAIL 4 LTD,930504143,22,364.93,GAS,03/07/2014,
140717,CORONA ENERGY RETAIL 4 LTD,930504143,23,"1,099.47",GAS,03/07/2014,
140717,CORONA ENERGY RETAIL 4 LTD,930504143,24,476.87,GAS,03/07/2014,
140717,CORONA ENERGY RETAIL 4 LTD,930504143,25,93.4,GAS,03/07/2014,
140717,CORONA ENERGY RETAIL 4 LTD,930504143,26,162.46,GAS,03/07/2014,
140717,CORONA ENERGY RETAIL 4 LTD,930504143,27,685.55,GAS,03/07/2014,
140717,CORONA ENERGY RETAIL 4 LTD,930504143,28,212.65,GAS,03/07/2014,
140717,CORONA ENERGY RETAIL 4 LTD,930504143,29,752,GAS,03/07/2014,
140717,CORONA ENERGY RETAIL 4 LTD,930504143,30,"2,067.73",GAS,03/07/2014,
140717,CORONA ENERGY RETAIL 4 LTD,930504143,31,170.37,GAS,03/07/2014,
140717,CORONA ENERGY RETAIL 4 LTD,930504143,32,764.69,GAS,03/07/2014,
140717,CORONA ENERGY RETAIL 4 LTD,930504143,33,157.06,GAS,03/07/2014,
140717,CORONA ENERGY RETAIL 4 LTD,930504143,34,887.66,GAS,03/07/2014,
140717,CORONA ENERGY RETAIL 4 LTD,930504143,35,116.44,GAS,03/07/2014,
140718,CORONA ENERGY RETAIL 4 LTD,930504144,1,362.99,GAS,03/07/2014,"15,426.94"
140718,CORONA ENERGY RETAIL 4 LTD,930504144,2,295.23,GAS,03/07/2014,
140718,CORONA ENERGY RETAIL 4 LTD,930504144,3,623.42,GAS,03/07/2014,
140718,CORONA ENERGY RETAIL 4 LTD,930504144,4,269.8,GAS,03/07/2014,
140718,CORONA ENERGY RETAIL 4 LTD,930504144,5,"1,549.86",GAS,03/07/2014,
140718,CORONA ENERGY RETAIL 4 LTD,930504144,6,324.62,GAS,03/07/2014,
140718,CORONA ENERGY RETAIL 4 LTD,930504144,7,467.56,GAS,03/07/2014,
140718,CORONA ENERGY RETAIL 4 LTD,930504144,8,340.6,GAS,03/07/2014,
140718,CORONA ENERGY RETAIL 4 LTD,930504144,9,377.7,GAS,03/07/2014,
140718,CORONA ENERGY RETAIL 4 LTD,930504144,10,289.29,GAS,03/07/2014,
140718,CORONA ENERGY RETAIL 4 LTD,930504144,11,351.36,GAS,03/07/2014,
140718,CORONA ENERGY RETAIL 4 LTD,930504144,12,261.77,GAS,03/07/2014,
140718,CORONA ENERGY RETAIL 4 LTD,930504144,13,286.91,GAS,03/07/2014,
140718,CORONA ENERGY RETAIL 4 LTD,930504144,14,673.6,GAS,03/07/2014,
140718,CORONA ENERGY RETAIL 4 LTD,930504144,15,"1,123.86",GAS,03/07/2014,
140718,CORONA ENERGY RETAIL 4 LTD,930504144,16,244.49,GAS,03/07/2014,
140718,CORONA ENERGY RETAIL 4 LTD,930504144,17,173.22,GAS,03/07/2014,
140718,CORONA ENERGY RETAIL 4 LTD,930504144,18,640.15,GAS,03/07/2014,
140718,CORONA ENERGY RETAIL 4 LTD,930504144,19,365.79,GAS,03/07/2014,
140718,CORONA ENERGY RETAIL 4 LTD,930504144,20,491.74,GAS,03/07/2014,
140718,CORONA ENERGY RETAIL 4 LTD,930504144,21,"1,832.96",GAS,03/07/2014,
140718,CORONA ENERGY RETAIL 4 LTD,930504144,22,458.24,GAS,03/07/2014,
140718,CORONA ENERGY RETAIL 4 LTD,930504144,23,118.11,GAS,03/07/2014,
140718,CORONA ENERGY RETAIL 4 LTD,930504144,24,493.92,GAS,03/07/2014,
140718,CORONA ENERGY RETAIL 4 LTD,930504144,25,450.45,GAS,03/07/2014,
140718,CORONA ENERGY RETAIL 4 LTD,930504144,26,506.38,GAS,03/07/2014,
140718,CORONA ENERGY RETAIL 4 LTD,930504144,27,9.3,GAS,03/07/2014,
140718,CORONA ENERGY RETAIL 4 LTD,930504144,28,252.23,GAS,03/07/2014,
140718,CORONA ENERGY RETAIL 4 LTD,930504144,29,534.25,GAS,03/07/2014,
140718,CORONA ENERGY RETAIL 4 LTD,930504144,30,611.59,GAS,03/07/2014,
140718,CORONA ENERGY RETAIL 4 LTD,930504144,31,498.63,GAS,03/07/2014,
140718,CORONA ENERGY RETAIL 4 LTD,930504144,32,146.92,GAS,03/07/2014,
140719,CORONA ENERGY RETAIL 4 LTD,930504145,1,310.92,GAS,03/07/2014,"6,884.19"
140719,CORONA ENERGY RETAIL 4 LTD,930504145,2,332.17,GAS,03/07/2014,
140719,CORONA ENERGY RETAIL 4 LTD,930504145,3,547.47,GAS,03/07/2014,
140719,CORONA ENERGY RETAIL 4 LTD,930504145,4,327.64,GAS,03/07/2014,
140719,CORONA ENERGY RETAIL 4 LTD,930504145,5,718.29,GAS,03/07/2014,
140719,CORONA ENERGY RETAIL 4 LTD,930504145,6,218.04,GAS,03/07/2014,
140719,CORONA ENERGY RETAIL 4 LTD,930504145,7,440.06,GAS,03/07/2014,
140719,CORONA ENERGY RETAIL 4 LTD,930504145,8,463.89,GAS,03/07/2014,
140719,CORONA ENERGY RETAIL 4 LTD,930504145,9,20.77,GAS,03/07/2014,
140719,CORONA ENERGY RETAIL 4 LTD,930504145,10,476.58,GAS,03/07/2014,
140719,CORONA ENERGY RETAIL 4 LTD,930504145,11,328.14,GAS,03/07/2014,
140719,CORONA ENERGY RETAIL 4 LTD,930504145,12,624.08,GAS,03/07/2014,
140719,CORONA ENERGY RETAIL 4 LTD,930504145,13,619.24,GAS,03/07/2014,
140719,CORONA ENERGY RETAIL 4 LTD,930504145,14,379.57,GAS,03/07/2014,
140719,CORONA ENERGY RETAIL 4 LTD,930504145,15,538.48,GAS,03/07/2014,
140719,CORONA ENERGY RETAIL 4 LTD,930504145,16,538.85,GAS,03/07/2014,
800039335,*JAMES HUNTER (OUTFITTERS) LTD,107671,1,123.58,CLOTHING,03/07/2014,499.92
800039335,*JAMES HUNTER (OUTFITTERS) LTD,107671,2,376.34,CLOTHING,03/07/2014,
800039590,*JAMES HUNTER (OUTFITTERS) LTD,107691,1,231.56,CLOTHING,03/07/2014,293.35
800039590,*JAMES HUNTER (OUTFITTERS) LTD,107691,2,61.79,CLOTHING,03/07/2014,
800039594,*JAMES HUNTER (OUTFITTERS) LTD,107695,1,293.13,CLOTHING,03/07/2014,293.13
800039599,*JAMES HUNTER (OUTFITTERS) LTD,107700,1,231.56,CLOTHING,03/07/2014,293.35
800039599,*JAMES HUNTER (OUTFITTERS) LTD,107700,2,61.79,CLOTHING,03/07/2014,
800040197,*JAMES HUNTER (OUTFITTERS) LTD,107715,1,231.56,CLOTHING,03/07/2014,293.35
800040197,*JAMES HUNTER (OUTFITTERS) LTD,107715,2,61.79,CLOTHING,03/07/2014,
800040198,*JAMES HUNTER (OUTFITTERS) LTD,107716,1,282.83,CLOTHING,03/07/2014,421.65
800040198,*JAMES HUNTER (OUTFITTERS) LTD,107716,2,138.82,CLOTHING,03/07/2014,
800040208,*JAMES HUNTER (OUTFITTERS) LTD,107726,1,289.84,CLOTHING,03/07/2014,289.84
800040210,*JAMES HUNTER (OUTFITTERS) LTD,107728,1,282.83,CLOTHING,03/07/2014,355.7
800040210,*JAMES HUNTER (OUTFITTERS) LTD,107728,2,72.87,CLOTHING,03/07/2014,
800040212,*JAMES HUNTER (OUTFITTERS) LTD,107730,1,313.42,CLOTHING,03/07/2014,313.42
800040215,*JAMES HUNTER (OUTFITTERS) LTD,107733,1,123.58,CLOTHING,03/07/2014,311.75
800040215,*JAMES HUNTER (OUTFITTERS) LTD,107733,2,188.17,CLOTHING,03/07/2014,
800040222,*JAMES HUNTER (OUTFITTERS) LTD,107740,1,231.56,CLOTHING,03/07/2014,293.35
800040222,*JAMES HUNTER (OUTFITTERS) LTD,107740,2,61.79,CLOTHING,03/07/2014,
170614E,BRITISH COMPUTER SOCIETY======,1378452,1,97.5,MAINTENANCE & SUPPORT,03/07/2014,292.5
170614E,BRITISH COMPUTER SOCIETY======,1378452,2,97.5,MAINTENANCE & SUPPORT,03/07/2014,
170614E,BRITISH COMPUTER SOCIETY======,1378452,3,97.5,MAINTENANCE & SUPPORT,03/07/2014,
300614G,ASSESSOR TRAINING LTD,1407301-LFB,1,675,PROFESSIONAL DEVELOPMENT,03/07/2014,675
140724,AFFINITY WATER,15875260O,1,689.23,WATER & SEWERAGE RATES,03/07/2014,689.23
010714F,DYSLEXIA ACTION,167505,1,"2,160.00",LEARNING SUPPORT,03/07/2014,"2,160.00"
270614C,ARKAS LIMITED=================,25393,1,776,STRATEGIC (NON CYCLICAL),03/07/2014,776
270614C,ARKAS LIMITED=================,25456,1,"2,722.00",STRATEGIC (NON CYCLICAL),03/07/2014,"2,722.00"
270614C,ARKAS LIMITED=================,25466,1,"7,210.00",STRATEGIC (NON CYCLICAL),03/07/2014,"7,210.00"
800039908,ADECCO UK LIMITED=============,26824354,1,367.29,FRS STAFF AGENCY,03/07/2014,367.29
270614C,MACE LIMITED,26915/0314347A,1,"1,334.77",STRATEGIC (NON CYCLICAL),03/07/2014,"1,334.77"
160614G,UNDERSTANDING RECRUITMENT=====,3063,1,"5,880.00",CONSULTANTS,03/07/2014,"5,880.00"
140724,THAMES WATER UTILITIES LTD====,3367365430D,1,380.22,WATER & SEWERAGE RATES,03/07/2014,380.22
190614E,HUNTERS CONTRACTS LIMITED,346405,1,561.35,OFFICE FURNITURE,03/07/2014,561.35
240614E,PCS CONSULTING SERVICES LTD===,3669,1,"2,110.00",PROF FEES-MISCELLANEOUS,03/07/2014,"2,110.00"
140722,THAMES WATER UTILITIES LTD====,38201-85478D,1,377.75,WATER & SEWERAGE RATES,03/07/2014,377.75
270614C,FOCUS & VISION TECHNOLOGY LTD,40785,1,690.96,MEDICAL EXPENSES CONTRACT,03/07/2014,690.96
270614C,FOCUS & VISION TECHNOLOGY LTD,40903,1,274.21,MEDICAL EXPENSES CONTRACT,03/07/2014,274.21
300614C,SPORTSAFE UK LTD==============,458822,1,196.59,GYM EQUIPMENT,03/07/2014,534.33
300614C,SPORTSAFE UK LTD==============,458822,2,24.36,GYM EQUIPMENT,03/07/2014,
300614C,SPORTSAFE UK LTD==============,458822,3,147.88,GYM EQUIPMENT,03/07/2014,
300614C,SPORTSAFE UK LTD==============,458822,4,7.25,GYM EQUIPMENT,03/07/2014,
300614C,SPORTSAFE UK LTD==============,458822,5,66.25,GYM EQUIPMENT,03/07/2014,
300614C,SPORTSAFE UK LTD==============,458822,6,92,GYM EQUIPMENT,03/07/2014,
300614C,SPORTSAFE UK LTD==============,458824,1,275,GYM EQUIPMENT,03/07/2014,275
300614C,SPORTSAFE UK LTD==============,458826,1,140.5,GYM EQUIPMENT,03/07/2014,454.1
300614C,SPORTSAFE UK LTD==============,458826,2,41.34,GYM EQUIPMENT,03/07/2014,
300614C,SPORTSAFE UK LTD==============,458826,3,33.92,GYM EQUIPMENT,03/07/2014,
300614C,SPORTSAFE UK LTD==============,458826,4,94.34,GYM EQUIPMENT,03/07/2014,
300614C,SPORTSAFE UK LTD==============,458826,5,49,GYM EQUIPMENT,03/07/2014,
300614C,SPORTSAFE UK LTD==============,458826,6,95,GYM EQUIPMENT,03/07/2014,
300614C,SPORTSAFE UK LTD==============,458831,1,315.72,GYM EQUIPMENT,03/07/2014,410.06
300614C,SPORTSAFE UK LTD==============,458831,2,94.34,GYM EQUIPMENT,03/07/2014,
140724,THAMES WATER UTILITIES LTD====,46264-21532F,1,434.76,WATER & SEWERAGE RATES,03/07/2014,434.76
300614G,FAHEY BUILDERS LTD============,5223,1,"9,375.00",STRATEGIC (NON CYCLICAL),03/07/2014,"9,375.00"
800039712,*GREENHAM TRADING LTD=========,5645670,1,135.5,GENERAL,03/07/2014,271
800039712,*GREENHAM TRADING LTD=========,5645670,2,135.5,GENERAL,03/07/2014,
270614C,CONTRACT CATERING CONSULTANTS=,6251,1,500,CONSULTANTS,03/07/2014,500
010714F,DISCLOSURE SCOTLAND===========,629360,1,375,CRB CHECKS,03/07/2014,375
140722,THAMES WATER UTILITIES LTD====,6848423312B,1,704.19,WATER & SEWERAGE RATES,03/07/2014,704.19
300614G,*SP SERVICES,734856,1,13.6,HYGIENE,03/07/2014,374.97
300614G,*SP SERVICES,734856,2,13.6,HYGIENE,03/07/2014,
300614G,*SP SERVICES,734856,3,13.6,HYGIENE,03/07/2014,
300614G,*SP SERVICES,734856,4,10.3,HYGIENE,03/07/2014,
300614G,*SP SERVICES,734856,5,10.3,HYGIENE,03/07/2014,
300614G,*SP SERVICES,734856,6,3.3,HYGIENE,03/07/2014,
300614G,*SP SERVICES,734856,7,3.3,HYGIENE,03/07/2014,
300614G,*SP SERVICES,734856,8,3.3,HYGIENE,03/07/2014,
300614G,*SP SERVICES,734856,9,21,HYGIENE,03/07/2014,
300614G,*SP SERVICES,734856,10,4.5,HYGIENE,03/07/2014,
300614G,*SP SERVICES,734856,11,0.45,HYGIENE,03/07/2014,
300614G,*SP SERVICES,734856,12,21,HYGIENE,03/07/2014,
300614G,*SP SERVICES,734856,13,49.5,HYGIENE,03/07/2014,
300614G,*SP SERVICES,734856,14,84.8,HYGIENE,03/07/2014,
300614G,*SP SERVICES,734856,15,16.96,HYGIENE,03/07/2014,
300614G,*SP SERVICES,734856,16,4.6,HYGIENE,03/07/2014,
300614G,*SP SERVICES,734856,17,2.3,HYGIENE,03/07/2014,
300614G,*SP SERVICES,734856,18,6.8,HYGIENE,03/07/2014,
300614G,*SP SERVICES,734856,19,3.4,HYGIENE,03/07/2014,
300614G,*SP SERVICES,734856,20,8.2,HYGIENE,03/07/2014,
300614G,*SP SERVICES,734856,21,4.1,HYGIENE,03/07/2014,
300614G,*SP SERVICES,734856,22,4.5,HYGIENE,03/07/2014,
300614G,*SP SERVICES,734856,23,9,HYGIENE,03/07/2014,
300614G,*SP SERVICES,734856,24,4,HYGIENE,03/07/2014,
300614G,*SP SERVICES,734856,25,4,HYGIENE,03/07/2014,
300614G,*SP SERVICES,734856,26,4,HYGIENE,03/07/2014,
300614G,*SP SERVICES,734856,27,4,HYGIENE,03/07/2014,
300614G,*SP SERVICES,734856,28,4,HYGIENE,03/07/2014,
300614G,*SP SERVICES,734856,29,4,HYGIENE,03/07/2014,
300614G,*SP SERVICES,734856,30,4,HYGIENE,03/07/2014,
300614G,*SP SERVICES,734856,31,5.88,HYGIENE,03/07/2014,
300614G,*SP SERVICES,734856,32,2,HYGIENE,03/07/2014,
300614G,*SP SERVICES,734856,33,2,HYGIENE,03/07/2014,
300614G,*SP SERVICES,734856,34,2,HYGIENE,03/07/2014,
300614G,*SP SERVICES,734856,35,2,HYGIENE,03/07/2014,
300614G,*SP SERVICES,734856,36,17.5,HYGIENE,03/07/2014,
300614G,*SP SERVICES,734856,37,3.18,HYGIENE,03/07/2014,
270614C,*SP SERVICES,737307/26489,1,4.5,HYGIENE,03/07/2014,395.08
270614C,*SP SERVICES,737307/26489,2,4.5,HYGIENE,03/07/2014,
270614C,*SP SERVICES,737307/26489,3,5.2,HYGIENE,03/07/2014,
270614C,*SP SERVICES,737307/26489,4,2.5,HYGIENE,03/07/2014,
270614C,*SP SERVICES,737307/26489,5,5.2,HYGIENE,03/07/2014,
270614C,*SP SERVICES,737307/26489,6,3.3,HYGIENE,03/07/2014,
270614C,*SP SERVICES,737307/26489,7,39.6,HYGIENE,03/07/2014,
270614C,*SP SERVICES,737307/26489,8,3,OPERATIONAL EQUIP-PURCHASE,03/07/2014,
270614C,*SP SERVICES,737307/26489,9,3.2,HYGIENE,03/07/2014,
270614C,*SP SERVICES,737307/26489,10,2.3,HYGIENE,03/07/2014,
270614C,*SP SERVICES,737307/26489,11,4.1,HYGIENE,03/07/2014,
270614C,*SP SERVICES,737307/26489,12,4.1,HYGIENE,03/07/2014,
270614C,*SP SERVICES,737307/26489,13,4.5,HYGIENE,03/07/2014,
270614C,*SP SERVICES,737307/26489,14,1.8,HYGIENE,03/07/2014,
270614C,*SP SERVICES,737307/26489,15,2,HYGIENE,03/07/2014,
270614C,*SP SERVICES,737307/26489,16,2.3,HYGIENE,03/07/2014,
270614C,*SP SERVICES,737307/26489,17,26,HYGIENE,03/07/2014,
270614C,*SP SERVICES,737307/26489,18,4,HYGIENE,03/07/2014,
270614C,*SP SERVICES,737307/26489,19,4.9,HYGIENE,03/07/2014,
270614C,*SP SERVICES,737307/26489,20,0.65,HYGIENE,03/07/2014,
270614C,*SP SERVICES,737307/26489,21,55.6,HYGIENE,03/07/2014,
270614C,*SP SERVICES,737307/26489,22,5.56,HYGIENE,03/07/2014,
270614C,*SP SERVICES,737307/26489,23,5.56,HYGIENE,03/07/2014,
270614C,*SP SERVICES,737307/26489,24,3.2,HYGIENE,03/07/2014,
270614C,*SP SERVICES,737307/26489,25,9.15,HYGIENE,03/07/2014,
270614C,*SP SERVICES,737307/26489,26,13.4,OPERATIONAL EQUIP-PURCHASE,03/07/2014,
270614C,*SP SERVICES,737307/26489,27,17.25,HYGIENE,03/07/2014,
270614C,*SP SERVICES,737307/26489,28,12.75,HYGIENE,03/07/2014,
270614C,*SP SERVICES,737307/26489,29,19,HYGIENE,03/07/2014,
270614C,*SP SERVICES,737307/26489,30,13.25,HYGIENE,03/07/2014,
270614C,*SP SERVICES,737307/26489,31,19,HYGIENE,03/07/2014,
270614C,*SP SERVICES,737307/26489,32,9.26,HYGIENE,03/07/2014,
270614C,*SP SERVICES,737307/26489,33,0.5,HYGIENE,03/07/2014,
270614C,*SP SERVICES,737307/26489,34,1.98,HYGIENE,03/07/2014,
270614C,*SP SERVICES,737307/26489,35,1.4,HYGIENE,03/07/2014,
270614C,*SP SERVICES,737307/26489,36,8.75,HYGIENE,03/07/2014,
270614C,*SP SERVICES,737307/26489,37,2.65,HYGIENE,03/07/2014,
270614C,*SP SERVICES,737307/26489,38,10.5,HYGIENE,03/07/2014,
270614C,*SP SERVICES,737307/26489,39,24.75,HYGIENE,03/07/2014,
270614C,*SP SERVICES,737307/26489,40,33.92,HYGIENE,03/07/2014,
270614C,TWO SERVICES LTD==============,77119,1,681.5,CATERING EQUIPMENT,03/07/2014,681.5
300614C,SHARPE PRITCHARD==============,78770,1,"15,351.69",GENERAL,03/07/2014,"15,351.69"
140722,THAMES WATER UTILITIES LTD====,8641142518E,1,303.89,WATER & SEWERAGE RATES,03/07/2014,303.89
300614C,G4S FIRE & SECURITY SYSTEMS UK,871792,1,406.57,PREMISES SECURITY,03/07/2014,406.57
140722,THAMES WATER UTILITIES LTD====,8962850520/,1,492.23,WATER & SEWERAGE RATES,03/07/2014,492.23
200614C,DRAEGER SAFETY UK LIMITED=====,90449164,1,86,PROTECTIVE EQUIPT - PARTS,03/07/2014,"1,753.30"
200614C,DRAEGER SAFETY UK LIMITED=====,90449164,2,531,PROTECTIVE EQUIPT - PARTS,03/07/2014,
200614C,DRAEGER SAFETY UK LIMITED=====,90449164,3,285.2,PROTECTIVE EQUIPT - PARTS,03/07/2014,
200614C,DRAEGER SAFETY UK LIMITED=====,90449164,4,851.1,PROTECTIVE EQUIPT - PARTS,03/07/2014,
200614C,DRAEGER SAFETY UK LIMITED=====,90449196,1,7.34,PROTECTIVE EQUIPT - PARTS,03/07/2014,"2,482.49"
200614C,DRAEGER SAFETY UK LIMITED=====,90449196,2,76,PROTECTIVE EQUIPT - PARTS,03/07/2014,
200614C,DRAEGER SAFETY UK LIMITED=====,90449196,3,50,PROTECTIVE EQUIPT - PARTS,03/07/2014,
200614C,DRAEGER SAFETY UK LIMITED=====,90449196,4,226,PROTECTIVE EQUIPT - PARTS,03/07/2014,
200614C,DRAEGER SAFETY UK LIMITED=====,90449196,5,20.4,PROTECTIVE EQUIPT - PARTS,03/07/2014,
200614C,DRAEGER SAFETY UK LIMITED=====,90449196,6,"1,423.25",PROTECTIVE EQUIPT - PARTS,03/07/2014,
200614C,DRAEGER SAFETY UK LIMITED=====,90449196,7,679.5,PROTECTIVE EQUIPT - PARTS,03/07/2014,
200614C,DRAEGER SAFETY UK LIMITED=====,90449239,1,526,PROTECTIVE EQUIPT - PARTS,03/07/2014,817.7
200614C,DRAEGER SAFETY UK LIMITED=====,90449239,2,60.2,PROTECTIVE EQUIPT - PARTS,03/07/2014,
200614C,DRAEGER SAFETY UK LIMITED=====,90449239,3,113.2,PROTECTIVE EQUIPT - PARTS,03/07/2014,
200614C,DRAEGER SAFETY UK LIMITED=====,90449239,4,118.3,REPAIR & MAINTENANCE,03/07/2014,
300614C,NORTHUMBRIAN WATER LTD========,913219320,1,973,CURRENT HYDRANT COSTS,03/07/2014,973
140722,THAMES WATER UTILITIES LTD====,95992-95181F,1,386.81,WATER & SEWERAGE RATES,03/07/2014,386.81
200614C,ASTEC SURVEYS LIMITED=========,ASL-14-169,1,395,ASBESTOS,03/07/2014,395
200614C,ASTEC SURVEYS LIMITED=========,ASL-14-170,1,175,ASBESTOS,03/07/2014,585
200614C,ASTEC SURVEYS LIMITED=========,ASL-14-170,2,175,ASBESTOS,03/07/2014,
200614C,ASTEC SURVEYS LIMITED=========,ASL-14-170,3,235,ASBESTOS,03/07/2014,
200614C,ASTEC SURVEYS LIMITED=========,ASL-14-171,1,385,ASBESTOS,03/07/2014,385
200614C,ASTEC SURVEYS LIMITED=========,ASL-14-172,1,175,ASBESTOS,03/07/2014,525
200614C,ASTEC SURVEYS LIMITED=========,ASL-14-172,2,175,ASBESTOS,03/07/2014,
200614C,ASTEC SURVEYS LIMITED=========,ASL-14-172,3,175,ASBESTOS,03/07/2014,
180614C,SURVITEC SERVICE &DISTRIBUTION,CD30786607,1,118.6,PROTECTIVE EQUIPT - PARTS,03/07/2014,270.6
180614C,SURVITEC SERVICE &DISTRIBUTION,CD30786607,2,152,PROTECTIVE EQUIPT - PARTS,03/07/2014,
010714F,E&S B DAVIS LTD,DAV/50840,1,"1,080.00",OPERATIONAL EQUIP-PURCHASE,03/07/2014,"1,080.00"
300614G,KIER BUILDING SERV ENGINEERS==,F00049333,1,"1,872.87",STRATEGIC (NON CYCLICAL),03/07/2014,"1,872.87"
300614G,KIER BUILDING SERV ENGINEERS==,F00049335,1,"2,590.31",STRATEGIC (NON CYCLICAL),03/07/2014,"2,590.31"
300614G,KIER BUILDING SERV ENGINEERS==,F00049336,1,"2,530.14",STRATEGIC (NON CYCLICAL),03/07/2014,"2,530.14"
270614C,GEE CONSTRUCTION LTD==========,G1361,1,"5,888.25",DEVELOPMENT  EXPENSES-CONTRACT,03/07/2014,"10,152.16"
270614C,GEE CONSTRUCTION LTD==========,G1361,2,"4,263.91",DEVELOPMENT  EXPENSES-CONTRACT,03/07/2014,
160614G,ROCOM,I2481298,1,921.4,STRATEGIC (NON CYCLICAL),03/07/2014,"1,335.55"
160614G,ROCOM,I2481298,2,294.6,STRATEGIC (NON CYCLICAL),03/07/2014,
160614G,ROCOM,I2481298,3,99.58,STRATEGIC (NON CYCLICAL),03/07/2014,
160614G,ROCOM,I2481298,4,19.97,STRATEGIC (NON CYCLICAL),03/07/2014,
300614G,BABCOCK CIVIL INFRASTRUCTURE,II5000389,1,"29,349.63",STRATEGIC (CYCLICAL),03/07/2014,"29,349.63"
300614G,BABCOCK CIVIL INFRASTRUCTURE,II5000511,1,"1,812.24",STRATEGIC (CYCLICAL),03/07/2014,"1,812.24"
300614C,1SPATIAL,INV-9869,1,860,PROFESSIONAL DEVELOPMENT,03/07/2014,860
140722,IMSERV,INV158024,1,284.45,ELECTRICITY,03/07/2014,568.9
140722,IMSERV,INV158024,2,56.89,ELECTRICITY,03/07/2014,
140722,IMSERV,INV158024,3,56.89,ELECTRICITY,03/07/2014,
140722,IMSERV,INV158024,4,113.78,ELECTRICITY,03/07/2014,
140722,IMSERV,INV158024,5,56.89,ELECTRICITY,03/07/2014,
270614C,E&S B DAVIS LTD,LTD/50364,1,360,OPERATIONAL EQUIP-PURCHASE,03/07/2014,360
270614C,E&S B DAVIS LTD,LTD/50823,1,540,OPERATIONAL EQUIP-PURCHASE,03/07/2014,540
270614C,E&S B DAVIS LTD,LTD/50824,1,540,OPERATIONAL EQUIP-PURCHASE,03/07/2014,540
270614C,PRIVACY & DATA PROTECTION LTD=,PDPT-DPEK1-16286,1,445,PROFESSIONAL DEVELOPMENT,03/07/2014,445
270614C,SECURITAS SECURITY SERVICES LT,S-SIN0244694,1,"261,668.77",GENERAL,03/07/2014,"261,668.77"
140722,VEOLIA WATER PROJECTS LTD=====,SI-14-0003304,1,"1,067.77",ELECTRICITY,03/07/2014,"1,067.77"
140722,*ACORN BUSINESS SUPPLIES LTD,SI000273,1,"1,480.54",GENERAL CONSUMABLES,03/07/2014,"1,480.54"
300614C,ARVAL UK LTD,VS0001024161,1,923.56,CONTRACT HIRE,03/07/2014,923.56
020714C,MOOLANDS LTD,723,1,877,STRATEGIC (NON CYCLICAL),07/07/2014,877
020714C,MOOLANDS LTD,724,1,909,STRATEGIC (NON CYCLICAL),07/07/2014,909
020714C,MOOLANDS LTD,725,1,"1,010.00",STRATEGIC (NON CYCLICAL),07/07/2014,"1,010.00"
020714C,MOOLANDS LTD,755,1,858,STRATEGIC (NON CYCLICAL),07/07/2014,858
020714C,MOOLANDS LTD,756,1,"1,025.00",STRATEGIC (NON CYCLICAL),07/07/2014,"1,025.00"
020714C,MOOLANDS LTD,757,1,855,STRATEGIC (NON CYCLICAL),07/07/2014,855
020714C,MOOLANDS LTD,758,1,919,STRATEGIC (NON CYCLICAL),07/07/2014,919
020714C,MOOLANDS LTD,759,1,"1,088.00",STRATEGIC (NON CYCLICAL),07/07/2014,"1,088.00"
020714C,MOOLANDS LTD,775,1,924,STRATEGIC (NON CYCLICAL),07/07/2014,924
020714C,MOOLANDS LTD,776,1,894,STRATEGIC (NON CYCLICAL),07/07/2014,894
020714C,MOOLANDS LTD,777,1,845,STRATEGIC (NON CYCLICAL),07/07/2014,845
020714C,MOOLANDS LTD,778,1,965,STRATEGIC (NON CYCLICAL),07/07/2014,965
020714C,MOOLANDS LTD,779,1,980,STRATEGIC (NON CYCLICAL),07/07/2014,980
020714C,MOOLANDS LTD,780,1,"1,012.00",STRATEGIC (NON CYCLICAL),07/07/2014,"1,012.00"
020714C,MOOLANDS LTD,781,1,920,STRATEGIC (NON CYCLICAL),07/07/2014,920
020714C,MOOLANDS LTD,782,1,901,STRATEGIC (NON CYCLICAL),07/07/2014,901
020714C,MOOLANDS LTD,783,1,919,STRATEGIC (NON CYCLICAL),07/07/2014,919
140730,OGILVIE FLEET LTD=============,291318,1,"2,561.62",LEASE CAR CHARGES,07/07/2014,"3,710.28"
140730,OGILVIE FLEET LTD=============,291318,2,"1,148.66",P/PAYMTS-CAR LEASG-RENTAL,07/07/2014,
140730,OGILVIE FLEET LTD=============,291318,3,-312.13,VAT CAR LEASING,07/07/2014,
140730,OGILVIE FLEET LTD=============,291318,4,312.13,LEASE CAR CHARGES,07/07/2014,
140730,OGILVIE FLEET LTD=============,291319,1,"3,946.84",LEASE CAR CHARGES,07/07/2014,"5,605.44"
140730,OGILVIE FLEET LTD=============,291319,2,"1,658.60",P/PAYMTS-CAR LEASG-RENTAL,07/07/2014,
140730,OGILVIE FLEET LTD=============,291319,3,-507.28,VAT CAR LEASING,07/07/2014,
140730,OGILVIE FLEET LTD=============,291319,4,507.28,LEASE CAR CHARGES,07/07/2014,
020714C,*SPRUE SAFETY PRODUCTS LTD====,1062116,1,"2,101.20",FIRE DETECTORS,07/07/2014,"2,101.20"
270614C,*SPRUE SAFETY PRODUCTS LTD====,1062253,1,988.8,FIRE DETECTORS,07/07/2014,988.8
270614C,*SPRUE SAFETY PRODUCTS LTD====,1062254,1,988.8,FIRE DETECTORS,07/07/2014,988.8
270614C,*SPRUE SAFETY PRODUCTS LTD====,1062261,1,988.8,FIRE DETECTORS,07/07/2014,988.8
270614C,*SPRUE SAFETY PRODUCTS LTD====,1062263,1,"1,236.00",FIRE DETECTORS,07/07/2014,"1,236.00"
270614C,*SPRUE SAFETY PRODUCTS LTD====,1062267,1,"1,760.00",FIRE DETECTORS,07/07/2014,"1,760.00"
800040211,*JAMES HUNTER (OUTFITTERS) LTD,107729,1,49.2,CLOTHING,07/07/2014,292.69
800040211,*JAMES HUNTER (OUTFITTERS) LTD,107729,2,243.49,CLOTHING,07/07/2014,
800040214,*JAMES HUNTER (OUTFITTERS) LTD,107732,1,178.7,CLOTHING,07/07/2014,289.69
800040214,*JAMES HUNTER (OUTFITTERS) LTD,107732,2,61.79,CLOTHING,07/07/2014,
800040214,*JAMES HUNTER (OUTFITTERS) LTD,107732,3,49.2,CLOTHING,07/07/2014,
140730,HYMANS ROBERTSON==============,1205396,1,"2,700.00",PENSION SERVICES,07/07/2014,"2,700.00"
010714E,SILVERSANDS LIMITED===========,120993,1,475,PURCHASES-SOFTWARE,07/07/2014,475
030714F,DYSLEXIA ACTION,166815,1,540,PROFESSIONAL DEVELOPMENT,07/07/2014,540
010714E,DYSLEXIA ACTION,168658,1,780,LEARNING SUPPORT,07/07/2014,780
020714C,BEAUMONT CONSTRUCTION SERVICES,1713A,1,"1,002.78",STRATEGIC (NON CYCLICAL),07/07/2014,"3,870.48"
020714C,BEAUMONT CONSTRUCTION SERVICES,1713A,2,"2,867.70",STRATEGIC (NON CYCLICAL),07/07/2014,
020714C,CHAIN GANG,20105,1,521.57,POSTAL SERVICES,07/07/2014,521.57
010714E,CHAIN GANG,20178,1,746.75,POSTAL SERVICES,07/07/2014,746.75
030714F,B NOKES CONTRACTS LTD,2249,1,"1,156.25",TACTICAL DAY TO DAY,07/07/2014,"1,156.25"
030714F,B NOKES CONTRACTS LTD,2250,1,345,TACTICAL DAY TO DAY,07/07/2014,345
030714F,B NOKES CONTRACTS LTD,2251,1,290.5,TACTICAL DAY TO DAY,07/07/2014,290.5
030714F,B NOKES CONTRACTS LTD,2253,1,500,SPECIAL CLEANS,07/07/2014,500
030714F,B NOKES CONTRACTS LTD,2254,1,260,TACTICAL DAY TO DAY,07/07/2014,260
020714C,ARKAS LIMITED=================,25020,1,252.72,STRATEGIC (CYCLICAL),07/07/2014,713.72
020714C,ARKAS LIMITED=================,25020,2,280,STRATEGIC (CYCLICAL),07/07/2014,
020714C,ARKAS LIMITED=================,25020,3,181,STRATEGIC (CYCLICAL),07/07/2014,
020714C,ARKAS LIMITED=================,25365,1,230.5,STRATEGIC (CYCLICAL),07/07/2014,910.95
020714C,ARKAS LIMITED=================,25365,2,197.5,TACTICAL DAY TO DAY,07/07/2014,
020714C,ARKAS LIMITED=================,25365,3,250.43,STRATEGIC (CYCLICAL),07/07/2014,
020714C,ARKAS LIMITED=================,25365,4,232.52,STRATEGIC (CYCLICAL),07/07/2014,
020714C,ARKAS LIMITED=================,25366,1,197.5,TACTICAL DAY TO DAY,07/07/2014,"1,574.31"
020714C,ARKAS LIMITED=================,25366,2,214,TACTICAL DAY TO DAY,07/07/2014,
020714C,ARKAS LIMITED=================,25366,3,866.31,TACTICAL DAY TO DAY,07/07/2014,
020714C,ARKAS LIMITED=================,25366,4,296.5,STRATEGIC (CYCLICAL),07/07/2014,
020714C,ARKAS LIMITED=================,25367,1,214,TACTICAL DAY TO DAY,07/07/2014,"1,490.51"
020714C,ARKAS LIMITED=================,25367,2,250.84,TACTICAL DAY TO DAY,07/07/2014,
020714C,ARKAS LIMITED=================,25367,3,808.42,STRATEGIC (CYCLICAL),07/07/2014,
020714C,ARKAS LIMITED=================,25367,4,217.25,STRATEGIC (CYCLICAL),07/07/2014,
020714C,ARKAS LIMITED=================,25368,1,197.5,STRATEGIC (CYCLICAL),07/07/2014,826.53
020714C,ARKAS LIMITED=================,25368,2,316.03,STRATEGIC (CYCLICAL),07/07/2014,
020714C,ARKAS LIMITED=================,25368,3,313,STRATEGIC (CYCLICAL),07/07/2014,
020714C,ARKAS LIMITED=================,25391,1,"2,173.31",STRATEGIC (CYCLICAL),07/07/2014,"3,214.34"
020714C,ARKAS LIMITED=================,25391,2,514.03,STRATEGIC (CYCLICAL),07/07/2014,
020714C,ARKAS LIMITED=================,25391,3,346,STRATEGIC (CYCLICAL),07/07/2014,
020714C,ARKAS LIMITED=================,25391,4,181,STRATEGIC (CYCLICAL),07/07/2014,
800039904,ADECCO UK LIMITED=============,26824350,1,263.76,FRS STAFF AGENCY,07/07/2014,263.76
800039905,ADECCO UK LIMITED=============,26824351,1,439.6,FRS STAFF AGENCY,07/07/2014,439.6
800040226,ADECCO UK LIMITED=============,26831590,1,269.45,FRS STAFF AGENCY,07/07/2014,269.45
800040229,ADECCO UK LIMITED=============,26831594,1,535.13,FRS STAFF AGENCY,07/07/2014,535.13
800040230,ADECCO UK LIMITED=============,26831595,1,485.43,FRS STAFF AGENCY,07/07/2014,485.43
800040282,ADECCO UK LIMITED=============,26831596,1,485.4,FRS STAFF AGENCY,07/07/2014,485.4
800040231,ADECCO UK LIMITED=============,26831597,1,349.5,FRS STAFF AGENCY,07/07/2014,349.5
800040232,ADECCO UK LIMITED=============,26831598,1,612.15,FRS STAFF AGENCY,07/07/2014,612.15
800040280,ADECCO UK LIMITED=============,26831599,1,305,FRS STAFF AGENCY,07/07/2014,305
800040233,ADECCO UK LIMITED=============,26831603,1,704.9,FRS STAFF AGENCY,07/07/2014,704.9
800040234,ADECCO UK LIMITED=============,26831604,1,966.84,FRS STAFF AGENCY,07/07/2014,966.84
800040235,ADECCO UK LIMITED=============,26831605,1,"1,204.50",FRS STAFF AGENCY,07/07/2014,"1,204.50"
800040236,ADECCO UK LIMITED=============,26831606,1,612.15,FRS STAFF AGENCY,07/07/2014,612.15
800040237,ADECCO UK LIMITED=============,26831607,1,364.68,FRS STAFF AGENCY,07/07/2014,364.68
800040238,ADECCO UK LIMITED=============,26831608,1,612.15,FRS STAFF AGENCY,07/07/2014,612.15
800040239,ADECCO UK LIMITED=============,26831609,1,"1,471.35",FRS STAFF AGENCY,07/07/2014,"1,471.35"
800040240,ADECCO UK LIMITED=============,26831610,1,263.76,FRS STAFF AGENCY,07/07/2014,263.76
800040241,ADECCO UK LIMITED=============,26831611,1,439.6,FRS STAFF AGENCY,07/07/2014,439.6
800040242,ADECCO UK LIMITED=============,26831612,1,942.2,FRS STAFF AGENCY,07/07/2014,942.2
800040243,ADECCO UK LIMITED=============,26831613,1,294.5,FRS STAFF AGENCY,07/07/2014,294.5
800040244,ADECCO UK LIMITED=============,26831614,1,879.9,FRS STAFF AGENCY,07/07/2014,879.9
800040245,ADECCO UK LIMITED=============,26831615,1,351.68,FRS STAFF AGENCY,07/07/2014,351.68
800040246,ADECCO UK LIMITED=============,26831616,1,"1,199.80",FRS STAFF AGENCY,07/07/2014,"1,199.80"
800040247,ADECCO UK LIMITED=============,26831617,1,489.72,FRS STAFF AGENCY,07/07/2014,489.72
800040248,ADECCO UK LIMITED=============,26831618,1,489.72,FRS STAFF AGENCY,07/07/2014,489.72
800040249,ADECCO UK LIMITED=============,26831619,1,612.15,FRS STAFF AGENCY,07/07/2014,612.15
800040250,ADECCO UK LIMITED=============,26831620,1,"1,270.34",FRS STAFF AGENCY,07/07/2014,"1,270.34"
800040251,ADECCO UK LIMITED=============,26831621,1,"1,559.88",FRS STAFF AGENCY,07/07/2014,"1,559.88"
800040252,ADECCO UK LIMITED=============,26831622,1,612.15,FRS STAFF AGENCY,07/07/2014,612.15
800040253,ADECCO UK LIMITED=============,26831623,1,611.8,FRS STAFF AGENCY,07/07/2014,611.8
800040254,ADECCO UK LIMITED=============,26831624,1,942.2,FRS STAFF AGENCY,07/07/2014,942.2
800040255,ADECCO UK LIMITED=============,26831625,1,"1,076.80",FRS STAFF AGENCY,07/07/2014,"1,076.80"
800040257,ADECCO UK LIMITED=============,26831627,1,271.5,FRS STAFF AGENCY,07/07/2014,271.5
800040287,ADECCO UK LIMITED=============,26831628,1,612.15,FRS STAFF AGENCY,07/07/2014,612.15
800040288,ADECCO UK LIMITED=============,26831629,1,879.9,FRS STAFF AGENCY,07/07/2014,879.9
800040289,ADECCO UK LIMITED=============,26831630,1,439.6,FRS STAFF AGENCY,07/07/2014,439.6
800040268,ADECCO UK LIMITED=============,26835596,1,993,FRS STAFF AGENCY,07/07/2014,993
800040269,ADECCO UK LIMITED=============,26835597,1,993,FRS STAFF AGENCY,07/07/2014,993
800040270,ADECCO UK LIMITED=============,26835598,1,"1,212.00",FRS STAFF AGENCY,07/07/2014,"1,212.00"
800040271,ADECCO UK LIMITED=============,26835599,1,"1,212.00",FRS STAFF AGENCY,07/07/2014,"1,212.00"
800040272,ADECCO UK LIMITED=============,26835600,1,969.6,FRS STAFF AGENCY,07/07/2014,969.6
800040265,ADECCO UK LIMITED=============,26835601,1,993.84,FRS STAFF AGENCY,07/07/2014,993.84
800040266,ADECCO UK LIMITED=============,26835602,1,756.21,FRS STAFF AGENCY,07/07/2014,756.21
800040267,ADECCO UK LIMITED=============,26835603,1,"1,013.82",FRS STAFF AGENCY,07/07/2014,"1,013.82"
800040273,ADECCO UK LIMITED=============,26835604,1,"2,293.88",PROF FEES-SOFTWARE CONSULTANTS,07/07/2014,"2,293.88"
800040274,ADECCO UK LIMITED=============,26835605,1,"2,867.35",PROF FEES-SOFTWARE CONSULTANTS,07/07/2014,"2,867.35"
800040275,ADECCO UK LIMITED=============,26835606,1,"2,867.35",PROF FEES-SOFTWARE CONSULTANTS,07/07/2014,"2,867.35"
800040276,ADECCO UK LIMITED=============,26835607,1,"2,293.88",PROF FEES-SOFTWARE CONSULTANTS,07/07/2014,"2,293.88"
800040277,ADECCO UK LIMITED=============,26835608,1,700.2,FRS STAFF AGENCY,07/07/2014,700.2
800040278,ADECCO UK LIMITED=============,26835609,1,466.8,FRS STAFF AGENCY,07/07/2014,466.8
800040279,ADECCO UK LIMITED=============,26835610,1,"1,120.32",FRS STAFF AGENCY,07/07/2014,"1,120.32"
800040262,ADECCO UK LIMITED=============,26835611,1,"1,497.93",FRS STAFF AGENCY,07/07/2014,"1,497.93"
800040263,ADECCO UK LIMITED=============,26835612,1,921.8,FRS STAFF AGENCY,07/07/2014,921.8
800040264,ADECCO UK LIMITED=============,26835613,1,"1,340.80",FRS STAFF AGENCY,07/07/2014,"1,340.80"
020714C,CARPETS & FLOOR COVERS DIRECT=,2869,1,"1,786.00",FIXTURES & FITTINGS,07/07/2014,"1,786.00"
020714C,NWFS==========================,30209,1,858,PROFESSIONAL DEVELOPMENT,07/07/2014,858
200614C,COMPUTACENTRE================,3880168563,1,272.04,ACQUISITIONS,07/07/2014,272.04
020714C,FOCUS & VISION TECHNOLOGY LTD,41046,1,684.72,MEDICAL EXPENSES CONTRACT,07/07/2014,684.72
020714C,SPORTSAFE UK LTD==============,459061,1,295,GYM EQUIPMENT,07/07/2014,295
140730,L B OF MERTON=================,65511591*,1,"3,034.40",PROPERTY RATES,07/07/2014,"3,034.40"
140725,BRITISH GAS BUSINESS==========,6797205141,1,443.86,ELECTRICITY,07/07/2014,"13,110.15"
140725,BRITISH GAS BUSINESS==========,6797205141,2,364.26,ELECTRICITY,07/07/2014,
140725,BRITISH GAS BUSINESS==========,6797205141,3,532.42,ELECTRICITY,07/07/2014,
140725,BRITISH GAS BUSINESS==========,6797205141,4,602.47,ELECTRICITY,07/07/2014,
140725,BRITISH GAS BUSINESS==========,6797205141,5,630.24,ELECTRICITY,07/07/2014,
140725,BRITISH GAS BUSINESS==========,6797205141,6,469.03,ELECTRICITY,07/07/2014,
140725,BRITISH GAS BUSINESS==========,6797205141,7,607.99,ELECTRICITY,07/07/2014,
140725,BRITISH GAS BUSINESS==========,6797205141,8,153.77,ELECTRICITY,07/07/2014,
140725,BRITISH GAS BUSINESS==========,6797205141,9,332.06,ELECTRICITY,07/07/2014,
140725,BRITISH GAS BUSINESS==========,6797205141,10,579.17,ELECTRICITY,07/07/2014,
140725,BRITISH GAS BUSINESS==========,6797205141,11,254.08,ELECTRICITY,07/07/2014,
140725,BRITISH GAS BUSINESS==========,6797205141,12,189.05,ELECTRICITY,07/07/2014,
140725,BRITISH GAS BUSINESS==========,6797205141,13,425.08,ELECTRICITY,07/07/2014,
140725,BRITISH GAS BUSINESS==========,6797205141,14,706.96,ELECTRICITY,07/07/2014,
140725,BRITISH GAS BUSINESS==========,6797205141,15,504.07,ELECTRICITY,07/07/2014,
140725,BRITISH GAS BUSINESS==========,6797205141,16,355.66,ELECTRICITY,07/07/2014,
140725,BRITISH GAS BUSINESS==========,6797205141,17,159.19,ELECTRICITY,07/07/2014,
140725,BRITISH GAS BUSINESS==========,6797205141,18,299.12,ELECTRICITY,07/07/2014,
140725,BRITISH GAS BUSINESS==========,6797205141,19,59,ELECTRICITY,07/07/2014,
140725,BRITISH GAS BUSINESS==========,6797205141,20,48.45,ELECTRICITY,07/07/2014,
140725,BRITISH GAS BUSINESS==========,6797205141,21,37.78,ELECTRICITY,07/07/2014,
140725,BRITISH GAS BUSINESS==========,6797205141,22,58.15,ELECTRICITY,07/07/2014,
140725,BRITISH GAS BUSINESS==========,6797205141,23,194.79,ELECTRICITY,07/07/2014,
140725,BRITISH GAS BUSINESS==========,6797205141,24,20.35,ELECTRICITY,07/07/2014,
140725,BRITISH GAS BUSINESS==========,6797205141,25,13.21,ELECTRICITY,07/07/2014,
140725,BRITISH GAS BUSINESS==========,6797205141,26,94.48,ELECTRICITY,07/07/2014,
140725,BRITISH GAS BUSINESS==========,6797205141,27,16.83,ELECTRICITY,07/07/2014,
140725,BRITISH GAS BUSINESS==========,6797205141,28,569.93,ELECTRICITY,07/07/2014,
140725,BRITISH GAS BUSINESS==========,6797205141,29,938.63,ELECTRICITY,07/07/2014,
140725,BRITISH GAS BUSINESS==========,6797205141,30,836.84,ELECTRICITY,07/07/2014,
140725,BRITISH GAS BUSINESS==========,6797205141,31,445.6,ELECTRICITY,07/07/2014,
140725,BRITISH GAS BUSINESS==========,6797205141,32,327.54,ELECTRICITY,07/07/2014,
140725,BRITISH GAS BUSINESS==========,6797205141,33,77.42,ELECTRICITY,07/07/2014,
140725,BRITISH GAS BUSINESS==========,6797205141,34,229.83,ELECTRICITY,07/07/2014,
140725,BRITISH GAS BUSINESS==========,6797205141,35,293.33,ELECTRICITY,07/07/2014,
140725,BRITISH GAS BUSINESS==========,6797205141,36,735.33,ELECTRICITY,07/07/2014,
140725,BRITISH GAS BUSINESS==========,6797205141,37,504.18,ELECTRICITY,07/07/2014,
140726,BRITISH GAS BUSINESS==========,6797205142,1,19.89,ELECTRICITY,07/07/2014,"12,916.99"
140726,BRITISH GAS BUSINESS==========,6797205142,2,384.05,ELECTRICITY,07/07/2014,
140726,BRITISH GAS BUSINESS==========,6797205142,3,39.29,ELECTRICITY,07/07/2014,
140726,BRITISH GAS BUSINESS==========,6797205142,4,384.17,ELECTRICITY,07/07/2014,
140726,BRITISH GAS BUSINESS==========,6797205142,5,372.36,ELECTRICITY,07/07/2014,
140726,BRITISH GAS BUSINESS==========,6797205142,6,30.88,ELECTRICITY,07/07/2014,
140726,BRITISH GAS BUSINESS==========,6797205142,7,705.36,ELECTRICITY,07/07/2014,
140726,BRITISH GAS BUSINESS==========,6797205142,8,19.06,ELECTRICITY,07/07/2014,
140726,BRITISH GAS BUSINESS==========,6797205142,9,89.41,ELECTRICITY,07/07/2014,
140726,BRITISH GAS BUSINESS==========,6797205142,10,554.15,ELECTRICITY,07/07/2014,
140726,BRITISH GAS BUSINESS==========,6797205142,11,14.52,ELECTRICITY,07/07/2014,
140726,BRITISH GAS BUSINESS==========,6797205142,12,365.81,ELECTRICITY,07/07/2014,
140726,BRITISH GAS BUSINESS==========,6797205142,13,568.5,ELECTRICITY,07/07/2014,
140726,BRITISH GAS BUSINESS==========,6797205142,14,469.52,ELECTRICITY,07/07/2014,
140726,BRITISH GAS BUSINESS==========,6797205142,15,124.86,ELECTRICITY,07/07/2014,
140726,BRITISH GAS BUSINESS==========,6797205142,16,37.13,ELECTRICITY,07/07/2014,
140726,BRITISH GAS BUSINESS==========,6797205142,17,251.03,ELECTRICITY,07/07/2014,
140726,BRITISH GAS BUSINESS==========,6797205142,18,"1,641.99",ELECTRICITY,07/07/2014,
140726,BRITISH GAS BUSINESS==========,6797205142,19,28.12,ELECTRICITY,07/07/2014,
140726,BRITISH GAS BUSINESS==========,6797205142,20,468.49,ELECTRICITY,07/07/2014,
140726,BRITISH GAS BUSINESS==========,6797205142,21,83.51,ELECTRICITY,07/07/2014,
140726,BRITISH GAS BUSINESS==========,6797205142,22,333.27,ELECTRICITY,07/07/2014,
140726,BRITISH GAS BUSINESS==========,6797205142,23,298.37,ELECTRICITY,07/07/2014,
140726,BRITISH GAS BUSINESS==========,6797205142,24,296.89,ELECTRICITY,07/07/2014,
140726,BRITISH GAS BUSINESS==========,6797205142,25,373.26,ELECTRICITY,07/07/2014,
140726,BRITISH GAS BUSINESS==========,6797205142,26,608.38,ELECTRICITY,07/07/2014,
140726,BRITISH GAS BUSINESS==========,6797205142,27,477.16,ELECTRICITY,07/07/2014,
140726,BRITISH GAS BUSINESS==========,6797205142,28,159.98,ELECTRICITY,07/07/2014,
140726,BRITISH GAS BUSINESS==========,6797205142,29,378.27,ELECTRICITY,07/07/2014,
140726,BRITISH GAS BUSINESS==========,6797205142,30,355.12,ELECTRICITY,07/07/2014,
140726,BRITISH GAS BUSINESS==========,6797205142,31,445.68,ELECTRICITY,07/07/2014,
140726,BRITISH GAS BUSINESS==========,6797205142,32,366.83,ELECTRICITY,07/07/2014,
140726,BRITISH GAS BUSINESS==========,6797205142,33,493.8,ELECTRICITY,07/07/2014,
140726,BRITISH GAS BUSINESS==========,6797205142,34,702.22,ELECTRICITY,07/07/2014,
140726,BRITISH GAS BUSINESS==========,6797205142,35,604.13,ELECTRICITY,07/07/2014,
140726,BRITISH GAS BUSINESS==========,6797205142,36,358.32,ELECTRICITY,07/07/2014,
140726,BRITISH GAS BUSINESS==========,6797205142,37,13.21,ELECTRICITY,07/07/2014,
140727,BRITISH GAS BUSINESS==========,6797205143,1,185.95,ELECTRICITY,07/07/2014,"14,534.19"
140727,BRITISH GAS BUSINESS==========,6797205143,2,223.44,ELECTRICITY,07/07/2014,
140727,BRITISH GAS BUSINESS==========,6797205143,3,29.07,ELECTRICITY,07/07/2014,
140727,BRITISH GAS BUSINESS==========,6797205143,4,50.21,ELECTRICITY,07/07/2014,
140727,BRITISH GAS BUSINESS==========,6797205143,5,240.78,ELECTRICITY,07/07/2014,
140727,BRITISH GAS BUSINESS==========,6797205143,6,255.19,ELECTRICITY,07/07/2014,
140727,BRITISH GAS BUSINESS==========,6797205143,7,40,ELECTRICITY,07/07/2014,
140727,BRITISH GAS BUSINESS==========,6797205143,8,407.35,ELECTRICITY,07/07/2014,
140727,BRITISH GAS BUSINESS==========,6797205143,9,921.56,ELECTRICITY,07/07/2014,
140727,BRITISH GAS BUSINESS==========,6797205143,10,702.62,ELECTRICITY,07/07/2014,
140727,BRITISH GAS BUSINESS==========,6797205143,11,434.57,ELECTRICITY,07/07/2014,
140727,BRITISH GAS BUSINESS==========,6797205143,12,236.81,ELECTRICITY,07/07/2014,
140727,BRITISH GAS BUSINESS==========,6797205143,13,"1,449.30",ELECTRICITY,07/07/2014,
140727,BRITISH GAS BUSINESS==========,6797205143,14,325.51,ELECTRICITY,07/07/2014,
140727,BRITISH GAS BUSINESS==========,6797205143,15,737.59,ELECTRICITY,07/07/2014,
140727,BRITISH GAS BUSINESS==========,6797205143,16,186.66,ELECTRICITY,07/07/2014,
140727,BRITISH GAS BUSINESS==========,6797205143,17,317.28,ELECTRICITY,07/07/2014,
140727,BRITISH GAS BUSINESS==========,6797205143,18,533.9,ELECTRICITY,07/07/2014,
140727,BRITISH GAS BUSINESS==========,6797205143,19,377.49,ELECTRICITY,07/07/2014,
140727,BRITISH GAS BUSINESS==========,6797205143,20,653.3,ELECTRICITY,07/07/2014,
140727,BRITISH GAS BUSINESS==========,6797205143,21,"1,080.85",ELECTRICITY,07/07/2014,
140727,BRITISH GAS BUSINESS==========,6797205143,22,392.08,ELECTRICITY,07/07/2014,
140727,BRITISH GAS BUSINESS==========,6797205143,23,515.69,ELECTRICITY,07/07/2014,
140727,BRITISH GAS BUSINESS==========,6797205143,24,340.41,ELECTRICITY,07/07/2014,
140727,BRITISH GAS BUSINESS==========,6797205143,25,749.29,ELECTRICITY,07/07/2014,
140727,BRITISH GAS BUSINESS==========,6797205143,26,375.65,ELECTRICITY,07/07/2014,
140727,BRITISH GAS BUSINESS==========,6797205143,27,387.98,ELECTRICITY,07/07/2014,
140727,BRITISH GAS BUSINESS==========,6797205143,28,248.7,ELECTRICITY,07/07/2014,
140727,BRITISH GAS BUSINESS==========,6797205143,29,379.85,ELECTRICITY,07/07/2014,
140727,BRITISH GAS BUSINESS==========,6797205143,30,569.84,ELECTRICITY,07/07/2014,
140727,BRITISH GAS BUSINESS==========,6797205143,31,462.67,ELECTRICITY,07/07/2014,
140727,BRITISH GAS BUSINESS==========,6797205143,32,46.77,ELECTRICITY,07/07/2014,
140727,BRITISH GAS BUSINESS==========,6797205143,33,35.2,ELECTRICITY,07/07/2014,
140727,BRITISH GAS BUSINESS==========,6797205143,34,24.71,GAS,07/07/2014,
140727,BRITISH GAS BUSINESS==========,6797205143,35,27.5,ELECTRICITY,07/07/2014,
140727,BRITISH GAS BUSINESS==========,6797205143,36,588.42,ELECTRICITY,07/07/2014,
140728,BRITISH GAS BUSINESS==========,6797205144,1,263.57,ELECTRICITY,07/07/2014,"14,145.33"
140728,BRITISH GAS BUSINESS==========,6797205144,2,770.17,ELECTRICITY,07/07/2014,
140728,BRITISH GAS BUSINESS==========,6797205144,3,391.49,ELECTRICITY,07/07/2014,
140728,BRITISH GAS BUSINESS==========,6797205144,4,225.27,ELECTRICITY,07/07/2014,
140728,BRITISH GAS BUSINESS==========,6797205144,5,305.75,ELECTRICITY,07/07/2014,
140728,BRITISH GAS BUSINESS==========,6797205144,6,257.56,ELECTRICITY,07/07/2014,
140728,BRITISH GAS BUSINESS==========,6797205144,7,478.64,ELECTRICITY,07/07/2014,
140728,BRITISH GAS BUSINESS==========,6797205144,8,"2,180.88",ELECTRICITY,07/07/2014,
140728,BRITISH GAS BUSINESS==========,6797205144,9,734.78,ELECTRICITY,07/07/2014,
140728,BRITISH GAS BUSINESS==========,6797205144,10,306.94,ELECTRICITY,07/07/2014,
140728,BRITISH GAS BUSINESS==========,6797205144,11,20.5,ELECTRICITY,07/07/2014,
140728,BRITISH GAS BUSINESS==========,6797205144,12,101.75,ELECTRICITY,07/07/2014,
140728,BRITISH GAS BUSINESS==========,6797205144,13,602.07,ELECTRICITY,07/07/2014,
140728,BRITISH GAS BUSINESS==========,6797205144,14,469.65,ELECTRICITY,07/07/2014,
140728,BRITISH GAS BUSINESS==========,6797205144,15,443.98,ELECTRICITY,07/07/2014,
140728,BRITISH GAS BUSINESS==========,6797205144,16,484.7,ELECTRICITY,07/07/2014,
140728,BRITISH GAS BUSINESS==========,6797205144,17,698.5,ELECTRICITY,07/07/2014,
140728,BRITISH GAS BUSINESS==========,6797205144,18,437.35,ELECTRICITY,07/07/2014,
140728,BRITISH GAS BUSINESS==========,6797205144,19,"1,324.66",ELECTRICITY,07/07/2014,
140728,BRITISH GAS BUSINESS==========,6797205144,20,376.04,ELECTRICITY,07/07/2014,
140728,BRITISH GAS BUSINESS==========,6797205144,21,344.49,ELECTRICITY,07/07/2014,
140728,BRITISH GAS BUSINESS==========,6797205144,22,575.82,ELECTRICITY,07/07/2014,
140728,BRITISH GAS BUSINESS==========,6797205144,23,18.96,ELECTRICITY,07/07/2014,
140728,BRITISH GAS BUSINESS==========,6797205144,24,16.19,ELECTRICITY,07/07/2014,
140728,BRITISH GAS BUSINESS==========,6797205144,25,14.51,ELECTRICITY,07/07/2014,
140728,BRITISH GAS BUSINESS==========,6797205144,26,267.65,ELECTRICITY,07/07/2014,
140728,BRITISH GAS BUSINESS==========,6797205144,27,476.34,ELECTRICITY,07/07/2014,
140728,BRITISH GAS BUSINESS==========,6797205144,28,272.8,ELECTRICITY,07/07/2014,
140728,BRITISH GAS BUSINESS==========,6797205144,29,296.61,ELECTRICITY,07/07/2014,
140728,BRITISH GAS BUSINESS==========,6797205144,30,345.02,ELECTRICITY,07/07/2014,
140728,BRITISH GAS BUSINESS==========,6797205144,31,445.14,ELECTRICITY,07/07/2014,
140728,BRITISH GAS BUSINESS==========,6797205144,32,13.77,ELECTRICITY,07/07/2014,
140728,BRITISH GAS BUSINESS==========,6797205144,33,183.78,ELECTRICITY,07/07/2014,
030714F,MERLIN ELECTRICAL SERVICES LTD,6987,1,300,DAY TO DAY MINOR IMPS,07/07/2014,300
030714F,SWEETT  UK LTD,7038726,1,"6,835.00",PROF FEES-MISCELLANEOUS,07/07/2014,"6,835.00"
030714F,SWEETT  UK LTD,7039494,1,"2,226.62",PROF FEES-MISCELLANEOUS,07/07/2014,"2,226.62"
030714F,SWEETT  UK LTD,7039495,1,"3,001.90",PROF FEES-MISCELLANEOUS,07/07/2014,"3,001.90"
010714E,THE HAY GROUP MANAGEMENT LTD==,705-1757,1,"9,530.10",CONSULTANTS,07/07/2014,"9,530.10"
010714E,NEXUS PROPERTY SERVICES,80159,1,"2,577.11",GENERAL,07/07/2014,"2,577.11"
140732,L FREEDMAN LIMITED,8727,1,600,DOCTORS/MEDICAL FEES,07/07/2014,600
240614E,COLLEGE OF POLICING,90016343,1,800,PROFESSIONAL DEVELOPMENT,07/07/2014,"1,360.00"
240614E,COLLEGE OF POLICING,90016343,2,560,PROFESSIONAL DEVELOPMENT,07/07/2014,
030714F,BSI MANAGEMENT SYSTEMS,94073426/1000,1,"1,960.00",PROFESSIONAL DEVELOPMENT,07/07/2014,"1,960.00"
020714C,THAMES WATER UTILITIES LTD====,BA1405571,1,"1,185.00",CURRENT HYDRANT COSTS,07/07/2014,"1,185.00"
020714C,THAMES WATER UTILITIES LTD====,CBA1405558,1,459,CURRENT HYDRANT COSTS,07/07/2014,459
020714C,THAMES WATER UTILITIES LTD====,CBA1405563,1,477,CURRENT HYDRANT COSTS,07/07/2014,477
020714C,THAMES WATER UTILITIES LTD====,CBA1405564,1,"1,185.00",CURRENT HYDRANT COSTS,07/07/2014,"1,185.00"
020714C,THAMES WATER UTILITIES LTD====,CBA1405570,1,"1,185.00",CURRENT HYDRANT COSTS,07/07/2014,"1,185.00"
020714C,THAMES WATER UTILITIES LTD====,CBA1405572,1,"1,185.00",CURRENT HYDRANT COSTS,07/07/2014,"1,185.00"
020714C,THAMES WATER UTILITIES LTD====,CBA1405574,1,"1,185.00",CURRENT HYDRANT COSTS,07/07/2014,"1,185.00"
020714C,THAMES WATER UTILITIES LTD====,CBA1405585,1,"1,185.00",CURRENT HYDRANT COSTS,07/07/2014,"1,185.00"
020714C,THAMES WATER UTILITIES LTD====,CBA1405621,1,"1,185.00",CURRENT HYDRANT COSTS,07/07/2014,"1,185.00"
020714C,THAMES WATER UTILITIES LTD====,CBA1405623,1,"1,185.00",CURRENT HYDRANT COSTS,07/07/2014,"1,185.00"
020714C,THAMES WATER UTILITIES LTD====,CBA1405624,1,"1,185.00",CURRENT HYDRANT COSTS,07/07/2014,"1,185.00"
020714C,THAMES WATER UTILITIES LTD====,CBA1405626,1,"1,185.00",CURRENT HYDRANT COSTS,07/07/2014,"1,185.00"
020714C,THAMES WATER UTILITIES LTD====,CBA1405627,1,477,CURRENT HYDRANT COSTS,07/07/2014,477
020714C,THAMES WATER UTILITIES LTD====,CBA1405628,1,477,CURRENT HYDRANT COSTS,07/07/2014,477
020714C,THAMES WATER UTILITIES LTD====,CBA1405629,1,"1,185.00",CURRENT HYDRANT COSTS,07/07/2014,"1,185.00"
020714C,THAMES WATER UTILITIES LTD====,CBA1405630,1,"1,185.00",CURRENT HYDRANT COSTS,07/07/2014,"1,185.00"
010714E,LONDON PENSIONS FUND AUTHORITY,FRS522,1,495,LOCAL GOVT PENSION SCHEME PAYM,07/07/2014,495
140730,LEX AUTOLEASE,IRIN350694,1,"3,958.07",LEASE CAR CHARGES,07/07/2014,"5,123.04"
140730,LEX AUTOLEASE,IRIN350694,2,"1,164.97",P/PAYMTS-CAR LEASG-RENTAL,07/07/2014,
140730,LEX AUTOLEASE,IRIN350694,3,-460.48,VAT CAR LEASING,07/07/2014,
140730,LEX AUTOLEASE,IRIN350694,4,460.48,LEASE CAR CHARGES,07/07/2014,
140730,LEX AUTOLEASE,IRIN350695,1,"3,955.39",LEASE CAR CHARGES,07/07/2014,"5,119.56"
140730,LEX AUTOLEASE,IRIN350695,2,"1,164.17",P/PAYMTS-CAR LEASG-RENTAL,07/07/2014,
140730,LEX AUTOLEASE,IRIN350695,3,-460.13,VAT CAR LEASING,07/07/2014,
140730,LEX AUTOLEASE,IRIN350695,4,460.13,LEASE CAR CHARGES,07/07/2014,
140730,LEX AUTOLEASE,IRIN350908,1,"3,301.70",LEASE CAR CHARGES,07/07/2014,"4,288.68"
140730,LEX AUTOLEASE,IRIN350908,2,986.98,P/PAYMTS-CAR LEASG-RENTAL,07/07/2014,
140730,LEX AUTOLEASE,IRIN350908,3,-376.36,VAT CAR LEASING,07/07/2014,
140730,LEX AUTOLEASE,IRIN350908,4,376.36,LEASE CAR CHARGES,07/07/2014,
020714C,SMITH O'SULLIVAN LTD.=========,LFB/EFS/003,1,627.09,STRATEGIC (NON CYCLICAL),07/07/2014,627.09
140730,ARVAL UK LTD,RI0000988454,1,"1,319.06",LEASE CAR CHARGES,07/07/2014,"3,619.99"
140730,ARVAL UK LTD,RI0000988454,2,"2,300.93",LEASE CAR CHARGES,07/07/2014,
140730,ARVAL UK LTD,RI0000988454,3,-318.54,VAT CAR LEASING,07/07/2014,
140730,ARVAL UK LTD,RI0000988454,4,318.54,LEASE CAR CHARGES,07/07/2014,
140730,ARVAL UK LTD,RI0001026400,1,"2,816.60",LEASE CAR CHARGES,07/07/2014,"9,928.29"
140730,ARVAL UK LTD,RI0001026400,2,"2,894.84",LEASE CAR CHARGES,07/07/2014,
140730,ARVAL UK LTD,RI0001026400,3,-509.2,VAT CAR LEASING,07/07/2014,
140730,ARVAL UK LTD,RI0001026400,4,509.2,LEASE CAR CHARGES,07/07/2014,
140730,ARVAL UK LTD,RI0001026400,5,"2,322.16",LEASE CAR CHARGES,07/07/2014,
140730,ARVAL UK LTD,RI0001026400,6,"1,894.69",LEASE CAR CHARGES,07/07/2014,
140730,ARVAL UK LTD,RI0001026400,7,-374.81,VAT CAR LEASING,07/07/2014,
140730,ARVAL UK LTD,RI0001026400,8,374.81,LEASE CAR CHARGES,07/07/2014,
140730,ARVAL UK LTD,RI0001210514,1,316.43,LEASE CAR CHARGES,07/07/2014,316.43
140730,ARVAL UK LTD,RI0001210514,2,-25.78,VAT CAR LEASING,07/07/2014,
140730,ARVAL UK LTD,RI0001210514,3,25.78,LEASE CAR CHARGES,07/07/2014,
140730,ARVAL UK LTD,RI0001210515,1,398.2,LEASE CAR CHARGES,07/07/2014,398.2
140730,ARVAL UK LTD,RI0001210515,2,-34.16,VAT CAR LEASING,07/07/2014,
140730,ARVAL UK LTD,RI0001210515,3,34.16,LEASE CAR CHARGES,07/07/2014,
140730,ARVAL UK LTD,RI0001210516,1,365.76,LEASE CAR CHARGES,07/07/2014,365.76
140730,ARVAL UK LTD,RI0001210516,2,-28.8,VAT CAR LEASING,07/07/2014,
140730,ARVAL UK LTD,RI0001210516,3,28.8,LEASE CAR CHARGES,07/07/2014,
140730,ARVAL UK LTD,RI0001210517,1,"3,492.13",LEASE CAR CHARGES,07/07/2014,"4,192.85"
140730,ARVAL UK LTD,RI0001210517,2,700.72,P/PAYMTS-CAR LEASG-RENTAL,07/07/2014,
140730,ARVAL UK LTD,RI0001210517,3,-345.58,VAT CAR LEASING,07/07/2014,
140730,ARVAL UK LTD,RI0001210517,4,345.58,LEASE CAR CHARGES,07/07/2014,
140730,ARVAL UK LTD,RI0001210518,1,"3,103.31",LEASE CAR CHARGES,07/07/2014,"3,726.01"
140730,ARVAL UK LTD,RI0001210518,2,622.7,P/PAYMTS-CAR LEASG-RENTAL,07/07/2014,
140730,ARVAL UK LTD,RI0001210518,3,-318.95,VAT CAR LEASING,07/07/2014,
140730,ARVAL UK LTD,RI0001210518,4,318.95,LEASE CAR CHARGES,07/07/2014,
140730,ARVAL UK LTD,RI0001210519,1,"2,663.72",LEASE CAR CHARGES,07/07/2014,"3,198.22"
140730,ARVAL UK LTD,RI0001210519,2,534.5,P/PAYMTS-CAR LEASG-RENTAL,07/07/2014,
140730,ARVAL UK LTD,RI0001210519,3,-272.09,VAT CAR LEASING,07/07/2014,
140730,ARVAL UK LTD,RI0001210519,4,272.09,LEASE CAR CHARGES,07/07/2014,
240614E,HUNTER LODGE==================,SI-05540,1,"10,000.00",ADVERTISING,07/07/2014,"19,500.00"
240614E,HUNTER LODGE==================,SI-05540,2,"9,500.00",ADVERTISING,07/07/2014,
200614C,HUNTER LODGE==================,SI-05544,1,"1,200.00",ADVERTISING,07/07/2014,"1,200.00"
030714F,BABCOCK SUPPORT SERVICES,SIINF00763,1,"1,349.00",REMOVALS,07/07/2014,"1,349.00"
240614F,WA PRODUCTS (UK) LTD==========,SIN140025,1,267.64,OPERATIONAL EQUIP-PURCHASE,07/07/2014,267.64
800039667,*XMA LTD,V657169,1,54.55,STATIONERY CONSUMABLES,07/07/2014,283.74
800039667,*XMA LTD,V657169,2,51.23,STATIONERY CONSUMABLES,07/07/2014,
800039667,*XMA LTD,V657169,3,55.28,STATIONERY CONSUMABLES,07/07/2014,
800039667,*XMA LTD,V657169,4,55.28,STATIONERY CONSUMABLES,07/07/2014,
800039667,*XMA LTD,V657169,5,67.4,STATIONERY CONSUMABLES,07/07/2014,
010714E,ARVAL UK LTD,VS0000985236,1,"2,076.32",CONTRACT HIRE,07/07/2014,"2,076.32"
010714E,ARVAL UK LTD,VS0001024160,1,"2,608.53",CONTRACT HIRE,07/07/2014,"2,608.53"
030714F,ARVAL UK LTD,VS0001141135,1,299.11,WINDSCREEN & TYRE CHARGES,07/07/2014,299.11
140734,DEPARTMENT FOR WORK & PENSIONS,7555,1,712,DWP NHS CHARGES,08/07/2014,712
240614E,ADVANCED FURNITURE============,61149,1,405,OFFICE FURNITURE,10/07/2014,405
020714C,HEALTH MANAGEMENT LIMITED=====,115025,1,300,THIRD PARTY REPORTS,10/07/2014,"2,741.90"
020714C,HEALTH MANAGEMENT LIMITED=====,115025,2,200,THIRD PARTY REPORTS,10/07/2014,
020714C,HEALTH MANAGEMENT LIMITED=====,115025,3,"2,241.90",THIRD PARTY REPORTS,10/07/2014,
020714C,SYNERGY HEALTH LAB SERVICE LTD,115361,1,132.5,DRUG & ALCOHOL TESTS,10/07/2014,265
020714C,SYNERGY HEALTH LAB SERVICE LTD,115361,2,132.5,DRUG & ALCOHOL TESTS,10/07/2014,
300614C,MAJESTIC WINE WAREHOUSES LTD==,003/2104574,1,257.7,PUBLIC RELATIONS,10/07/2014,257.7
140733,THAMES WATER UTILITIES LTD====,04230-30577F,1,"1,334.63",WATER & SEWERAGE RATES,10/07/2014,"1,334.63"
070714C,FOOTPRINT UNIFORMS============,5062014,1,87.7,CLOTHING,10/07/2014,745.45
070714C,FOOTPRINT UNIFORMS============,5062014,2,87.7,CLOTHING,10/07/2014,
070714C,FOOTPRINT UNIFORMS============,5062014,3,43.85,CLOTHING,10/07/2014,
070714C,FOOTPRINT UNIFORMS============,5062014,4,87.7,CLOTHING,10/07/2014,
070714C,FOOTPRINT UNIFORMS============,5062014,5,87.7,CLOTHING,10/07/2014,
070714C,FOOTPRINT UNIFORMS============,5062014,6,87.7,CLOTHING,10/07/2014,
070714C,FOOTPRINT UNIFORMS============,5062014,7,87.7,CLOTHING,10/07/2014,
070714C,FOOTPRINT UNIFORMS============,5062014,8,87.7,CLOTHING,10/07/2014,
070714C,FOOTPRINT UNIFORMS============,5062014,9,87.7,CLOTHING,10/07/2014,
070714C,HAYS ACCOUNTANCY & FINANCE====,1004443696,1,435,FRS STAFF AGENCY,10/07/2014,435
070714C,HAYS ACCOUNTANCY & FINANCE====,1004452911,1,681.5,FRS STAFF AGENCY,10/07/2014,681.5
800040200,*JAMES HUNTER (OUTFITTERS) LTD,107718,1,289.84,CLOTHING,10/07/2014,435.58
800040200,*JAMES HUNTER (OUTFITTERS) LTD,107718,2,145.74,CLOTHING,10/07/2014,
800040202,*JAMES HUNTER (OUTFITTERS) LTD,107720,1,289.84,CLOTHING,10/07/2014,435.58
800040202,*JAMES HUNTER (OUTFITTERS) LTD,107720,2,145.74,CLOTHING,10/07/2014,
800040205,*JAMES HUNTER (OUTFITTERS) LTD,107723,1,293.13,CLOTHING,10/07/2014,293.13
800040209,*JAMES HUNTER (OUTFITTERS) LTD,107727,1,293.13,CLOTHING,10/07/2014,293.13
800040223,*JAMES HUNTER (OUTFITTERS) LTD,107741,1,293.13,CLOTHING,10/07/2014,293.13
300614G,REAM CONTRACTS LTD,11316,1,"6,921.38",DEVELOPMENT  EXPENSES-CONTRACT,10/07/2014,"9,427.40"
300614G,REAM CONTRACTS LTD,11316,2,110.68,DEVELOPMENT  EXPENSES-CONTRACT,10/07/2014,
300614G,REAM CONTRACTS LTD,11316,3,"2,268.39",DEVELOPMENT  EXPENSES-CONTRACT,10/07/2014,
300614G,REAM CONTRACTS LTD,11316,4,126.95,DEVELOPMENT  EXPENSES-CONTRACT,10/07/2014,
040714C,REAM CONTRACTS LTD,11317,1,"9,220.00",STRATEGIC (NON CYCLICAL),10/07/2014,"9,220.00"
070714C,VISTA LANDSCAPE MANAGEMENT LTD,119826,1,144.25,GROUNDS MAINTENANCE,10/07/2014,"2,955.91"
070714C,VISTA LANDSCAPE MANAGEMENT LTD,119826,2,26.71,GROUNDS MAINTENANCE,10/07/2014,
070714C,VISTA LANDSCAPE MANAGEMENT LTD,119826,3,29.23,GROUNDS MAINTENANCE,10/07/2014,
070714C,VISTA LANDSCAPE MANAGEMENT LTD,119826,4,32.26,GROUNDS MAINTENANCE,10/07/2014,
070714C,VISTA LANDSCAPE MANAGEMENT LTD,119826,5,113.22,GROUNDS MAINTENANCE,10/07/2014,
070714C,VISTA LANDSCAPE MANAGEMENT LTD,119826,6,25.42,GROUNDS MAINTENANCE,10/07/2014,
070714C,VISTA LANDSCAPE MANAGEMENT LTD,119826,7,33.14,GROUNDS MAINTENANCE,10/07/2014,
070714C,VISTA LANDSCAPE MANAGEMENT LTD,119826,8,26.46,GROUNDS MAINTENANCE,10/07/2014,
070714C,VISTA LANDSCAPE MANAGEMENT LTD,119826,9,23.05,GROUNDS MAINTENANCE,10/07/2014,
070714C,VISTA LANDSCAPE MANAGEMENT LTD,119826,10,23.14,GROUNDS MAINTENANCE,10/07/2014,
070714C,VISTA LANDSCAPE MANAGEMENT LTD,119826,11,26.68,GROUNDS MAINTENANCE,10/07/2014,
070714C,VISTA LANDSCAPE MANAGEMENT LTD,119826,12,124.13,GROUNDS MAINTENANCE,10/07/2014,
070714C,VISTA LANDSCAPE MANAGEMENT LTD,119826,13,22.46,GROUNDS MAINTENANCE,10/07/2014,
070714C,VISTA LANDSCAPE MANAGEMENT LTD,119826,14,94,GROUNDS MAINTENANCE,10/07/2014,
070714C,VISTA LANDSCAPE MANAGEMENT LTD,119826,15,29.15,GROUNDS MAINTENANCE,10/07/2014,
070714C,VISTA LANDSCAPE MANAGEMENT LTD,119826,16,23.91,GROUNDS MAINTENANCE,10/07/2014,
070714C,VISTA LANDSCAPE MANAGEMENT LTD,119826,17,141.74,GROUNDS MAINTENANCE,10/07/2014,
070714C,VISTA LANDSCAPE MANAGEMENT LTD,119826,18,24.27,GROUNDS MAINTENANCE,10/07/2014,
070714C,VISTA LANDSCAPE MANAGEMENT LTD,119826,19,25.81,GROUNDS MAINTENANCE,10/07/2014,
070714C,VISTA LANDSCAPE MANAGEMENT LTD,119826,20,19.47,GROUNDS MAINTENANCE,10/07/2014,
070714C,VISTA LANDSCAPE MANAGEMENT LTD,119826,21,24.94,GROUNDS MAINTENANCE,10/07/2014,
070714C,VISTA LANDSCAPE MANAGEMENT LTD,119826,22,25.79,GROUNDS MAINTENANCE,10/07/2014,
070714C,VISTA LANDSCAPE MANAGEMENT LTD,119826,23,29.49,GROUNDS MAINTENANCE,10/07/2014,
070714C,VISTA LANDSCAPE MANAGEMENT LTD,119826,24,23.35,GROUNDS MAINTENANCE,10/07/2014,
070714C,VISTA LANDSCAPE MANAGEMENT LTD,119826,25,23.22,GROUNDS MAINTENANCE,10/07/2014,
070714C,VISTA LANDSCAPE MANAGEMENT LTD,119826,26,20.92,GROUNDS MAINTENANCE,10/07/2014,
070714C,VISTA LANDSCAPE MANAGEMENT LTD,119826,27,91.14,GROUNDS MAINTENANCE,10/07/2014,
070714C,VISTA LANDSCAPE MANAGEMENT LTD,119826,28,96.04,GROUNDS MAINTENANCE,10/07/2014,
070714C,VISTA LANDSCAPE MANAGEMENT LTD,119826,29,24.52,GROUNDS MAINTENANCE,10/07/2014,
070714C,VISTA LANDSCAPE MANAGEMENT LTD,119826,30,280.25,GROUNDS MAINTENANCE,10/07/2014,
070714C,VISTA LANDSCAPE MANAGEMENT LTD,119826,31,24.01,GROUNDS MAINTENANCE,10/07/2014,
070714C,VISTA LANDSCAPE MANAGEMENT LTD,119826,32,73.23,GROUNDS MAINTENANCE,10/07/2014,
070714C,VISTA LANDSCAPE MANAGEMENT LTD,119826,33,22.53,GROUNDS MAINTENANCE,10/07/2014,
070714C,VISTA LANDSCAPE MANAGEMENT LTD,119826,34,24.02,GROUNDS MAINTENANCE,10/07/2014,
070714C,VISTA LANDSCAPE MANAGEMENT LTD,119826,35,23.34,GROUNDS MAINTENANCE,10/07/2014,
070714C,VISTA LANDSCAPE MANAGEMENT LTD,119826,36,90.84,GROUNDS MAINTENANCE,10/07/2014,
070714C,VISTA LANDSCAPE MANAGEMENT LTD,119826,37,132.3,GROUNDS MAINTENANCE,10/07/2014,
070714C,VISTA LANDSCAPE MANAGEMENT LTD,119826,38,751.76,GROUNDS MAINTENANCE,10/07/2014,
070714C,VISTA LANDSCAPE MANAGEMENT LTD,119826,39,72.18,GROUNDS MAINTENANCE,10/07/2014,
070714C,VISTA LANDSCAPE MANAGEMENT LTD,119826,40,64.28,GROUNDS MAINTENANCE,10/07/2014,
070714C,VISTA LANDSCAPE MANAGEMENT LTD,119826,41,29.26,GROUNDS MAINTENANCE,10/07/2014,
040714C,CEDAFORCE LTD=================,12052,1,"4,341.70",GYM EQUIPMENT,10/07/2014,"4,341.70"
300614C,ESRI (UK) LIMITED=============,120762,1,"7,200.00",MAINTENANCE & SUPPORT,10/07/2014,"7,200.00"
800040224,*NPS (SHOES) LTD,13354,1,30.05,CLOTHING,10/07/2014,"1,618.00"
800040224,*NPS (SHOES) LTD,13354,2,30.05,CLOTHING,10/07/2014,
800040224,*NPS (SHOES) LTD,13354,3,30.05,CLOTHING,10/07/2014,
800040224,*NPS (SHOES) LTD,13354,4,30.05,CLOTHING,10/07/2014,
800040224,*NPS (SHOES) LTD,13354,5,30.05,CLOTHING,10/07/2014,
800040224,*NPS (SHOES) LTD,13354,6,30.05,CLOTHING,10/07/2014,
800040224,*NPS (SHOES) LTD,13354,7,28.45,CLOTHING,10/07/2014,
800040224,*NPS (SHOES) LTD,13354,8,35,CLOTHING,10/07/2014,
800040224,*NPS (SHOES) LTD,13354,9,35,CLOTHING,10/07/2014,
800040224,*NPS (SHOES) LTD,13354,10,30.05,CLOTHING,10/07/2014,
800040224,*NPS (SHOES) LTD,13354,11,30.05,CLOTHING,10/07/2014,
800040224,*NPS (SHOES) LTD,13354,12,30.05,CLOTHING,10/07/2014,
800040224,*NPS (SHOES) LTD,13354,13,30.05,CLOTHING,10/07/2014,
800040224,*NPS (SHOES) LTD,13354,14,30.05,CLOTHING,10/07/2014,
800040224,*NPS (SHOES) LTD,13354,15,29.45,CLOTHING,10/07/2014,
800040224,*NPS (SHOES) LTD,13354,16,29.45,CLOTHING,10/07/2014,
800040224,*NPS (SHOES) LTD,13354,17,29.45,CLOTHING,10/07/2014,
800040224,*NPS (SHOES) LTD,13354,18,29.45,CLOTHING,10/07/2014,
800040224,*NPS (SHOES) LTD,13354,19,29.45,CLOTHING,10/07/2014,
800040224,*NPS (SHOES) LTD,13354,20,29.45,CLOTHING,10/07/2014,
800040224,*NPS (SHOES) LTD,13354,21,29.45,CLOTHING,10/07/2014,
800040224,*NPS (SHOES) LTD,13354,22,29.45,CLOTHING,10/07/2014,
800040224,*NPS (SHOES) LTD,13354,23,29.45,CLOTHING,10/07/2014,
800040224,*NPS (SHOES) LTD,13354,24,29.45,CLOTHING,10/07/2014,
800040224,*NPS (SHOES) LTD,13354,25,29.45,CLOTHING,10/07/2014,
800040224,*NPS (SHOES) LTD,13354,26,29.45,CLOTHING,10/07/2014,
800040224,*NPS (SHOES) LTD,13354,27,29.45,CLOTHING,10/07/2014,
800040224,*NPS (SHOES) LTD,13354,28,29.45,CLOTHING,10/07/2014,
800040224,*NPS (SHOES) LTD,13354,29,29.45,CLOTHING,10/07/2014,
800040224,*NPS (SHOES) LTD,13354,30,29.45,CLOTHING,10/07/2014,
800040224,*NPS (SHOES) LTD,13354,31,29.45,CLOTHING,10/07/2014,
800040224,*NPS (SHOES) LTD,13354,32,29.45,CLOTHING,10/07/2014,
800040224,*NPS (SHOES) LTD,13354,33,29.45,CLOTHING,10/07/2014,
800040224,*NPS (SHOES) LTD,13354,34,29.45,CLOTHING,10/07/2014,
800040224,*NPS (SHOES) LTD,13354,35,29.45,CLOTHING,10/07/2014,
800040224,*NPS (SHOES) LTD,13354,36,29.45,CLOTHING,10/07/2014,
800040224,*NPS (SHOES) LTD,13354,37,29.45,CLOTHING,10/07/2014,
800040224,*NPS (SHOES) LTD,13354,38,29.45,CLOTHING,10/07/2014,
800040224,*NPS (SHOES) LTD,13354,39,29.45,CLOTHING,10/07/2014,
800040224,*NPS (SHOES) LTD,13354,40,29.45,CLOTHING,10/07/2014,
800040224,*NPS (SHOES) LTD,13354,41,29.45,CLOTHING,10/07/2014,
800040224,*NPS (SHOES) LTD,13354,42,29.45,CLOTHING,10/07/2014,
800040224,*NPS (SHOES) LTD,13354,43,29.45,CLOTHING,10/07/2014,
800040224,*NPS (SHOES) LTD,13354,44,29.45,CLOTHING,10/07/2014,
800040224,*NPS (SHOES) LTD,13354,45,29.45,CLOTHING,10/07/2014,
800040224,*NPS (SHOES) LTD,13354,46,29.45,CLOTHING,10/07/2014,
800040224,*NPS (SHOES) LTD,13354,47,41.1,CLOTHING,10/07/2014,
800040224,*NPS (SHOES) LTD,13354,48,41.1,CLOTHING,10/07/2014,
800040224,*NPS (SHOES) LTD,13354,49,41.1,CLOTHING,10/07/2014,
800040224,*NPS (SHOES) LTD,13354,50,41.1,CLOTHING,10/07/2014,
800040224,*NPS (SHOES) LTD,13354,51,41.1,CLOTHING,10/07/2014,
800040224,*NPS (SHOES) LTD,13354,52,41.1,CLOTHING,10/07/2014,
070714C,PA ASSOCIATES (UK) LTD========,14060,1,810.5,PROF FEES-MISCELLANEOUS,10/07/2014,810.5
070714C,RESPIREX======================,146924,1,237.02,REPAIR & MAINTENANCE,10/07/2014,310.36
070714C,RESPIREX======================,146924,2,51.67,REPAIR & MAINTENANCE,10/07/2014,
070714C,RESPIREX======================,146924,3,21.67,REPAIR & MAINTENANCE,10/07/2014,
070714C,RESPIREX======================,146932,1,930,PROFESSIONAL DEVELOPMENT,10/07/2014,930
080714F,BRIGHT INTERACTIVE LTD========,185/0141/1,1,450,CONSULTANTS,10/07/2014,450
140733,THAMES WATER UTILITIES LTD====,18966-01041E,1,"1,042.83",WATER & SEWERAGE RATES,10/07/2014,"1,042.83"
040714C,FUTURE SAFETY LTD=============,2024,1,192,OPERATIONAL EQUIP-PURCHASE,10/07/2014,298
040714C,FUTURE SAFETY LTD=============,2024,2,106,OPERATIONAL EQUIP-PURCHASE,10/07/2014,
250614C,MERLIN ELECTRICAL SERVICES LTD,2074,1,525.19,STRATEGIC (NON CYCLICAL),10/07/2014,525.19
040714C,GRADIENT CONSULTANTS LLP======,2075,1,104.41,ASBESTOS,10/07/2014,835.05
040714C,GRADIENT CONSULTANTS LLP======,2075,2,104.41,ASBESTOS,10/07/2014,
040714C,GRADIENT CONSULTANTS LLP======,2075,3,52.09,ASBESTOS,10/07/2014,
040714C,GRADIENT CONSULTANTS LLP======,2075,4,104.41,ASBESTOS,10/07/2014,
040714C,GRADIENT CONSULTANTS LLP======,2075,5,104.41,ASBESTOS,10/07/2014,
040714C,GRADIENT CONSULTANTS LLP======,2075,6,104.41,ASBESTOS,10/07/2014,
040714C,GRADIENT CONSULTANTS LLP======,2075,7,104.41,ASBESTOS,10/07/2014,
040714C,GRADIENT CONSULTANTS LLP======,2075,8,104.41,ASBESTOS,10/07/2014,
040714C,GRADIENT CONSULTANTS LLP======,2075,9,52.09,ASBESTOS,10/07/2014,
040714C,BEAUMONT CONSTRUCTION SERVICES,2094,1,"2,260.01",DEVELOPMENT  EXPENSES-CONTRACT,10/07/2014,"2,260.01"
270614C,MITIE TECH FACILITIES MNGT LT,210901849,1,"3,221.67",STRATEGIC (NON CYCLICAL),10/07/2014,"3,221.67"
030714C,B NOKES CONTRACTS LTD,2244,1,"1,355.40",PROF FEES-MISCELLANEOUS,10/07/2014,"1,355.40"
070714C,B NOKES CONTRACTS LTD,2247,1,"5,060.00",STRATEGIC (NON CYCLICAL),10/07/2014,"5,800.00"
070714C,B NOKES CONTRACTS LTD,2247,2,740,STRATEGIC (NON CYCLICAL),10/07/2014,
030714C,B NOKES CONTRACTS LTD,2248,1,"1,950.00",STRATEGIC (NON CYCLICAL),10/07/2014,"1,950.00"
030714C,B NOKES CONTRACTS LTD,2252,1,"5,377.50",STRATEGIC (NON CYCLICAL),10/07/2014,"5,377.50"
030714C,B NOKES CONTRACTS LTD,2255,1,870,STRATEGIC (NON CYCLICAL),10/07/2014,870
030714C,B NOKES CONTRACTS LTD,2256,1,"1,098.50",STRATEGIC (NON CYCLICAL),10/07/2014,"1,098.50"
030714C,B NOKES CONTRACTS LTD,2257,1,"2,125.00",STRATEGIC (NON CYCLICAL),10/07/2014,"2,125.00"
040714C,B NOKES CONTRACTS LTD,2258,1,420,REMOVALS,10/07/2014,420
030714C,B NOKES CONTRACTS LTD,2259,1,805.25,TACTICAL DAY TO DAY,10/07/2014,805.25
070714C,B NOKES CONTRACTS LTD,2260,1,"5,613.25",STRATEGIC (NON CYCLICAL),10/07/2014,"5,613.25"
070714C,B NOKES CONTRACTS LTD,2261,1,"1,866.50",STRATEGIC (NON CYCLICAL),10/07/2014,"1,866.50"
030714C,B NOKES CONTRACTS LTD,2262,1,"1,116.00",TACTICAL DAY TO DAY,10/07/2014,"1,116.00"
030714C,B NOKES CONTRACTS LTD,2263,1,509,TACTICAL DAY TO DAY,10/07/2014,509
030714C,B NOKES CONTRACTS LTD,2265,1,292,TACTICAL DAY TO DAY,10/07/2014,292
070714C,B NOKES CONTRACTS LTD,2268,1,"1,438.00",STRATEGIC (NON CYCLICAL),10/07/2014,"1,438.00"
070714C,B NOKES CONTRACTS LTD,2269,1,"1,351.50",STRATEGIC (NON CYCLICAL),10/07/2014,"1,351.50"
070714C,B NOKES CONTRACTS LTD,2270,1,592.5,STRATEGIC (NON CYCLICAL),10/07/2014,592.5
070714C,B NOKES CONTRACTS LTD,2271,1,"5,002.50",STRATEGIC (NON CYCLICAL),10/07/2014,"5,002.50"
070714C,B NOKES CONTRACTS LTD,2272,1,"6,929.00",STRATEGIC (NON CYCLICAL),10/07/2014,"6,929.00"
070714C,B NOKES CONTRACTS LTD,2273,1,"4,917.50",STRATEGIC (NON CYCLICAL),10/07/2014,"4,917.50"
070714C,B NOKES CONTRACTS LTD,2274,1,"4,928.00",STRATEGIC (NON CYCLICAL),10/07/2014,"4,928.00"
030714C,B NOKES CONTRACTS LTD,2275,1,"2,625.00",STRATEGIC (NON CYCLICAL),10/07/2014,"2,625.00"
070714C,B NOKES CONTRACTS LTD,2276,1,"2,104.25",STRATEGIC (NON CYCLICAL),10/07/2014,"2,104.25"
070714C,B NOKES CONTRACTS LTD,2277,1,"2,181.00",STRATEGIC (NON CYCLICAL),10/07/2014,"2,181.00"
070714C,B NOKES CONTRACTS LTD,2278,1,"2,047.50",STRATEGIC (NON CYCLICAL),10/07/2014,"2,047.50"
070714C,B NOKES CONTRACTS LTD,2279,1,"6,082.00",STRATEGIC (NON CYCLICAL),10/07/2014,"6,082.00"
070714C,B NOKES CONTRACTS LTD,2281,1,"1,121.50",STRATEGIC (NON CYCLICAL),10/07/2014,"1,121.50"
070714C,B NOKES CONTRACTS LTD,2282,1,"1,469.75",STRATEGIC (NON CYCLICAL),10/07/2014,"1,469.75"
070714C,B NOKES CONTRACTS LTD,2283,1,"1,881.00",STRATEGIC (NON CYCLICAL),10/07/2014,"1,881.00"
140733,THAMES WATER UTILITIES LTD====,25599-01112F,1,411.75,WATER & SEWERAGE RATES,10/07/2014,411.75
140733,THAMES WATER UTILITIES LTD====,25747-00531F,1,906.59,WATER & SEWERAGE RATES,10/07/2014,906.59
140733,THAMES WATER UTILITIES LTD====,27970-86298E,1,"1,347.99",WATER & SEWERAGE RATES,10/07/2014,"1,347.99"
040714C,W.GILCHRIST & CO,3532,1,299.3,PROTECTIVE EQUIPT - PARTS,10/07/2014,309.3
040714C,W.GILCHRIST & CO,3532,2,10,STATIONERY CONSUMABLES,10/07/2014,
080714F,STRENGTHS PARTNERSHIP LTD,3678,1,700,PROFESSIONAL DEVELOPMENT,10/07/2014,700
240614E,BRAMBLE.CC LTD================,4023,1,848.01,PURCHASES-SOFTWARE,10/07/2014,848.01
040714C,FOCUS & VISION TECHNOLOGY LTD,40937,1,829.36,MEDICAL EXPENSES CONTRACT,10/07/2014,829.36
040714C,FOCUS & VISION TECHNOLOGY LTD,40958,1,335.74,MEDICAL EXPENSES CONTRACT,10/07/2014,335.74
040714C,FOCUS & VISION TECHNOLOGY LTD,40989,1,851.18,MEDICAL EXPENSES CONTRACT,10/07/2014,851.18
040714C,FOCUS & VISION TECHNOLOGY LTD,41088,1,424.68,MEDICAL EXPENSES CONTRACT,10/07/2014,424.68
040714C,KNIGHTON CLEANING SERVICES LTD,41310,1,"2,100.00",SPECIAL CLEANS,10/07/2014,"2,100.00"
140733,THAMES WATER UTILITIES LTD====,42153-20857E,1,493.39,WATER & SEWERAGE RATES,10/07/2014,493.39
270614C,MITIE SECURITY (LONDON) LTD===,45/558443,1,"13,230.00",PREMISES SECURITY,10/07/2014,"13,230.00"
140733,THAMES WATER UTILITIES LTD====,45803-10009F,1,463.07,WATER & SEWERAGE RATES,10/07/2014,463.07
140733,THAMES WATER UTILITIES LTD====,47190-45186F,1,746.22,WATER & SEWERAGE RATES,10/07/2014,746.22
040714C,CONFLICT MANAGEMENT PLUS LTD==,4774,1,"1,291.00",CONSULTANTS,10/07/2014,"1,291.00"
800039713,*OCS GROUP UK LTD,5000014093-1,1,"3,232.97",CATERING,10/07/2014,"3,232.97"
800039714,*OCS GROUP UK LTD,5000014093-2,1,678.81,CATERING,10/07/2014,678.81
800039716,*OCS GROUP UK LTD,5000014094-1,1,"3,232.97",CATERING,10/07/2014,"3,232.97"
800039717,*OCS GROUP UK LTD,5000014094-2,1,678.81,CATERING,10/07/2014,678.81
800039719,*OCS GROUP UK LTD,5000014095-1,1,"3,232.97",CATERING,10/07/2014,"3,232.97"
800039720,*OCS GROUP UK LTD,5000014095-2,1,678.81,CATERING,10/07/2014,678.81
800039748,*OCS GROUP UK LTD,5000014096-27,1,391.5,REFRESHMENTS,10/07/2014,391.5
800039725,*OCS GROUP UK LTD,5000014096-4,1,"13,393.00",REFRESHMENTS,10/07/2014,"13,393.00"
800039772,*OCS GROUP UK LTD,5000014096-51,1,754,REFRESHMENTS,10/07/2014,754
800039783,*OCS GROUP UK LTD,5000014096-62,1,522,REFRESHMENTS,10/07/2014,522
800039813,*OCS GROUP UK LTD,5000014098-26,1,565.5,REFRESHMENTS,10/07/2014,565.5
800039836,*OCS GROUP UK LTD,5000014098-49,1,522,REFRESHMENTS,10/07/2014,522
800039847,*OCS GROUP UK LTD,5000014098-60,1,340,REFRESHMENTS,10/07/2014,340
800039848,*OCS GROUP UK LTD,5000014098-61,1,255,REFRESHMENTS,10/07/2014,255
800039924,*OCS GROUP UK LTD,5000014098-70,1,"2,240.00",REFRESHMENTS,10/07/2014,"2,240.00"
800039866,*OCS GROUP UK LTD,5000014098-79,1,278.4,REFRESHMENTS,10/07/2014,278.4
800039923,*OCS GROUP UK LTD,5000014098-8,1,"1,177.00",REFRESHMENTS,10/07/2014,"1,177.00"
140733,THAMES WATER UTILITIES LTD====,55520-98535F,1,702.88,WATER & SEWERAGE RATES,10/07/2014,702.88
080714F,THORNE & DERRICK==============,56970,1,206.96,OPERATIONAL EQUIP-PURCHASE,10/07/2014,"2,120.56"
080714F,THORNE & DERRICK==============,56970,2,384,OPERATIONAL EQUIP-PURCHASE,10/07/2014,
080714F,THORNE & DERRICK==============,56970,3,435,OPERATIONAL EQUIP-PURCHASE,10/07/2014,
080714F,THORNE & DERRICK==============,56970,4,430.3,OPERATIONAL EQUIP-PURCHASE,10/07/2014,
080714F,THORNE & DERRICK==============,56970,5,430.3,OPERATIONAL EQUIP-PURCHASE,10/07/2014,
080714F,THORNE & DERRICK==============,56970,6,234,OPERATIONAL EQUIP-PURCHASE,10/07/2014,
030714C,URS SCOTT WILSON LIMITED,5916658,1,"19,665.52",PROFESS FEES-CLERK OF WORKS,10/07/2014,"19,665.52"
030714C,URS SCOTT WILSON LIMITED,5923911,1,"4,741.63",PROFESS FEES-CLERK OF WORKS,10/07/2014,"4,741.63"
020714C,UNIFY,6000860835,1,"100,000.00",MAINTENANCE & SUPPORT,10/07/2014,"100,000.00"
020714C,MARVAL SOFTWARE LIMITED=======,6090,1,"2,250.00",ACQUISITIONS,10/07/2014,"2,250.00"
070714C,MARVAL SOFTWARE LIMITED=======,6098,1,"1,925.00",ACQUISITIONS,10/07/2014,"1,925.00"
140733,THAMES WATER UTILITIES LTD====,6242955180K,1,277.74,WATER & SEWERAGE RATES,10/07/2014,277.74
070714C,GAS & AIR SERVICES (UK)=======,6424,1,282,REPAIR & MAINTENANCE,10/07/2014,282
240614E,SWETS,6700330214,1,493.84,BOOKS & JOURNALS,10/07/2014,493.84
070714C,MOORE STEPHENS CONSULTING LTD=,673537,1,"7,000.00",TELECOMMUNICATIONS,10/07/2014,"7,000.00"
040714C,CANON (UK) LTD===============,770454836,1,390.85,OFFICE EQUIPMENT,10/07/2014,390.85
020714C,EAST SUSSEX FIRE & RESCUE=====,8022001598,1,"36,576.44",FIRE AUTHORITIES,10/07/2014,"36,576.44"
040714C,KJA- ARTISTS,845,1,"1,180.00",PRINTING,10/07/2014,"3,350.00"
040714C,KJA- ARTISTS,845,2,"2,170.00",PRINTING,10/07/2014,
080714F,KJA- ARTISTS,851,1,295,PRINTING,10/07/2014,295
040714C,G4S FIRE & SECURITY SYSTEMS UK,856609,1,407,PREMISES SECURITY,10/07/2014,407
140733,THAMES WATER UTILITIES LTD====,89525-13074F,1,666.44,WATER & SEWERAGE RATES,10/07/2014,666.44
010714F,TSI INSTRUMENTS LTD===========,90649742,1,445,REPAIR & MAINTENANCE,10/07/2014,454.54
010714F,TSI INSTRUMENTS LTD===========,90649742,2,9.54,REPAIR & MAINTENANCE,10/07/2014,
070714C,SAFEGUARD PEST CON. & ENV.LTD,9542,1,"1,390.00",PEST CONTROL,10/07/2014,"1,390.00"
030714C,THAMES WATER UTILITIES LTD====,CBA1405729,1,"1,185.00",CURRENT HYDRANT COSTS,10/07/2014,"1,185.00"
030714C,THAMES WATER UTILITIES LTD====,CBA1405731,1,"1,185.00",CURRENT HYDRANT COSTS,10/07/2014,"1,185.00"
030714C,THAMES WATER UTILITIES LTD====,CBA1405735,1,"1,185.00",CURRENT HYDRANT COSTS,10/07/2014,"1,185.00"
080714F,THAMES WATER UTILITIES LTD====,CBA1405746,1,"1,185.00",CURRENT HYDRANT COSTS,10/07/2014,"1,185.00"
240614E,SURVITEC SERVICE &DISTRIBUTION,CD30787205,1,152,PROTECTIVE EQUIPT - PARTS,10/07/2014,512.5
240614E,SURVITEC SERVICE &DISTRIBUTION,CD30787205,2,152,PROTECTIVE EQUIPT - PARTS,10/07/2014,
240614E,SURVITEC SERVICE &DISTRIBUTION,CD30787205,3,208.5,PROTECTIVE EQUIPT - PARTS,10/07/2014,
070714C,RADIOCOMS SYSTEMS LIMITED=====,CF280722,1,"1,197.00",ACQUISITIONS,10/07/2014,"4,750.20"
070714C,RADIOCOMS SYSTEMS LIMITED=====,CF280722,2,"3,553.20",ACQUISITIONS,10/07/2014,
140732,LEXISNEXIS VISUALFILES,DI4L21851,1,"45,508.00",BOOKS & JOURNALS,10/07/2014,"45,508.00"
040714C,KIER BUILDING SERV ENGINEERS==,F00049332,1,"2,223.93",STRATEGIC (CYCLICAL),10/07/2014,"2,223.93"
140733,GOOD ENERGY===================,GE106451EF,1,490.79,ELECTRICITY,10/07/2014,490.79
140712,MERSEYSIDE FCDA===============,I0016650,1,942.86,COUNSELS FEES,10/07/2014,942.86
030714C,BABCOCK CIVIL INFRASTRUCTURE,II5000560,1,"31,161.87",STRATEGIC (CYCLICAL),10/07/2014,"31,161.87"
070714C,SERVOCA SECURE SOLUTIONS LTD,IN005915,1,"3,272.80",PREMISES SECURITY,10/07/2014,"3,272.80"
240614E,BLUESKY SHAREPOINT CONSULTING,INV-1365,1,"8,500.00",CONSULTANTS,10/07/2014,"8,500.00"
240614E,BLUESKY SHAREPOINT CONSULTING,INV-1366,1,"8,500.00",CONSULTANTS,10/07/2014,"8,500.00"
040714C,PILLINGER CONTROLS LTD========,PI72832,1,590,STRATEGIC (NON CYCLICAL),10/07/2014,590
040714C,MARINA ROPES LTD==============,SIN022178,1,970,OPERATIONAL EQUIP-PURCHASE,10/07/2014,970
040714C,ARVAL UK LTD,VS0000985239,1,715.4,CONTRACT HIRE,10/07/2014,715.4
140735,THAMES WATER UTILITIES LTD====,07707-23316F,1,522.07,WATER & SEWERAGE RATES,14/07/2014,522.07
090714C,SAFEGUARD PEST CON. & ENV.LTD,11184,1,"1,648.00",PEST CONTROL,14/07/2014,"1,648.00"
090714C,SAFEGUARD PEST CON. & ENV.LTD,11192,1,960,PEST CONTROL,14/07/2014,960
080714C,SILVERSANDS LIMITED===========,121023,1,"4,750.00",PURCHASES-SOFTWARE,14/07/2014,"4,750.00"
020714C,HOK INTERNATIONAL LTD,13.33034.00-8,1,"2,978.92",PROFESSIONAL SERVICES,14/07/2014,"2,978.92"
080714C,KIER BUILDING SERV ENGINEERS==,13121027,1,"16,460.05",STRATEGIC (CYCLICAL),14/07/2014,"16,460.05"
080714C,KIER BUILDING SERV ENGINEERS==,13121029,1,"16,460.05",STRATEGIC (CYCLICAL),14/07/2014,"16,460.05"
800040225,*NPS (SHOES) LTD,13368,1,34.4,CLOTHING,14/07/2014,"5,259.15"
800040225,*NPS (SHOES) LTD,13368,2,34.4,CLOTHING,14/07/2014,
800040225,*NPS (SHOES) LTD,13368,3,34.4,CLOTHING,14/07/2014,
800040225,*NPS (SHOES) LTD,13368,4,30.05,CLOTHING,14/07/2014,
800040225,*NPS (SHOES) LTD,13368,5,30.05,CLOTHING,14/07/2014,
800040225,*NPS (SHOES) LTD,13368,6,30.05,CLOTHING,14/07/2014,
800040225,*NPS (SHOES) LTD,13368,7,30.05,CLOTHING,14/07/2014,
800040225,*NPS (SHOES) LTD,13368,8,30.05,CLOTHING,14/07/2014,
800040225,*NPS (SHOES) LTD,13368,9,30.05,CLOTHING,14/07/2014,
800040225,*NPS (SHOES) LTD,13368,10,30.05,CLOTHING,14/07/2014,
800040225,*NPS (SHOES) LTD,13368,11,30.05,CLOTHING,14/07/2014,
800040225,*NPS (SHOES) LTD,13368,12,30.05,CLOTHING,14/07/2014,
800040225,*NPS (SHOES) LTD,13368,13,30.05,CLOTHING,14/07/2014,
800040225,*NPS (SHOES) LTD,13368,14,30.05,CLOTHING,14/07/2014,
800040225,*NPS (SHOES) LTD,13368,15,30.05,CLOTHING,14/07/2014,
800040225,*NPS (SHOES) LTD,13368,16,30.05,CLOTHING,14/07/2014,
800040225,*NPS (SHOES) LTD,13368,17,30.05,CLOTHING,14/07/2014,
800040225,*NPS (SHOES) LTD,13368,18,30.05,CLOTHING,14/07/2014,
800040225,*NPS (SHOES) LTD,13368,19,30.05,CLOTHING,14/07/2014,
800040225,*NPS (SHOES) LTD,13368,20,30.05,CLOTHING,14/07/2014,
800040225,*NPS (SHOES) LTD,13368,21,30.05,CLOTHING,14/07/2014,
800040225,*NPS (SHOES) LTD,13368,22,30.05,CLOTHING,14/07/2014,
800040225,*NPS (SHOES) LTD,13368,23,30.05,CLOTHING,14/07/2014,
800040225,*NPS (SHOES) LTD,13368,24,29.45,CLOTHING,14/07/2014,
800040225,*NPS (SHOES) LTD,13368,25,29.45,CLOTHING,14/07/2014,
800040225,*NPS (SHOES) LTD,13368,26,29.45,CLOTHING,14/07/2014,
800040225,*NPS (SHOES) LTD,13368,27,29.45,CLOTHING,14/07/2014,
800040225,*NPS (SHOES) LTD,13368,28,29.45,CLOTHING,14/07/2014,
800040225,*NPS (SHOES) LTD,13368,29,29.45,CLOTHING,14/07/2014,
800040225,*NPS (SHOES) LTD,13368,30,29.45,CLOTHING,14/07/2014,
800040225,*NPS (SHOES) LTD,13368,31,29.45,CLOTHING,14/07/2014,
800040225,*NPS (SHOES) LTD,13368,32,29.45,CLOTHING,14/07/2014,
800040225,*NPS (SHOES) LTD,13368,33,29.45,CLOTHING,14/07/2014,
800040225,*NPS (SHOES) LTD,13368,34,29.45,CLOTHING,14/07/2014,
800040225,*NPS (SHOES) LTD,13368,35,29.45,CLOTHING,14/07/2014,
800040225,*NPS (SHOES) LTD,13368,36,29.45,CLOTHING,14/07/2014,
800040225,*NPS (SHOES) LTD,13368,37,29.45,CLOTHING,14/07/2014,
800040225,*NPS (SHOES) LTD,13368,38,29.45,CLOTHING,14/07/2014,
800040225,*NPS (SHOES) LTD,13368,39,34.4,CLOTHING,14/07/2014,
800040225,*NPS (SHOES) LTD,13368,40,41.1,CLOTHING,14/07/2014,
800040225,*NPS (SHOES) LTD,13368,41,41.1,CLOTHING,14/07/2014,
800040225,*NPS (SHOES) LTD,13368,42,41.1,CLOTHING,14/07/2014,
800040225,*NPS (SHOES) LTD,13368,43,41.1,CLOTHING,14/07/2014,
800040225,*NPS (SHOES) LTD,13368,44,41.1,CLOTHING,14/07/2014,
800040225,*NPS (SHOES) LTD,13368,45,41.1,CLOTHING,14/07/2014,
800040225,*NPS (SHOES) LTD,13368,46,41.1,CLOTHING,14/07/2014,
800040225,*NPS (SHOES) LTD,13368,47,41.1,CLOTHING,14/07/2014,
800040225,*NPS (SHOES) LTD,13368,48,30.05,CLOTHING,14/07/2014,
800040225,*NPS (SHOES) LTD,13368,49,30.05,CLOTHING,14/07/2014,
800040225,*NPS (SHOES) LTD,13368,50,30.05,CLOTHING,14/07/2014,
800040225,*NPS (SHOES) LTD,13368,51,30.05,CLOTHING,14/07/2014,
800040225,*NPS (SHOES) LTD,13368,52,30.05,CLOTHING,14/07/2014,
800040225,*NPS (SHOES) LTD,13368,53,30.05,CLOTHING,14/07/2014,
800040225,*NPS (SHOES) LTD,13368,54,30.05,CLOTHING,14/07/2014,
800040225,*NPS (SHOES) LTD,13368,55,30.05,CLOTHING,14/07/2014,
800040225,*NPS (SHOES) LTD,13368,56,30.05,CLOTHING,14/07/2014,
800040225,*NPS (SHOES) LTD,13368,57,30.05,CLOTHING,14/07/2014,
800040225,*NPS (SHOES) LTD,13368,58,30.05,CLOTHING,14/07/2014,
800040225,*NPS (SHOES) LTD,13368,59,30.05,CLOTHING,14/07/2014,
800040225,*NPS (SHOES) LTD,13368,60,30.05,CLOTHING,14/07/2014,
800040225,*NPS (SHOES) LTD,13368,61,30.05,CLOTHING,14/07/2014,
800040225,*NPS (SHOES) LTD,13368,62,30.05,CLOTHING,14/07/2014,
800040225,*NPS (SHOES) LTD,13368,63,30.05,CLOTHING,14/07/2014,
800040225,*NPS (SHOES) LTD,13368,64,30.05,CLOTHING,14/07/2014,
800040225,*NPS (SHOES) LTD,13368,65,30.05,CLOTHING,14/07/2014,
800040225,*NPS (SHOES) LTD,13368,66,30.05,CLOTHING,14/07/2014,
800040225,*NPS (SHOES) LTD,13368,67,35,CLOTHING,14/07/2014,
800040225,*NPS (SHOES) LTD,13368,68,35,CLOTHING,14/07/2014,
800040225,*NPS (SHOES) LTD,13368,69,35,CLOTHING,14/07/2014,
800040225,*NPS (SHOES) LTD,13368,70,35,CLOTHING,14/07/2014,
800040225,*NPS (SHOES) LTD,13368,71,35,CLOTHING,14/07/2014,
800040225,*NPS (SHOES) LTD,13368,72,30.05,CLOTHING,14/07/2014,
800040225,*NPS (SHOES) LTD,13368,73,30.05,CLOTHING,14/07/2014,
800040225,*NPS (SHOES) LTD,13368,74,30.05,CLOTHING,14/07/2014,
800040225,*NPS (SHOES) LTD,13368,75,30.05,CLOTHING,14/07/2014,
800040225,*NPS (SHOES) LTD,13368,76,30.05,CLOTHING,14/07/2014,
800040225,*NPS (SHOES) LTD,13368,77,29.45,CLOTHING,14/07/2014,
800040225,*NPS (SHOES) LTD,13368,78,29.45,CLOTHING,14/07/2014,
800040225,*NPS (SHOES) LTD,13368,79,29.45,CLOTHING,14/07/2014,
800040225,*NPS (SHOES) LTD,13368,80,29.45,CLOTHING,14/07/2014,
800040225,*NPS (SHOES) LTD,13368,81,29.45,CLOTHING,14/07/2014,
800040225,*NPS (SHOES) LTD,13368,82,29.45,CLOTHING,14/07/2014,
800040225,*NPS (SHOES) LTD,13368,83,29.45,CLOTHING,14/07/2014,
800040225,*NPS (SHOES) LTD,13368,84,29.45,CLOTHING,14/07/2014,
800040225,*NPS (SHOES) LTD,13368,85,29.45,CLOTHING,14/07/2014,
800040225,*NPS (SHOES) LTD,13368,86,29.45,CLOTHING,14/07/2014,
800040225,*NPS (SHOES) LTD,13368,87,29.45,CLOTHING,14/07/2014,
800040225,*NPS (SHOES) LTD,13368,88,29.45,CLOTHING,14/07/2014,
800040225,*NPS (SHOES) LTD,13368,89,34.4,CLOTHING,14/07/2014,
800040225,*NPS (SHOES) LTD,13368,90,29.45,CLOTHING,14/07/2014,
800040225,*NPS (SHOES) LTD,13368,91,41.1,CLOTHING,14/07/2014,
800040225,*NPS (SHOES) LTD,13368,92,41.1,CLOTHING,14/07/2014,
800040225,*NPS (SHOES) LTD,13368,93,30.05,CLOTHING,14/07/2014,
800040225,*NPS (SHOES) LTD,13368,94,30.05,CLOTHING,14/07/2014,
800040225,*NPS (SHOES) LTD,13368,95,30.05,CLOTHING,14/07/2014,
800040225,*NPS (SHOES) LTD,13368,96,30.05,CLOTHING,14/07/2014,
800040225,*NPS (SHOES) LTD,13368,97,30.05,CLOTHING,14/07/2014,
800040225,*NPS (SHOES) LTD,13368,98,30.05,CLOTHING,14/07/2014,
800040225,*NPS (SHOES) LTD,13368,99,30.05,CLOTHING,14/07/2014,
800040225,*NPS (SHOES) LTD,13368,100,30.05,CLOTHING,14/07/2014,
800040225,*NPS (SHOES) LTD,13368,101,30.05,CLOTHING,14/07/2014,
800040225,*NPS (SHOES) LTD,13368,102,30.05,CLOTHING,14/07/2014,
800040225,*NPS (SHOES) LTD,13368,103,30.05,CLOTHING,14/07/2014,
800040225,*NPS (SHOES) LTD,13368,104,30.05,CLOTHING,14/07/2014,
800040225,*NPS (SHOES) LTD,13368,105,30.05,CLOTHING,14/07/2014,
800040225,*NPS (SHOES) LTD,13368,106,35,CLOTHING,14/07/2014,
800040225,*NPS (SHOES) LTD,13368,107,30.05,CLOTHING,14/07/2014,
800040225,*NPS (SHOES) LTD,13368,108,29.45,CLOTHING,14/07/2014,
800040225,*NPS (SHOES) LTD,13368,109,29.45,CLOTHING,14/07/2014,
800040225,*NPS (SHOES) LTD,13368,110,29.45,CLOTHING,14/07/2014,
800040225,*NPS (SHOES) LTD,13368,111,29.45,CLOTHING,14/07/2014,
800040225,*NPS (SHOES) LTD,13368,112,29.45,CLOTHING,14/07/2014,
800040225,*NPS (SHOES) LTD,13368,113,29.45,CLOTHING,14/07/2014,
800040225,*NPS (SHOES) LTD,13368,114,29.45,CLOTHING,14/07/2014,
800040225,*NPS (SHOES) LTD,13368,115,29.45,CLOTHING,14/07/2014,
800040225,*NPS (SHOES) LTD,13368,116,29.45,CLOTHING,14/07/2014,
800040225,*NPS (SHOES) LTD,13368,117,29.45,CLOTHING,14/07/2014,
800040225,*NPS (SHOES) LTD,13368,118,29.45,CLOTHING,14/07/2014,
800040225,*NPS (SHOES) LTD,13368,119,29.45,CLOTHING,14/07/2014,
800040225,*NPS (SHOES) LTD,13368,120,34.4,CLOTHING,14/07/2014,
800040225,*NPS (SHOES) LTD,13368,121,41.1,CLOTHING,14/07/2014,
800040225,*NPS (SHOES) LTD,13368,122,41.1,CLOTHING,14/07/2014,
800040225,*NPS (SHOES) LTD,13368,123,41.1,CLOTHING,14/07/2014,
800040225,*NPS (SHOES) LTD,13368,124,41.1,CLOTHING,14/07/2014,
800040225,*NPS (SHOES) LTD,13368,125,41.1,CLOTHING,14/07/2014,
800040225,*NPS (SHOES) LTD,13368,126,41.1,CLOTHING,14/07/2014,
800040225,*NPS (SHOES) LTD,13368,127,28.45,CLOTHING,14/07/2014,
800040225,*NPS (SHOES) LTD,13368,128,28.45,CLOTHING,14/07/2014,
800040225,*NPS (SHOES) LTD,13368,129,28.45,CLOTHING,14/07/2014,
800040225,*NPS (SHOES) LTD,13368,130,28.45,CLOTHING,14/07/2014,
800040225,*NPS (SHOES) LTD,13368,131,28.45,CLOTHING,14/07/2014,
800040225,*NPS (SHOES) LTD,13368,132,30.05,CLOTHING,14/07/2014,
800040225,*NPS (SHOES) LTD,13368,133,30.05,CLOTHING,14/07/2014,
800040225,*NPS (SHOES) LTD,13368,134,30.05,CLOTHING,14/07/2014,
800040225,*NPS (SHOES) LTD,13368,135,30.05,CLOTHING,14/07/2014,
800040225,*NPS (SHOES) LTD,13368,136,30.05,CLOTHING,14/07/2014,
800040225,*NPS (SHOES) LTD,13368,137,30.05,CLOTHING,14/07/2014,
800040225,*NPS (SHOES) LTD,13368,138,30.05,CLOTHING,14/07/2014,
800040225,*NPS (SHOES) LTD,13368,139,30.05,CLOTHING,14/07/2014,
800040225,*NPS (SHOES) LTD,13368,140,30.05,CLOTHING,14/07/2014,
800040225,*NPS (SHOES) LTD,13368,141,30.05,CLOTHING,14/07/2014,
800040225,*NPS (SHOES) LTD,13368,142,30.05,CLOTHING,14/07/2014,
800040225,*NPS (SHOES) LTD,13368,143,30.05,CLOTHING,14/07/2014,
800040225,*NPS (SHOES) LTD,13368,144,35,CLOTHING,14/07/2014,
800040225,*NPS (SHOES) LTD,13368,145,30.05,CLOTHING,14/07/2014,
800040225,*NPS (SHOES) LTD,13368,146,30.05,CLOTHING,14/07/2014,
800040225,*NPS (SHOES) LTD,13368,147,30.05,CLOTHING,14/07/2014,
800040225,*NPS (SHOES) LTD,13368,148,30.05,CLOTHING,14/07/2014,
800040225,*NPS (SHOES) LTD,13368,149,30.05,CLOTHING,14/07/2014,
800040225,*NPS (SHOES) LTD,13368,150,29.45,CLOTHING,14/07/2014,
800040225,*NPS (SHOES) LTD,13368,151,29.45,CLOTHING,14/07/2014,
800040225,*NPS (SHOES) LTD,13368,152,29.45,CLOTHING,14/07/2014,
800040225,*NPS (SHOES) LTD,13368,153,29.45,CLOTHING,14/07/2014,
800040225,*NPS (SHOES) LTD,13368,154,29.45,CLOTHING,14/07/2014,
800040225,*NPS (SHOES) LTD,13368,155,29.45,CLOTHING,14/07/2014,
800040225,*NPS (SHOES) LTD,13368,156,29.45,CLOTHING,14/07/2014,
800040225,*NPS (SHOES) LTD,13368,157,29.45,CLOTHING,14/07/2014,
800040225,*NPS (SHOES) LTD,13368,158,29.45,CLOTHING,14/07/2014,
800040225,*NPS (SHOES) LTD,13368,159,29.45,CLOTHING,14/07/2014,
800040225,*NPS (SHOES) LTD,13368,160,29.45,CLOTHING,14/07/2014,
800040225,*NPS (SHOES) LTD,13368,161,29.45,CLOTHING,14/07/2014,
800040225,*NPS (SHOES) LTD,13368,162,29.45,CLOTHING,14/07/2014,
800040225,*NPS (SHOES) LTD,13368,163,29.45,CLOTHING,14/07/2014,
800040225,*NPS (SHOES) LTD,13368,164,29.45,CLOTHING,14/07/2014,
800040225,*NPS (SHOES) LTD,13368,165,29.45,CLOTHING,14/07/2014,
800040225,*NPS (SHOES) LTD,13368,166,29.45,CLOTHING,14/07/2014,
800040225,*NPS (SHOES) LTD,13368,167,34.4,CLOTHING,14/07/2014,
800040225,*NPS (SHOES) LTD,13368,168,41.1,CLOTHING,14/07/2014,
270614C,DYSLEXIA ACTION,170026,1,525,LEARNING SUPPORT,14/07/2014,525
140735,EDF ENERGY===================,1785676850,1,"1,035.57",ELECTRICITY,14/07/2014,"1,035.57"
140735,EDF ENERGY===================,1785907945,1,"2,042.81",ELECTRICITY,14/07/2014,"2,042.81"
140735,EDF ENERGY===================,1786209546,1,"8,372.74",ELECTRICITY,14/07/2014,"8,372.74"
140735,EDF ENERGY===================,1786484446,1,322.75,ELECTRICITY,14/07/2014,"3,227.48"
140735,EDF ENERGY===================,1786484446,2,"2,904.73",ELECTRICITY,14/07/2014,
140735,EDF ENERGY===================,1793376243,1,"10,953.62",ELECTRICITY,14/07/2014,"10,953.62"
140735,EDF ENERGY===================,1813823638,1,"15,327.42",ELECTRICITY,14/07/2014,"15,327.42"
080714E,BUSINESS CONTINUITY TRAINING,1871,1,"1,905.00",PROFESSIONAL DEVELOPMENT,14/07/2014,"1,905.00"
080714E,GEORGE JONES & SON LTD========,197,1,"19,094.00",STRATEGIC (NON CYCLICAL),14/07/2014,"35,649.60"
080714E,GEORGE JONES & SON LTD========,197,2,"16,555.60",STRATEGIC (NON CYCLICAL),14/07/2014,
080714E,GRADIENT CONSULTANTS LLP======,2077,1,290,ASBESTOS,14/07/2014,"13,335.00"
080714E,GRADIENT CONSULTANTS LLP======,2077,2,290,ASBESTOS,14/07/2014,
080714E,GRADIENT CONSULTANTS LLP======,2077,3,250,ASBESTOS,14/07/2014,
080714E,GRADIENT CONSULTANTS LLP======,2077,4,187.5,ASBESTOS,14/07/2014,
080714E,GRADIENT CONSULTANTS LLP======,2077,5,545,ASBESTOS,14/07/2014,
080714E,GRADIENT CONSULTANTS LLP======,2077,6,250,ASBESTOS,14/07/2014,
080714E,GRADIENT CONSULTANTS LLP======,2077,7,48.75,ASBESTOS,14/07/2014,
080714E,GRADIENT CONSULTANTS LLP======,2077,8,62.5,ASBESTOS,14/07/2014,
080714E,GRADIENT CONSULTANTS LLP======,2077,9,55,ASBESTOS,14/07/2014,
080714E,GRADIENT CONSULTANTS LLP======,2077,10,55,ASBESTOS,14/07/2014,
080714E,GRADIENT CONSULTANTS LLP======,2077,11,55,ASBESTOS,14/07/2014,
080714E,GRADIENT CONSULTANTS LLP======,2077,12,97.5,ASBESTOS,14/07/2014,
080714E,GRADIENT CONSULTANTS LLP======,2077,13,195,ASBESTOS,14/07/2014,
080714E,GRADIENT CONSULTANTS LLP======,2077,14,62.5,ASBESTOS,14/07/2014,
080714E,GRADIENT CONSULTANTS LLP======,2077,15,62.5,ASBESTOS,14/07/2014,
080714E,GRADIENT CONSULTANTS LLP======,2077,16,195,ASBESTOS,14/07/2014,
080714E,GRADIENT CONSULTANTS LLP======,2077,17,62.5,ASBESTOS,14/07/2014,
080714E,GRADIENT CONSULTANTS LLP======,2077,18,62.5,ASBESTOS,14/07/2014,
080714E,GRADIENT CONSULTANTS LLP======,2077,19,48.75,ASBESTOS,14/07/2014,
080714E,GRADIENT CONSULTANTS LLP======,2077,20,195,ASBESTOS,14/07/2014,
080714E,GRADIENT CONSULTANTS LLP======,2077,21,290,ASBESTOS,14/07/2014,
080714E,GRADIENT CONSULTANTS LLP======,2077,22,55,ASBESTOS,14/07/2014,
080714E,GRADIENT CONSULTANTS LLP======,2077,23,55,ASBESTOS,14/07/2014,
080714E,GRADIENT CONSULTANTS LLP======,2077,24,195,ASBESTOS,14/07/2014,
080714E,GRADIENT CONSULTANTS LLP======,2077,25,195,ASBESTOS,14/07/2014,
080714E,GRADIENT CONSULTANTS LLP======,2077,26,55,ASBESTOS,14/07/2014,
080714E,GRADIENT CONSULTANTS LLP======,2077,27,62.5,ASBESTOS,14/07/2014,
080714E,GRADIENT CONSULTANTS LLP======,2077,28,55,ASBESTOS,14/07/2014,
080714E,GRADIENT CONSULTANTS LLP======,2077,29,195,ASBESTOS,14/07/2014,
080714E,GRADIENT CONSULTANTS LLP======,2077,30,290,ASBESTOS,14/07/2014,
080714E,GRADIENT CONSULTANTS LLP======,2077,31,55,ASBESTOS,14/07/2014,
080714E,GRADIENT CONSULTANTS LLP======,2077,32,195,ASBESTOS,14/07/2014,
080714E,GRADIENT CONSULTANTS LLP======,2077,33,482.5,ASBESTOS,14/07/2014,
080714E,GRADIENT CONSULTANTS LLP======,2077,34,300,ASBESTOS,14/07/2014,
080714E,GRADIENT CONSULTANTS LLP======,2077,35,55,ASBESTOS,14/07/2014,
080714E,GRADIENT CONSULTANTS LLP======,2077,36,195,ASBESTOS,14/07/2014,
080714E,GRADIENT CONSULTANTS LLP======,2077,37,55,ASBESTOS,14/07/2014,
080714E,GRADIENT CONSULTANTS LLP======,2077,38,62.5,ASBESTOS,14/07/2014,
080714E,GRADIENT CONSULTANTS LLP======,2077,39,290,ASBESTOS,14/07/2014,
080714E,GRADIENT CONSULTANTS LLP======,2077,40,320,ASBESTOS,14/07/2014,
080714E,GRADIENT CONSULTANTS LLP======,2077,41,97.5,ASBESTOS,14/07/2014,
080714E,GRADIENT CONSULTANTS LLP======,2077,42,290,ASBESTOS,14/07/2014,
080714E,GRADIENT CONSULTANTS LLP======,2077,43,120,ASBESTOS,14/07/2014,
080714E,GRADIENT CONSULTANTS LLP======,2077,44,320,ASBESTOS,14/07/2014,
080714E,GRADIENT CONSULTANTS LLP======,2077,45,290,ASBESTOS,14/07/2014,
080714E,GRADIENT CONSULTANTS LLP======,2077,46,55,ASBESTOS,14/07/2014,
080714E,GRADIENT CONSULTANTS LLP======,2077,47,55,ASBESTOS,14/07/2014,
080714E,GRADIENT CONSULTANTS LLP======,2077,48,482.5,ASBESTOS,14/07/2014,
080714E,GRADIENT CONSULTANTS LLP======,2077,49,48.75,ASBESTOS,14/07/2014,
080714E,GRADIENT CONSULTANTS LLP======,2077,50,97.5,ASBESTOS,14/07/2014,
080714E,GRADIENT CONSULTANTS LLP======,2077,51,55,ASBESTOS,14/07/2014,
080714E,GRADIENT CONSULTANTS LLP======,2077,52,250,ASBESTOS,14/07/2014,
080714E,GRADIENT CONSULTANTS LLP======,2077,53,55,ASBESTOS,14/07/2014,
080714E,GRADIENT CONSULTANTS LLP======,2077,54,55,ASBESTOS,14/07/2014,
080714E,GRADIENT CONSULTANTS LLP======,2077,55,195,ASBESTOS,14/07/2014,
080714E,GRADIENT CONSULTANTS LLP======,2077,56,97.5,ASBESTOS,14/07/2014,
080714E,GRADIENT CONSULTANTS LLP======,2077,57,250,ASBESTOS,14/07/2014,
080714E,GRADIENT CONSULTANTS LLP======,2077,58,195,ASBESTOS,14/07/2014,
080714E,GRADIENT CONSULTANTS LLP======,2077,59,48.75,ASBESTOS,14/07/2014,
080714E,GRADIENT CONSULTANTS LLP======,2077,60,195,ASBESTOS,14/07/2014,
080714E,GRADIENT CONSULTANTS LLP======,2077,61,195,ASBESTOS,14/07/2014,
080714E,GRADIENT CONSULTANTS LLP======,2077,62,290,ASBESTOS,14/07/2014,
080714E,GRADIENT CONSULTANTS LLP======,2077,63,290,ASBESTOS,14/07/2014,
080714E,GRADIENT CONSULTANTS LLP======,2077,64,195,ASBESTOS,14/07/2014,
080714E,GRADIENT CONSULTANTS LLP======,2077,65,187.5,ASBESTOS,14/07/2014,
080714E,GRADIENT CONSULTANTS LLP======,2077,66,187.5,ASBESTOS,14/07/2014,
080714E,GRADIENT CONSULTANTS LLP======,2077,67,290,ASBESTOS,14/07/2014,
080714E,GRADIENT CONSULTANTS LLP======,2077,68,203,ASBESTOS,14/07/2014,
080714E,GRADIENT CONSULTANTS LLP======,2077,69,203,ASBESTOS,14/07/2014,
080714E,GRADIENT CONSULTANTS LLP======,2077,70,203,ASBESTOS,14/07/2014,
080714E,GRADIENT CONSULTANTS LLP======,2077,71,203,ASBESTOS,14/07/2014,
080714E,GRADIENT CONSULTANTS LLP======,2077,72,203,ASBESTOS,14/07/2014,
080714E,GRADIENT CONSULTANTS LLP======,2077,73,195,ASBESTOS,14/07/2014,
080714E,GRADIENT CONSULTANTS LLP======,2077,74,55,ASBESTOS,14/07/2014,
080714E,GRADIENT CONSULTANTS LLP======,2077,75,55,ASBESTOS,14/07/2014,
080714E,GRADIENT CONSULTANTS LLP======,2077,76,55,ASBESTOS,14/07/2014,
080714E,GRADIENT CONSULTANTS LLP======,2077,77,545,ASBESTOS,14/07/2014,
100714F,RIBBLE ENVIRO LTD=============,21177,1,160.1,OPERATIONAL EQUIP-PURCHASE,14/07/2014,250.97
100714F,RIBBLE ENVIRO LTD=============,21177,2,90.87,OPERATIONAL EQUIP-PURCHASE,14/07/2014,
090714C,B NOKES CONTRACTS LTD,2266,1,420,TACTICAL DAY TO DAY,14/07/2014,420
080714E,MBL SEMINARS=================,234045,1,460,PROFESSIONAL DEVELOPMENT,14/07/2014,460
090714C,BRITISH TELECOM===============,25697705Q052,1,"69,693.06",TELECOMMUNICATIONS,14/07/2014,"69,693.06"
800040509,ADECCO UK LIMITED=============,26839576,1,261.53,FRS STAFF AGENCY,14/07/2014,261.53
800040511,ADECCO UK LIMITED=============,26839578,1,612.15,FRS STAFF AGENCY,14/07/2014,612.15
800040512,ADECCO UK LIMITED=============,26839579,1,775.39,FRS STAFF AGENCY,14/07/2014,775.39
800040513,ADECCO UK LIMITED=============,26839580,1,276.24,FRS STAFF AGENCY,14/07/2014,276.24
800040514,ADECCO UK LIMITED=============,26839581,1,472.23,FRS STAFF AGENCY,14/07/2014,472.23
800040515,ADECCO UK LIMITED=============,26839582,1,729.36,FRS STAFF AGENCY,14/07/2014,729.36
800040516,ADECCO UK LIMITED=============,26839583,1,612.15,FRS STAFF AGENCY,14/07/2014,612.15
800040518,ADECCO UK LIMITED=============,26839585,1,263.76,FRS STAFF AGENCY,14/07/2014,263.76
800040519,ADECCO UK LIMITED=============,26839586,1,439.6,FRS STAFF AGENCY,14/07/2014,439.6
800040520,ADECCO UK LIMITED=============,26839587,1,351.68,FRS STAFF AGENCY,14/07/2014,351.68
800040521,ADECCO UK LIMITED=============,26839588,1,439.6,FRS STAFF AGENCY,14/07/2014,439.6
800040522,ADECCO UK LIMITED=============,26839589,1,439.6,FRS STAFF AGENCY,14/07/2014,439.6
800040523,ADECCO UK LIMITED=============,26839590,1,"1,242.65",FRS STAFF AGENCY,14/07/2014,"1,242.65"
800040524,ADECCO UK LIMITED=============,26839591,1,612.15,FRS STAFF AGENCY,14/07/2014,612.15
800040525,ADECCO UK LIMITED=============,26839592,1,612.15,FRS STAFF AGENCY,14/07/2014,612.15
800040526,ADECCO UK LIMITED=============,26839593,1,612.15,FRS STAFF AGENCY,14/07/2014,612.15
800040527,ADECCO UK LIMITED=============,26839594,1,"1,270.34",FRS STAFF AGENCY,14/07/2014,"1,270.34"
800040528,ADECCO UK LIMITED=============,26839595,1,"1,949.85",FRS STAFF AGENCY,14/07/2014,"1,949.85"
800040531,ADECCO UK LIMITED=============,26839598,1,942.2,FRS STAFF AGENCY,14/07/2014,942.2
800040535,ADECCO UK LIMITED=============,26839602,1,439.6,FRS STAFF AGENCY,14/07/2014,439.6
020714C,AECOM LIMITED=================,28193632,1,495.54,PROFESSIONAL SERVICES,14/07/2014,495.54
080714E,S W BRUCE & CO LTD,30414,1,"14,197.18",DEVELOPMENT  EXPENSES-CONTRACT,14/07/2014,"14,197.18"
080714C,EVOLUTION ENVIRONMENTAL LTD,3185,1,305,ASBESTOS,14/07/2014,490
080714C,EVOLUTION ENVIRONMENTAL LTD,3185,2,185,ASBESTOS,14/07/2014,
090714C,MCGRATH BROS (WASTE CONTROL) L,326983,1,297.22,REFUSE COLLECTION,14/07/2014,"17,393.24"
090714C,MCGRATH BROS (WASTE CONTROL) L,326983,2,119.4,REFUSE COLLECTION,14/07/2014,
090714C,MCGRATH BROS (WASTE CONTROL) L,326983,3,223.92,REFUSE COLLECTION,14/07/2014,
090714C,MCGRATH BROS (WASTE CONTROL) L,326983,4,82.04,REFUSE COLLECTION,14/07/2014,
090714C,MCGRATH BROS (WASTE CONTROL) L,326983,5,119.4,REFUSE COLLECTION,14/07/2014,
090714C,MCGRATH BROS (WASTE CONTROL) L,326983,6,82.04,REFUSE COLLECTION,14/07/2014,
090714C,MCGRATH BROS (WASTE CONTROL) L,326983,7,36.65,REFUSE COLLECTION,14/07/2014,
090714C,MCGRATH BROS (WASTE CONTROL) L,326983,8,159.6,REFUSE COLLECTION,14/07/2014,
090714C,MCGRATH BROS (WASTE CONTROL) L,326983,9,131.16,REFUSE COLLECTION,14/07/2014,
090714C,MCGRATH BROS (WASTE CONTROL) L,326983,10,94.51,REFUSE COLLECTION,14/07/2014,
090714C,MCGRATH BROS (WASTE CONTROL) L,326983,11,29.32,REFUSE COLLECTION,14/07/2014,
090714C,MCGRATH BROS (WASTE CONTROL) L,326983,12,130.28,REFUSE COLLECTION,14/07/2014,
090714C,MCGRATH BROS (WASTE CONTROL) L,326983,13,151.56,REFUSE COLLECTION,14/07/2014,
090714C,MCGRATH BROS (WASTE CONTROL) L,326983,14,297.22,REFUSE COLLECTION,14/07/2014,
090714C,MCGRATH BROS (WASTE CONTROL) L,326983,15,111.36,REFUSE COLLECTION,14/07/2014,
090714C,MCGRATH BROS (WASTE CONTROL) L,326983,16,297.22,REFUSE COLLECTION,14/07/2014,
090714C,MCGRATH BROS (WASTE CONTROL) L,326983,17,82.04,REFUSE COLLECTION,14/07/2014,
090714C,MCGRATH BROS (WASTE CONTROL) L,326983,18,297.22,REFUSE COLLECTION,14/07/2014,
090714C,MCGRATH BROS (WASTE CONTROL) L,326983,19,29.32,REFUSE COLLECTION,14/07/2014,
090714C,MCGRATH BROS (WASTE CONTROL) L,326983,20,369.58,REFUSE COLLECTION,14/07/2014,
090714C,MCGRATH BROS (WASTE CONTROL) L,326983,21,158.89,REFUSE COLLECTION,14/07/2014,
090714C,MCGRATH BROS (WASTE CONTROL) L,326983,22,82.04,REFUSE COLLECTION,14/07/2014,
090714C,MCGRATH BROS (WASTE CONTROL) L,326983,23,82.04,REFUSE COLLECTION,14/07/2014,
090714C,MCGRATH BROS (WASTE CONTROL) L,326983,24,90.08,REFUSE COLLECTION,14/07/2014,
090714C,MCGRATH BROS (WASTE CONTROL) L,326983,25,29.32,REFUSE COLLECTION,14/07/2014,
090714C,MCGRATH BROS (WASTE CONTROL) L,326983,26,111.36,REFUSE COLLECTION,14/07/2014,
090714C,MCGRATH BROS (WASTE CONTROL) L,326983,27,94.51,REFUSE COLLECTION,14/07/2014,
090714C,MCGRATH BROS (WASTE CONTROL) L,326983,28,297.22,REFUSE COLLECTION,14/07/2014,
090714C,MCGRATH BROS (WASTE CONTROL) L,326983,29,216.82,REFUSE COLLECTION,14/07/2014,
090714C,MCGRATH BROS (WASTE CONTROL) L,326983,30,82.04,REFUSE COLLECTION,14/07/2014,
090714C,MCGRATH BROS (WASTE CONTROL) L,326983,31,111.36,REFUSE COLLECTION,14/07/2014,
090714C,MCGRATH BROS (WASTE CONTROL) L,326983,32,302.36,REFUSE COLLECTION,14/07/2014,
090714C,MCGRATH BROS (WASTE CONTROL) L,326983,33,111.36,REFUSE COLLECTION,14/07/2014,
090714C,MCGRATH BROS (WASTE CONTROL) L,326983,34,111.36,REFUSE COLLECTION,14/07/2014,
090714C,MCGRATH BROS (WASTE CONTROL) L,326983,35,163.32,REFUSE COLLECTION,14/07/2014,
090714C,MCGRATH BROS (WASTE CONTROL) L,326983,36,131.16,REFUSE COLLECTION,14/07/2014,
090714C,MCGRATH BROS (WASTE CONTROL) L,326983,37,159.6,REFUSE COLLECTION,14/07/2014,
090714C,MCGRATH BROS (WASTE CONTROL) L,326983,38,114.2,REFUSE COLLECTION,14/07/2014,
090714C,MCGRATH BROS (WASTE CONTROL) L,326983,39,102.55,REFUSE COLLECTION,14/07/2014,
090714C,MCGRATH BROS (WASTE CONTROL) L,326983,40,216.82,REFUSE COLLECTION,14/07/2014,
090714C,MCGRATH BROS (WASTE CONTROL) L,326983,41,216.82,REFUSE COLLECTION,14/07/2014,
090714C,MCGRATH BROS (WASTE CONTROL) L,326983,42,111.36,REFUSE COLLECTION,14/07/2014,
090714C,MCGRATH BROS (WASTE CONTROL) L,326983,43,82.04,REFUSE COLLECTION,14/07/2014,
090714C,MCGRATH BROS (WASTE CONTROL) L,326983,44,94.51,REFUSE COLLECTION,14/07/2014,
090714C,MCGRATH BROS (WASTE CONTROL) L,326983,45,297.22,REFUSE COLLECTION,14/07/2014,
090714C,MCGRATH BROS (WASTE CONTROL) L,326983,46,221.96,REFUSE COLLECTION,14/07/2014,
090714C,MCGRATH BROS (WASTE CONTROL) L,326983,47,111.36,REFUSE COLLECTION,14/07/2014,
090714C,MCGRATH BROS (WASTE CONTROL) L,326983,48,102.55,REFUSE COLLECTION,14/07/2014,
090714C,MCGRATH BROS (WASTE CONTROL) L,326983,49,90.08,REFUSE COLLECTION,14/07/2014,
090714C,MCGRATH BROS (WASTE CONTROL) L,326983,50,111.36,REFUSE COLLECTION,14/07/2014,
090714C,MCGRATH BROS (WASTE CONTROL) L,326983,51,297.22,REFUSE COLLECTION,14/07/2014,
090714C,MCGRATH BROS (WASTE CONTROL) L,326983,52,82.04,REFUSE COLLECTION,14/07/2014,
090714C,MCGRATH BROS (WASTE CONTROL) L,326983,53,82.04,REFUSE COLLECTION,14/07/2014,
090714C,MCGRATH BROS (WASTE CONTROL) L,326983,54,111.36,REFUSE COLLECTION,14/07/2014,
090714C,MCGRATH BROS (WASTE CONTROL) L,326983,55,36.65,REFUSE COLLECTION,14/07/2014,
090714C,MCGRATH BROS (WASTE CONTROL) L,326983,56,130.28,REFUSE COLLECTION,14/07/2014,
090714C,MCGRATH BROS (WASTE CONTROL) L,326983,57,29.32,REFUSE COLLECTION,14/07/2014,
090714C,MCGRATH BROS (WASTE CONTROL) L,326983,58,143.52,REFUSE COLLECTION,14/07/2014,
090714C,MCGRATH BROS (WASTE CONTROL) L,326983,59,94.51,REFUSE COLLECTION,14/07/2014,
090714C,MCGRATH BROS (WASTE CONTROL) L,326983,60,302.36,REFUSE COLLECTION,14/07/2014,
090714C,MCGRATH BROS (WASTE CONTROL) L,326983,61,111.36,REFUSE COLLECTION,14/07/2014,
090714C,MCGRATH BROS (WASTE CONTROL) L,326983,62,111.36,REFUSE COLLECTION,14/07/2014,
090714C,MCGRATH BROS (WASTE CONTROL) L,326983,63,82.04,REFUSE COLLECTION,14/07/2014,
090714C,MCGRATH BROS (WASTE CONTROL) L,326983,64,282.56,REFUSE COLLECTION,14/07/2014,
090714C,MCGRATH BROS (WASTE CONTROL) L,326983,65,90.08,REFUSE COLLECTION,14/07/2014,
090714C,MCGRATH BROS (WASTE CONTROL) L,326983,66,302.36,REFUSE COLLECTION,14/07/2014,
090714C,MCGRATH BROS (WASTE CONTROL) L,326983,67,90.08,REFUSE COLLECTION,14/07/2014,
090714C,MCGRATH BROS (WASTE CONTROL) L,326983,68,119.4,REFUSE COLLECTION,14/07/2014,
090714C,MCGRATH BROS (WASTE CONTROL) L,326983,69,111.36,REFUSE COLLECTION,14/07/2014,
090714C,MCGRATH BROS (WASTE CONTROL) L,326983,70,111.36,REFUSE COLLECTION,14/07/2014,
090714C,MCGRATH BROS (WASTE CONTROL) L,326983,71,94.51,REFUSE COLLECTION,14/07/2014,
090714C,MCGRATH BROS (WASTE CONTROL) L,326983,72,317.78,REFUSE COLLECTION,14/07/2014,
090714C,MCGRATH BROS (WASTE CONTROL) L,326983,73,82.04,REFUSE COLLECTION,14/07/2014,
090714C,MCGRATH BROS (WASTE CONTROL) L,326983,74,111.36,REFUSE COLLECTION,14/07/2014,
090714C,MCGRATH BROS (WASTE CONTROL) L,326983,75,131.16,REFUSE COLLECTION,14/07/2014,
090714C,MCGRATH BROS (WASTE CONTROL) L,326983,76,130.28,REFUSE COLLECTION,14/07/2014,
090714C,MCGRATH BROS (WASTE CONTROL) L,326983,77,90.08,REFUSE COLLECTION,14/07/2014,
090714C,MCGRATH BROS (WASTE CONTROL) L,326983,78,82.04,REFUSE COLLECTION,14/07/2014,
090714C,MCGRATH BROS (WASTE CONTROL) L,326983,79,90.08,REFUSE COLLECTION,14/07/2014,
090714C,MCGRATH BROS (WASTE CONTROL) L,326983,80,82.04,REFUSE COLLECTION,14/07/2014,
090714C,MCGRATH BROS (WASTE CONTROL) L,326983,81,297.22,REFUSE COLLECTION,14/07/2014,
090714C,MCGRATH BROS (WASTE CONTROL) L,326983,82,297.22,REFUSE COLLECTION,14/07/2014,
090714C,MCGRATH BROS (WASTE CONTROL) L,326983,83,111.36,REFUSE COLLECTION,14/07/2014,
090714C,MCGRATH BROS (WASTE CONTROL) L,326983,84,29.32,REFUSE COLLECTION,14/07/2014,
090714C,MCGRATH BROS (WASTE CONTROL) L,326983,85,114.2,REFUSE COLLECTION,14/07/2014,
090714C,MCGRATH BROS (WASTE CONTROL) L,326983,86,131.16,REFUSE COLLECTION,14/07/2014,
090714C,MCGRATH BROS (WASTE CONTROL) L,326983,87,82.04,REFUSE COLLECTION,14/07/2014,
090714C,MCGRATH BROS (WASTE CONTROL) L,326983,88,530.23,REFUSE COLLECTION,14/07/2014,
090714C,MCGRATH BROS (WASTE CONTROL) L,326983,89,82.04,REFUSE COLLECTION,14/07/2014,
090714C,MCGRATH BROS (WASTE CONTROL) L,326983,90,94.51,REFUSE COLLECTION,14/07/2014,
090714C,MCGRATH BROS (WASTE CONTROL) L,326983,91,297.22,REFUSE COLLECTION,14/07/2014,
090714C,MCGRATH BROS (WASTE CONTROL) L,326983,92,90.08,REFUSE COLLECTION,14/07/2014,
090714C,MCGRATH BROS (WASTE CONTROL) L,326983,93,119.4,REFUSE COLLECTION,14/07/2014,
090714C,MCGRATH BROS (WASTE CONTROL) L,326983,94,119.4,REFUSE COLLECTION,14/07/2014,
090714C,MCGRATH BROS (WASTE CONTROL) L,326983,95,297.22,REFUSE COLLECTION,14/07/2014,
090714C,MCGRATH BROS (WASTE CONTROL) L,326983,96,118.69,REFUSE COLLECTION,14/07/2014,
090714C,MCGRATH BROS (WASTE CONTROL) L,326983,97,"1,627.02",REFUSE COLLECTION,14/07/2014,
090714C,MCGRATH BROS (WASTE CONTROL) L,326983,98,90.08,REFUSE COLLECTION,14/07/2014,
090714C,MCGRATH BROS (WASTE CONTROL) L,326983,99,119.4,REFUSE COLLECTION,14/07/2014,
090714C,MCGRATH BROS (WASTE CONTROL) L,326983,100,119.4,REFUSE COLLECTION,14/07/2014,
090714C,MCGRATH BROS (WASTE CONTROL) L,326983,101,301.7,REFUSE COLLECTION,14/07/2014,
090714C,MCGRATH BROS (WASTE CONTROL) L,326983,102,102.55,REFUSE COLLECTION,14/07/2014,
090714C,MCGRATH BROS (WASTE CONTROL) L,326983,103,114.2,REFUSE COLLECTION,14/07/2014,
090714C,MCGRATH BROS (WASTE CONTROL) L,326983,104,111.36,REFUSE COLLECTION,14/07/2014,
090714C,MCGRATH BROS (WASTE CONTROL) L,326983,105,21.99,REFUSE COLLECTION,14/07/2014,
090714C,MCGRATH BROS (WASTE CONTROL) L,326983,106,119.4,REFUSE COLLECTION,14/07/2014,
090714C,MCGRATH BROS (WASTE CONTROL) L,326983,107,111.36,REFUSE COLLECTION,14/07/2014,
090714C,MCGRATH BROS (WASTE CONTROL) L,326983,108,130.28,REFUSE COLLECTION,14/07/2014,
090714C,MCGRATH BROS (WASTE CONTROL) L,326983,109,102.55,REFUSE COLLECTION,14/07/2014,
090714C,MCGRATH BROS (WASTE CONTROL) L,326983,110,90.08,REFUSE COLLECTION,14/07/2014,
090714C,MCGRATH BROS (WASTE CONTROL) L,326983,111,36.65,REFUSE COLLECTION,14/07/2014,
090714C,MCGRATH BROS (WASTE CONTROL) L,326983,112,102.55,REFUSE COLLECTION,14/07/2014,
090714C,MCGRATH BROS (WASTE CONTROL) L,328445,1,432.7,REFUSE COLLECTION,14/07/2014,432.7
090714C,MCGRATH BROS (WASTE CONTROL) L,328446,1,559.9,REFUSE COLLECTION,14/07/2014,559.9
090714C,MCGRATH BROS (WASTE CONTROL) L,328448,1,355.4,REFUSE COLLECTION,14/07/2014,355.4
090714C,MCGRATH BROS (WASTE CONTROL) L,328449,1,450,REFUSE COLLECTION,14/07/2014,450
090714C,MCGRATH BROS (WASTE CONTROL) L,328458,1,451.8,REFUSE COLLECTION,14/07/2014,451.8
090714C,UKDN WATERFLOW BEXLEYHEATH,36455,1,486,TACTICAL DAY TO DAY,14/07/2014,486
090714C,CANON (UK) LTD===============,401501933,1,"1,762.92",OFFICE EQUIPMENT,14/07/2014,"1,942.05"
090714C,CANON (UK) LTD===============,401501933,2,179.13,OFFICE EQUIPMENT,14/07/2014,
080714E,CANON (UK) LTD===============,401537090,1,351.11,OFFICE EQUIPMENT,14/07/2014,351.11
090714C,CANON (UK) LTD===============,401541780,1,"2,088.88",OFFICE EQUIPMENT,14/07/2014,"2,088.88"
080714E,KNIGHTON CLEANING SERVICES LTD,41264,1,"1,422.93",HYGIENE,14/07/2014,"1,422.93"
080714C,STONEWALL EQUALITY LIMITED====,44264,1,"2,500.00",SUBSCRIPTIONS,14/07/2014,"2,500.00"
020714C,MITIE SECURITY (LONDON) LTD===,45/558992,1,"8,242.64",PREMISES SECURITY,14/07/2014,"8,242.64"
080714C,CORE SURVEYSLTD===============,5659,1,850,ASBESTOS,14/07/2014,850
080714E,URS SCOTT WILSON LIMITED,5873455,1,291.76,PROF FEES-MISCELLANEOUS,14/07/2014,"9,796.43"
080714E,URS SCOTT WILSON LIMITED,5873455,2,"9,504.67",PROF FEES-MISCELLANEOUS,14/07/2014,
030714F,TOYOTA MATERIAL HANDLING UK LT,610125300,1,909.99,PURCHASE,14/07/2014,909.99
090714C,C P GREGORY & ASSOCIATES LTD==,622,1,"1,320.00",PROFESSIONAL DEVELOPMENT,14/07/2014,"1,320.00"
140735,THAMES WATER UTILITIES LTD====,6395955189Y,1,416.51,WATER & SEWERAGE RATES,14/07/2014,416.51
140735,THAMES WATER UTILITIES LTD====,6514996346/,1,361.84,WATER & SEWERAGE RATES,14/07/2014,361.84
080714E,SWEETT  UK LTD,7036409,1,599.37,PROF FEES-MISCELLANEOUS,14/07/2014,599.37
300614G,COLLEGE OF POLICING,90016506,1,571,PROFESSIONAL DEVELOPMENT,14/07/2014,571
270614C,CAPITA SECURE INFO SOLUTIONS,93729088,1,"13,250.00",STRATEGIC (NON CYCLICAL),14/07/2014,"13,250.00"
140735,THAMES WATER UTILITIES LTD====,98709-62314#,1,346.18,WATER & SEWERAGE RATES,14/07/2014,346.18
080714E,LG BLAND ELECTRICAL & MECHANIC,B45042,1,226.07,DEVELOPMENT  EXPENSES-CONTRACT,14/07/2014,"1,130.35"
080714E,LG BLAND ELECTRICAL & MECHANIC,B45042,2,904.28,DEVELOPMENT  EXPENSES-CONTRACT,14/07/2014,
040714C,*GRAFTON MERCHANTING GB LTD,CRO/348936,1,8.8,OPERATIONAL EQUIP-PURCHASE,14/07/2014,305.64
040714C,*GRAFTON MERCHANTING GB LTD,CRO/348936,2,8.8,OPERATIONAL EQUIP-PURCHASE,14/07/2014,
040714C,*GRAFTON MERCHANTING GB LTD,CRO/348936,3,8.8,OPERATIONAL EQUIP-PURCHASE,14/07/2014,
040714C,*GRAFTON MERCHANTING GB LTD,CRO/348936,4,279.24,OPERATIONAL EQUIP-PURCHASE,14/07/2014,
100714F,CFOA (SERVICES) LTD===========,CSL13946,1,"4,456.00",GENERAL,14/07/2014,"4,456.00"
080714E,CFOA (SERVICES) LTD===========,CSL13955,1,315,PROFESSIONAL DEVELOPMENT,14/07/2014,315
100714F,CFOA (SERVICES) LTD===========,CSL13956,1,315,PROFESSIONAL DEVELOPMENT,14/07/2014,315
100714F,CFOA (SERVICES) LTD===========,CSL13958,1,315,PROFESSIONAL DEVELOPMENT,14/07/2014,315
100714F,CFOA (SERVICES) LTD===========,CSL13960,1,315,PROFESSIONAL DEVELOPMENT,14/07/2014,315
800040388,ALLSTAR BUSINESS SOLUTIONS LTD,E2003052749,1,"1,747.26",FUEL,14/07/2014,"21,094.09"
800040388,ALLSTAR BUSINESS SOLUTIONS LTD,E2003052749,2,"1,091.10",FUEL,14/07/2014,
800040388,ALLSTAR BUSINESS SOLUTIONS LTD,E2003052749,3,724.6,FUEL,14/07/2014,
800040388,ALLSTAR BUSINESS SOLUTIONS LTD,E2003052749,4,511.16,FUEL,14/07/2014,
800040388,ALLSTAR BUSINESS SOLUTIONS LTD,E2003052749,5,490.25,FUEL,14/07/2014,
800040388,ALLSTAR BUSINESS SOLUTIONS LTD,E2003052749,6,418.94,FUEL,14/07/2014,
800040388,ALLSTAR BUSINESS SOLUTIONS LTD,E2003052749,7,370.53,FUEL,14/07/2014,
800040388,ALLSTAR BUSINESS SOLUTIONS LTD,E2003052749,8,353.64,FUEL,14/07/2014,
800040388,ALLSTAR BUSINESS SOLUTIONS LTD,E2003052749,9,352.4,FUEL,14/07/2014,
800040388,ALLSTAR BUSINESS SOLUTIONS LTD,E2003052749,10,340.55,FUEL,14/07/2014,
800040388,ALLSTAR BUSINESS SOLUTIONS LTD,E2003052749,11,338.15,FUEL,14/07/2014,
800040388,ALLSTAR BUSINESS SOLUTIONS LTD,E2003052749,12,328.35,FUEL,14/07/2014,
800040388,ALLSTAR BUSINESS SOLUTIONS LTD,E2003052749,13,322.39,FUEL,14/07/2014,
800040388,ALLSTAR BUSINESS SOLUTIONS LTD,E2003052749,14,322.12,FUEL,14/07/2014,
800040388,ALLSTAR BUSINESS SOLUTIONS LTD,E2003052749,15,313.17,FUEL,14/07/2014,
800040388,ALLSTAR BUSINESS SOLUTIONS LTD,E2003052749,16,308.23,FUEL,14/07/2014,
800040388,ALLSTAR BUSINESS SOLUTIONS LTD,E2003052749,17,295.2,FUEL,14/07/2014,
800040388,ALLSTAR BUSINESS SOLUTIONS LTD,E2003052749,18,288.16,FUEL,14/07/2014,
800040388,ALLSTAR BUSINESS SOLUTIONS LTD,E2003052749,19,285.13,FUEL,14/07/2014,
800040388,ALLSTAR BUSINESS SOLUTIONS LTD,E2003052749,20,283.65,FUEL,14/07/2014,
800040388,ALLSTAR BUSINESS SOLUTIONS LTD,E2003052749,21,281.62,FUEL,14/07/2014,
800040388,ALLSTAR BUSINESS SOLUTIONS LTD,E2003052749,22,279.86,FUEL,14/07/2014,
800040388,ALLSTAR BUSINESS SOLUTIONS LTD,E2003052749,23,277.8,FUEL,14/07/2014,
800040388,ALLSTAR BUSINESS SOLUTIONS LTD,E2003052749,24,272.28,FUEL,14/07/2014,
800040388,ALLSTAR BUSINESS SOLUTIONS LTD,E2003052749,25,267.87,FUEL,14/07/2014,
800040388,ALLSTAR BUSINESS SOLUTIONS LTD,E2003052749,26,264.09,FUEL,14/07/2014,
800040388,ALLSTAR BUSINESS SOLUTIONS LTD,E2003052749,27,260.75,FUEL,14/07/2014,
800040388,ALLSTAR BUSINESS SOLUTIONS LTD,E2003052749,28,256.83,FUEL,14/07/2014,
800040388,ALLSTAR BUSINESS SOLUTIONS LTD,E2003052749,29,255.49,FUEL,14/07/2014,
800040388,ALLSTAR BUSINESS SOLUTIONS LTD,E2003052749,30,254.44,FUEL,14/07/2014,
800040388,ALLSTAR BUSINESS SOLUTIONS LTD,E2003052749,31,251.09,FUEL,14/07/2014,
800040388,ALLSTAR BUSINESS SOLUTIONS LTD,E2003052749,32,240.54,FUEL,14/07/2014,
800040388,ALLSTAR BUSINESS SOLUTIONS LTD,E2003052749,33,238.21,FUEL,14/07/2014,
800040388,ALLSTAR BUSINESS SOLUTIONS LTD,E2003052749,34,235.7,FUEL,14/07/2014,
800040388,ALLSTAR BUSINESS SOLUTIONS LTD,E2003052749,35,221.17,FUEL,14/07/2014,
800040388,ALLSTAR BUSINESS SOLUTIONS LTD,E2003052749,36,218.81,FUEL,14/07/2014,
800040388,ALLSTAR BUSINESS SOLUTIONS LTD,E2003052749,37,205.41,FUEL,14/07/2014,
800040388,ALLSTAR BUSINESS SOLUTIONS LTD,E2003052749,38,204.15,FUEL,14/07/2014,
800040388,ALLSTAR BUSINESS SOLUTIONS LTD,E2003052749,39,202.25,FUEL,14/07/2014,
800040388,ALLSTAR BUSINESS SOLUTIONS LTD,E2003052749,40,199.37,FUEL,14/07/2014,
800040388,ALLSTAR BUSINESS SOLUTIONS LTD,E2003052749,41,198.38,FUEL,14/07/2014,
800040388,ALLSTAR BUSINESS SOLUTIONS LTD,E2003052749,42,186.02,FUEL,14/07/2014,
800040388,ALLSTAR BUSINESS SOLUTIONS LTD,E2003052749,43,181.03,FUEL,14/07/2014,
800040388,ALLSTAR BUSINESS SOLUTIONS LTD,E2003052749,44,178.01,FUEL,14/07/2014,
800040388,ALLSTAR BUSINESS SOLUTIONS LTD,E2003052749,45,173.34,FUEL,14/07/2014,
800040388,ALLSTAR BUSINESS SOLUTIONS LTD,E2003052749,46,172.31,FUEL,14/07/2014,
800040388,ALLSTAR BUSINESS SOLUTIONS LTD,E2003052749,47,170.01,FUEL,14/07/2014,
800040388,ALLSTAR BUSINESS SOLUTIONS LTD,E2003052749,48,168.94,FUEL,14/07/2014,
800040388,ALLSTAR BUSINESS SOLUTIONS LTD,E2003052749,49,168.05,FUEL,14/07/2014,
800040388,ALLSTAR BUSINESS SOLUTIONS LTD,E2003052749,50,164.36,FUEL,14/07/2014,
800040388,ALLSTAR BUSINESS SOLUTIONS LTD,E2003052749,51,164.17,FUEL,14/07/2014,
800040388,ALLSTAR BUSINESS SOLUTIONS LTD,E2003052749,52,159.75,FUEL,14/07/2014,
800040388,ALLSTAR BUSINESS SOLUTIONS LTD,E2003052749,53,150.01,FUEL,14/07/2014,
800040388,ALLSTAR BUSINESS SOLUTIONS LTD,E2003052749,54,146.49,FUEL,14/07/2014,
800040388,ALLSTAR BUSINESS SOLUTIONS LTD,E2003052749,55,145.72,FUEL,14/07/2014,
800040388,ALLSTAR BUSINESS SOLUTIONS LTD,E2003052749,56,143.39,FUEL,14/07/2014,
800040388,ALLSTAR BUSINESS SOLUTIONS LTD,E2003052749,57,142.46,FUEL,14/07/2014,
800040388,ALLSTAR BUSINESS SOLUTIONS LTD,E2003052749,58,136.38,FUEL,14/07/2014,
800040388,ALLSTAR BUSINESS SOLUTIONS LTD,E2003052749,59,133.06,FUEL,14/07/2014,
800040388,ALLSTAR BUSINESS SOLUTIONS LTD,E2003052749,60,131.88,FUEL,14/07/2014,
800040388,ALLSTAR BUSINESS SOLUTIONS LTD,E2003052749,61,131.71,FUEL,14/07/2014,
800040388,ALLSTAR BUSINESS SOLUTIONS LTD,E2003052749,62,131.46,FUEL,14/07/2014,
800040388,ALLSTAR BUSINESS SOLUTIONS LTD,E2003052749,63,131.04,FUEL,14/07/2014,
800040388,ALLSTAR BUSINESS SOLUTIONS LTD,E2003052749,64,130.98,FUEL,14/07/2014,
800040388,ALLSTAR BUSINESS SOLUTIONS LTD,E2003052749,65,129.74,FUEL,14/07/2014,
800040388,ALLSTAR BUSINESS SOLUTIONS LTD,E2003052749,66,128.12,FUEL,14/07/2014,
800040388,ALLSTAR BUSINESS SOLUTIONS LTD,E2003052749,67,122.55,FUEL,14/07/2014,
800040388,ALLSTAR BUSINESS SOLUTIONS LTD,E2003052749,68,117.17,FUEL,14/07/2014,
800040388,ALLSTAR BUSINESS SOLUTIONS LTD,E2003052749,69,109.94,FUEL,14/07/2014,
800040388,ALLSTAR BUSINESS SOLUTIONS LTD,E2003052749,70,109.83,FUEL,14/07/2014,
800040388,ALLSTAR BUSINESS SOLUTIONS LTD,E2003052749,71,108.78,FUEL,14/07/2014,
800040388,ALLSTAR BUSINESS SOLUTIONS LTD,E2003052749,72,108.32,FUEL,14/07/2014,
800040388,ALLSTAR BUSINESS SOLUTIONS LTD,E2003052749,73,106.92,FUEL,14/07/2014,
800040388,ALLSTAR BUSINESS SOLUTIONS LTD,E2003052749,74,104.83,FUEL,14/07/2014,
800040388,ALLSTAR BUSINESS SOLUTIONS LTD,E2003052749,75,104,FUEL,14/07/2014,
800040388,ALLSTAR BUSINESS SOLUTIONS LTD,E2003052749,76,102.5,FUEL,14/07/2014,
800040388,ALLSTAR BUSINESS SOLUTIONS LTD,E2003052749,77,100.6,FUEL,14/07/2014,
800040388,ALLSTAR BUSINESS SOLUTIONS LTD,E2003052749,78,100.17,FUEL,14/07/2014,
800040388,ALLSTAR BUSINESS SOLUTIONS LTD,E2003052749,79,99.2,FUEL,14/07/2014,
800040388,ALLSTAR BUSINESS SOLUTIONS LTD,E2003052749,80,96.42,FUEL,14/07/2014,
800040388,ALLSTAR BUSINESS SOLUTIONS LTD,E2003052749,81,93.49,FUEL,14/07/2014,
800040388,ALLSTAR BUSINESS SOLUTIONS LTD,E2003052749,82,92.34,FUEL,14/07/2014,
800040388,ALLSTAR BUSINESS SOLUTIONS LTD,E2003052749,83,91.86,FUEL,14/07/2014,
800040388,ALLSTAR BUSINESS SOLUTIONS LTD,E2003052749,84,84.96,FUEL,14/07/2014,
800040388,ALLSTAR BUSINESS SOLUTIONS LTD,E2003052749,85,79.01,FUEL,14/07/2014,
800040388,ALLSTAR BUSINESS SOLUTIONS LTD,E2003052749,86,78.7,FUEL,14/07/2014,
800040388,ALLSTAR BUSINESS SOLUTIONS LTD,E2003052749,87,77.2,FUEL,14/07/2014,
800040388,ALLSTAR BUSINESS SOLUTIONS LTD,E2003052749,88,77.03,FUEL,14/07/2014,
800040388,ALLSTAR BUSINESS SOLUTIONS LTD,E2003052749,89,73.21,FUEL,14/07/2014,
800040388,ALLSTAR BUSINESS SOLUTIONS LTD,E2003052749,90,71.81,FUEL,14/07/2014,
800040388,ALLSTAR BUSINESS SOLUTIONS LTD,E2003052749,91,66.17,FUEL,14/07/2014,
800040388,ALLSTAR BUSINESS SOLUTIONS LTD,E2003052749,92,63.41,FUEL,14/07/2014,
800040388,ALLSTAR BUSINESS SOLUTIONS LTD,E2003052749,93,56.62,FUEL,14/07/2014,
800040388,ALLSTAR BUSINESS SOLUTIONS LTD,E2003052749,94,55.1,FUEL,14/07/2014,
800040388,ALLSTAR BUSINESS SOLUTIONS LTD,E2003052749,95,49.43,FUEL,14/07/2014,
800040388,ALLSTAR BUSINESS SOLUTIONS LTD,E2003052749,96,39.63,FUEL,14/07/2014,
800040388,ALLSTAR BUSINESS SOLUTIONS LTD,E2003052749,97,24.65,FUEL,14/07/2014,
800040388,ALLSTAR BUSINESS SOLUTIONS LTD,E2003052749,98,23.83,FUEL,14/07/2014,
800040388,ALLSTAR BUSINESS SOLUTIONS LTD,E2003052749,99,20.96,FUEL,14/07/2014,
800040388,ALLSTAR BUSINESS SOLUTIONS LTD,E2003052749,100,13.93,FUEL,14/07/2014,
800040537,ALLSTAR BUSINESS SOLUTIONS LTD,E2003102043,1,876.16,FUEL,14/07/2014,"21,546.27"
800040537,ALLSTAR BUSINESS SOLUTIONS LTD,E2003102043,2,588.18,FUEL,14/07/2014,
800040537,ALLSTAR BUSINESS SOLUTIONS LTD,E2003102043,3,557.24,FUEL,14/07/2014,
800040537,ALLSTAR BUSINESS SOLUTIONS LTD,E2003102043,4,536.74,FUEL,14/07/2014,
800040537,ALLSTAR BUSINESS SOLUTIONS LTD,E2003102043,5,497.78,FUEL,14/07/2014,
800040537,ALLSTAR BUSINESS SOLUTIONS LTD,E2003102043,6,422.57,FUEL,14/07/2014,
800040537,ALLSTAR BUSINESS SOLUTIONS LTD,E2003102043,7,397.68,FUEL,14/07/2014,
800040537,ALLSTAR BUSINESS SOLUTIONS LTD,E2003102043,8,387.35,FUEL,14/07/2014,
800040537,ALLSTAR BUSINESS SOLUTIONS LTD,E2003102043,9,387.16,FUEL,14/07/2014,
800040537,ALLSTAR BUSINESS SOLUTIONS LTD,E2003102043,10,387.02,FUEL,14/07/2014,
800040537,ALLSTAR BUSINESS SOLUTIONS LTD,E2003102043,11,384.3,FUEL,14/07/2014,
800040537,ALLSTAR BUSINESS SOLUTIONS LTD,E2003102043,12,384.19,FUEL,14/07/2014,
800040537,ALLSTAR BUSINESS SOLUTIONS LTD,E2003102043,13,368.01,FUEL,14/07/2014,
800040537,ALLSTAR BUSINESS SOLUTIONS LTD,E2003102043,14,342.76,FUEL,14/07/2014,
800040537,ALLSTAR BUSINESS SOLUTIONS LTD,E2003102043,15,337,FUEL,14/07/2014,
800040537,ALLSTAR BUSINESS SOLUTIONS LTD,E2003102043,16,326.77,FUEL,14/07/2014,
800040537,ALLSTAR BUSINESS SOLUTIONS LTD,E2003102043,17,324.08,FUEL,14/07/2014,
800040537,ALLSTAR BUSINESS SOLUTIONS LTD,E2003102043,18,317.32,FUEL,14/07/2014,
800040537,ALLSTAR BUSINESS SOLUTIONS LTD,E2003102043,19,316.27,FUEL,14/07/2014,
800040537,ALLSTAR BUSINESS SOLUTIONS LTD,E2003102043,20,302.49,FUEL,14/07/2014,
800040537,ALLSTAR BUSINESS SOLUTIONS LTD,E2003102043,21,297.99,FUEL,14/07/2014,
800040537,ALLSTAR BUSINESS SOLUTIONS LTD,E2003102043,22,292.61,FUEL,14/07/2014,
800040537,ALLSTAR BUSINESS SOLUTIONS LTD,E2003102043,23,284.59,FUEL,14/07/2014,
800040537,ALLSTAR BUSINESS SOLUTIONS LTD,E2003102043,24,282.02,FUEL,14/07/2014,
800040537,ALLSTAR BUSINESS SOLUTIONS LTD,E2003102043,25,272.79,FUEL,14/07/2014,
800040537,ALLSTAR BUSINESS SOLUTIONS LTD,E2003102043,26,270.37,FUEL,14/07/2014,
800040537,ALLSTAR BUSINESS SOLUTIONS LTD,E2003102043,27,268.93,FUEL,14/07/2014,
800040537,ALLSTAR BUSINESS SOLUTIONS LTD,E2003102043,28,265.96,FUEL,14/07/2014,
800040537,ALLSTAR BUSINESS SOLUTIONS LTD,E2003102043,29,264.61,FUEL,14/07/2014,
800040537,ALLSTAR BUSINESS SOLUTIONS LTD,E2003102043,30,260.95,FUEL,14/07/2014,
800040537,ALLSTAR BUSINESS SOLUTIONS LTD,E2003102043,31,255.73,FUEL,14/07/2014,
800040537,ALLSTAR BUSINESS SOLUTIONS LTD,E2003102043,32,255.15,FUEL,14/07/2014,
800040537,ALLSTAR BUSINESS SOLUTIONS LTD,E2003102043,33,254.85,FUEL,14/07/2014,
800040537,ALLSTAR BUSINESS SOLUTIONS LTD,E2003102043,34,254.07,FUEL,14/07/2014,
800040537,ALLSTAR BUSINESS SOLUTIONS LTD,E2003102043,35,243.39,FUEL,14/07/2014,
800040537,ALLSTAR BUSINESS SOLUTIONS LTD,E2003102043,36,240.14,FUEL,14/07/2014,
800040537,ALLSTAR BUSINESS SOLUTIONS LTD,E2003102043,37,239.23,FUEL,14/07/2014,
800040537,ALLSTAR BUSINESS SOLUTIONS LTD,E2003102043,38,239.08,FUEL,14/07/2014,
800040537,ALLSTAR BUSINESS SOLUTIONS LTD,E2003102043,39,237.45,FUEL,14/07/2014,
800040537,ALLSTAR BUSINESS SOLUTIONS LTD,E2003102043,40,230.96,FUEL,14/07/2014,
800040537,ALLSTAR BUSINESS SOLUTIONS LTD,E2003102043,41,225,FUEL,14/07/2014,
800040537,ALLSTAR BUSINESS SOLUTIONS LTD,E2003102043,42,217.65,FUEL,14/07/2014,
800040537,ALLSTAR BUSINESS SOLUTIONS LTD,E2003102043,43,217.32,FUEL,14/07/2014,
800040537,ALLSTAR BUSINESS SOLUTIONS LTD,E2003102043,44,203.57,FUEL,14/07/2014,
800040537,ALLSTAR BUSINESS SOLUTIONS LTD,E2003102043,45,195.33,FUEL,14/07/2014,
800040537,ALLSTAR BUSINESS SOLUTIONS LTD,E2003102043,46,181.43,FUEL,14/07/2014,
800040537,ALLSTAR BUSINESS SOLUTIONS LTD,E2003102043,47,179.06,FUEL,14/07/2014,
800040537,ALLSTAR BUSINESS SOLUTIONS LTD,E2003102043,48,176.26,FUEL,14/07/2014,
800040537,ALLSTAR BUSINESS SOLUTIONS LTD,E2003102043,49,175.99,FUEL,14/07/2014,
800040537,ALLSTAR BUSINESS SOLUTIONS LTD,E2003102043,50,175.87,FUEL,14/07/2014,
800040537,ALLSTAR BUSINESS SOLUTIONS LTD,E2003102043,51,175.27,FUEL,14/07/2014,
800040537,ALLSTAR BUSINESS SOLUTIONS LTD,E2003102043,52,172.51,FUEL,14/07/2014,
800040537,ALLSTAR BUSINESS SOLUTIONS LTD,E2003102043,53,166.49,FUEL,14/07/2014,
800040537,ALLSTAR BUSINESS SOLUTIONS LTD,E2003102043,54,166.29,FUEL,14/07/2014,
800040537,ALLSTAR BUSINESS SOLUTIONS LTD,E2003102043,55,162.88,FUEL,14/07/2014,
800040537,ALLSTAR BUSINESS SOLUTIONS LTD,E2003102043,56,159.99,FUEL,14/07/2014,
800040537,ALLSTAR BUSINESS SOLUTIONS LTD,E2003102043,57,157.14,FUEL,14/07/2014,
800040537,ALLSTAR BUSINESS SOLUTIONS LTD,E2003102043,58,155.74,FUEL,14/07/2014,
800040537,ALLSTAR BUSINESS SOLUTIONS LTD,E2003102043,59,151.85,FUEL,14/07/2014,
800040537,ALLSTAR BUSINESS SOLUTIONS LTD,E2003102043,60,151.14,FUEL,14/07/2014,
800040537,ALLSTAR BUSINESS SOLUTIONS LTD,E2003102043,61,146.93,FUEL,14/07/2014,
800040537,ALLSTAR BUSINESS SOLUTIONS LTD,E2003102043,62,146.78,FUEL,14/07/2014,
800040537,ALLSTAR BUSINESS SOLUTIONS LTD,E2003102043,63,145.69,FUEL,14/07/2014,
800040537,ALLSTAR BUSINESS SOLUTIONS LTD,E2003102043,64,143.29,FUEL,14/07/2014,
800040537,ALLSTAR BUSINESS SOLUTIONS LTD,E2003102043,65,142.02,FUEL,14/07/2014,
800040537,ALLSTAR BUSINESS SOLUTIONS LTD,E2003102043,66,139.54,FUEL,14/07/2014,
800040537,ALLSTAR BUSINESS SOLUTIONS LTD,E2003102043,67,137.74,FUEL,14/07/2014,
800040537,ALLSTAR BUSINESS SOLUTIONS LTD,E2003102043,68,135.74,FUEL,14/07/2014,
800040537,ALLSTAR BUSINESS SOLUTIONS LTD,E2003102043,69,130.17,FUEL,14/07/2014,
800040537,ALLSTAR BUSINESS SOLUTIONS LTD,E2003102043,70,130.16,FUEL,14/07/2014,
800040537,ALLSTAR BUSINESS SOLUTIONS LTD,E2003102043,71,129.45,FUEL,14/07/2014,
800040537,ALLSTAR BUSINESS SOLUTIONS LTD,E2003102043,72,129.05,FUEL,14/07/2014,
800040537,ALLSTAR BUSINESS SOLUTIONS LTD,E2003102043,73,128.91,FUEL,14/07/2014,
800040537,ALLSTAR BUSINESS SOLUTIONS LTD,E2003102043,74,128.16,FUEL,14/07/2014,
800040537,ALLSTAR BUSINESS SOLUTIONS LTD,E2003102043,75,125.95,FUEL,14/07/2014,
800040537,ALLSTAR BUSINESS SOLUTIONS LTD,E2003102043,76,125.65,FUEL,14/07/2014,
800040537,ALLSTAR BUSINESS SOLUTIONS LTD,E2003102043,77,125.03,FUEL,14/07/2014,
800040537,ALLSTAR BUSINESS SOLUTIONS LTD,E2003102043,78,124.63,FUEL,14/07/2014,
800040537,ALLSTAR BUSINESS SOLUTIONS LTD,E2003102043,79,119.57,FUEL,14/07/2014,
800040537,ALLSTAR BUSINESS SOLUTIONS LTD,E2003102043,80,118.14,FUEL,14/07/2014,
800040537,ALLSTAR BUSINESS SOLUTIONS LTD,E2003102043,81,113.87,FUEL,14/07/2014,
800040537,ALLSTAR BUSINESS SOLUTIONS LTD,E2003102043,82,112.42,FUEL,14/07/2014,
800040537,ALLSTAR BUSINESS SOLUTIONS LTD,E2003102043,83,102.5,FUEL,14/07/2014,
800040537,ALLSTAR BUSINESS SOLUTIONS LTD,E2003102043,84,101.78,FUEL,14/07/2014,
800040537,ALLSTAR BUSINESS SOLUTIONS LTD,E2003102043,85,101.32,FUEL,14/07/2014,
800040537,ALLSTAR BUSINESS SOLUTIONS LTD,E2003102043,86,100.49,FUEL,14/07/2014,
800040537,ALLSTAR BUSINESS SOLUTIONS LTD,E2003102043,87,98.28,FUEL,14/07/2014,
800040537,ALLSTAR BUSINESS SOLUTIONS LTD,E2003102043,88,93.99,FUEL,14/07/2014,
800040537,ALLSTAR BUSINESS SOLUTIONS LTD,E2003102043,89,93.68,FUEL,14/07/2014,
800040537,ALLSTAR BUSINESS SOLUTIONS LTD,E2003102043,90,66.78,FUEL,14/07/2014,
800040537,ALLSTAR BUSINESS SOLUTIONS LTD,E2003102043,91,83.95,FUEL,14/07/2014,
800040537,ALLSTAR BUSINESS SOLUTIONS LTD,E2003102043,92,83.68,FUEL,14/07/2014,
800040537,ALLSTAR BUSINESS SOLUTIONS LTD,E2003102043,93,74.16,FUEL,14/07/2014,
800040537,ALLSTAR BUSINESS SOLUTIONS LTD,E2003102043,94,73.62,FUEL,14/07/2014,
800040537,ALLSTAR BUSINESS SOLUTIONS LTD,E2003102043,95,67.88,FUEL,14/07/2014,
800040537,ALLSTAR BUSINESS SOLUTIONS LTD,E2003102043,96,64.83,FUEL,14/07/2014,
800040537,ALLSTAR BUSINESS SOLUTIONS LTD,E2003102043,97,54.43,FUEL,14/07/2014,
800040537,ALLSTAR BUSINESS SOLUTIONS LTD,E2003102043,98,52.5,FUEL,14/07/2014,
800040537,ALLSTAR BUSINESS SOLUTIONS LTD,E2003102043,99,48.01,FUEL,14/07/2014,
800040537,ALLSTAR BUSINESS SOLUTIONS LTD,E2003102043,100,37.97,FUEL,14/07/2014,
800040537,ALLSTAR BUSINESS SOLUTIONS LTD,E2003102043,101,32.05,FUEL,14/07/2014,
800040537,ALLSTAR BUSINESS SOLUTIONS LTD,E2003102043,102,16.76,FUEL,14/07/2014,
080714C,KIER BUILDING SERV ENGINEERS==,F00049519,1,430.24,STRATEGIC (CYCLICAL),14/07/2014,430.24
100714F,FOOTPRINT UNIFORMS============,F4737,1,132.95,CLOTHING,14/07/2014,270.95
100714F,FOOTPRINT UNIFORMS============,F4737,2,69,CLOTHING,14/07/2014,
100714F,FOOTPRINT UNIFORMS============,F4737,3,23,CLOTHING,14/07/2014,
100714F,FOOTPRINT UNIFORMS============,F4737,4,46,CLOTHING,14/07/2014,
270614C,AIRBUS DEFENCE AND SPACE,IN028898,1,"188,235.00",MAINTENANCE & SUPPORT,14/07/2014,"188,235.00"
080714E,PURDY CONTRACTS LTD,IN234722,1,263.99,STRATEGIC (NON CYCLICAL),14/07/2014,"1,283.62"
080714E,PURDY CONTRACTS LTD,IN234722,2,548.06,STRATEGIC (NON CYCLICAL),14/07/2014,
080714E,PURDY CONTRACTS LTD,IN234722,3,471.57,STRATEGIC (NON CYCLICAL),14/07/2014,
270614C,BLUESKY SHAREPOINT CONSULTING,INV-1368,1,"1,700.00",CONSULTANTS,14/07/2014,"1,700.00"
080714E,JACKSON LIFT GROUP============,JS375216,1,85.25,STRATEGIC (CYCLICAL),14/07/2014,"2,344.27"
080714E,JACKSON LIFT GROUP============,JS375216,2,85.25,STRATEGIC (CYCLICAL),14/07/2014,
080714E,JACKSON LIFT GROUP============,JS375216,3,85.25,STRATEGIC (CYCLICAL),14/07/2014,
080714E,JACKSON LIFT GROUP============,JS375216,4,85.25,STRATEGIC (CYCLICAL),14/07/2014,
080714E,JACKSON LIFT GROUP============,JS375216,5,85.25,STRATEGIC (CYCLICAL),14/07/2014,
080714E,JACKSON LIFT GROUP============,JS375216,6,85.25,STRATEGIC (CYCLICAL),14/07/2014,
080714E,JACKSON LIFT GROUP============,JS375216,7,85.25,STRATEGIC (CYCLICAL),14/07/2014,
080714E,JACKSON LIFT GROUP============,JS375216,8,85.25,STRATEGIC (CYCLICAL),14/07/2014,
080714E,JACKSON LIFT GROUP============,JS375216,9,85.25,STRATEGIC (CYCLICAL),14/07/2014,
080714E,JACKSON LIFT GROUP============,JS375216,10,42.25,STRATEGIC (CYCLICAL),14/07/2014,
080714E,JACKSON LIFT GROUP============,JS375216,11,42.25,STRATEGIC (CYCLICAL),14/07/2014,
080714E,JACKSON LIFT GROUP============,JS375216,12,106.92,STRATEGIC (CYCLICAL),14/07/2014,
080714E,JACKSON LIFT GROUP============,JS375216,13,106.92,STRATEGIC (CYCLICAL),14/07/2014,
080714E,JACKSON LIFT GROUP============,JS375216,14,106.92,STRATEGIC (CYCLICAL),14/07/2014,
080714E,JACKSON LIFT GROUP============,JS375216,15,106.92,STRATEGIC (CYCLICAL),14/07/2014,
080714E,JACKSON LIFT GROUP============,JS375216,16,106.92,STRATEGIC (CYCLICAL),14/07/2014,
080714E,JACKSON LIFT GROUP============,JS375216,17,106.92,STRATEGIC (CYCLICAL),14/07/2014,
080714E,JACKSON LIFT GROUP============,JS375216,18,42.25,STRATEGIC (CYCLICAL),14/07/2014,
080714E,JACKSON LIFT GROUP============,JS375216,19,85.25,STRATEGIC (CYCLICAL),14/07/2014,
080714E,JACKSON LIFT GROUP============,JS375216,20,42.25,STRATEGIC (CYCLICAL),14/07/2014,
080714E,JACKSON LIFT GROUP============,JS375216,21,85.25,STRATEGIC (CYCLICAL),14/07/2014,
080714E,JACKSON LIFT GROUP============,JS375216,22,42.25,STRATEGIC (CYCLICAL),14/07/2014,
080714E,JACKSON LIFT GROUP============,JS375216,23,85.25,STRATEGIC (CYCLICAL),14/07/2014,
080714E,JACKSON LIFT GROUP============,JS375216,24,85.25,STRATEGIC (CYCLICAL),14/07/2014,
080714E,JACKSON LIFT GROUP============,JS375216,25,85.25,STRATEGIC (CYCLICAL),14/07/2014,
080714E,JACKSON LIFT GROUP============,JS375216,26,85.25,STRATEGIC (CYCLICAL),14/07/2014,
080714E,JACKSON LIFT GROUP============,JS375216,27,42.25,STRATEGIC (CYCLICAL),14/07/2014,
080714E,JACKSON LIFT GROUP============,JS375216,28,85.25,STRATEGIC (CYCLICAL),14/07/2014,
080714E,JACKSON LIFT GROUP============,JS375216,29,85.25,STRATEGIC (CYCLICAL),14/07/2014,
040714C,SPECIALIST COMPUTER CENTRES===,OP/L866688,1,773.19,ACQUISITIONS,14/07/2014,"1,614.53"
040714C,SPECIALIST COMPUTER CENTRES===,OP/L866688,2,185.56,ACQUISITIONS,14/07/2014,
040714C,SPECIALIST COMPUTER CENTRES===,OP/L866688,3,655.78,ACQUISITIONS,14/07/2014,
902428,THERMO FISHER SCIENTIFIC MESST,RSI487581,1,740,PROTECTIVE EQUIPT - PARTS,14/07/2014,771
902428,THERMO FISHER SCIENTIFIC MESST,RSI487581,2,31,REPAIR & MAINTENANCE,14/07/2014,
090714C,GROUND CONTROL UMITED,SIN037437,1,82.01,GROUNDS MAINTENANCE,14/07/2014,790.05
090714C,GROUND CONTROL UMITED,SIN037437,2,13.34,GROUNDS MAINTENANCE,14/07/2014,
090714C,GROUND CONTROL UMITED,SIN037437,3,50.78,GROUNDS MAINTENANCE,14/07/2014,
090714C,GROUND CONTROL UMITED,SIN037437,4,35.49,GROUNDS MAINTENANCE,14/07/2014,
090714C,GROUND CONTROL UMITED,SIN037437,5,14.68,GROUNDS MAINTENANCE,14/07/2014,
090714C,GROUND CONTROL UMITED,SIN037437,6,14.68,GROUNDS MAINTENANCE,14/07/2014,
090714C,GROUND CONTROL UMITED,SIN037437,7,42.42,GROUNDS MAINTENANCE,14/07/2014,
090714C,GROUND CONTROL UMITED,SIN037437,8,42.42,GROUNDS MAINTENANCE,14/07/2014,
090714C,GROUND CONTROL UMITED,SIN037437,9,13.34,GROUNDS MAINTENANCE,14/07/2014,
090714C,GROUND CONTROL UMITED,SIN037437,10,13.34,GROUNDS MAINTENANCE,14/07/2014,
090714C,GROUND CONTROL UMITED,SIN037437,11,46.43,GROUNDS MAINTENANCE,14/07/2014,
090714C,GROUND CONTROL UMITED,SIN037437,12,42.42,GROUNDS MAINTENANCE,14/07/2014,
090714C,GROUND CONTROL UMITED,SIN037437,13,13.34,GROUNDS MAINTENANCE,14/07/2014,
090714C,GROUND CONTROL UMITED,SIN037437,14,13.34,GROUNDS MAINTENANCE,14/07/2014,
090714C,GROUND CONTROL UMITED,SIN037437,15,13.34,GROUNDS MAINTENANCE,14/07/2014,
090714C,GROUND CONTROL UMITED,SIN037437,16,13.34,GROUNDS MAINTENANCE,14/07/2014,
090714C,GROUND CONTROL UMITED,SIN037437,17,13.34,GROUNDS MAINTENANCE,14/07/2014,
090714C,GROUND CONTROL UMITED,SIN037437,18,66.44,GROUNDS MAINTENANCE,14/07/2014,
090714C,GROUND CONTROL UMITED,SIN037437,19,13.34,GROUNDS MAINTENANCE,14/07/2014,
090714C,GROUND CONTROL UMITED,SIN037437,20,13.34,GROUNDS MAINTENANCE,14/07/2014,
090714C,GROUND CONTROL UMITED,SIN037437,21,35.49,GROUNDS MAINTENANCE,14/07/2014,
090714C,GROUND CONTROL UMITED,SIN037437,22,13.34,GROUNDS MAINTENANCE,14/07/2014,
090714C,GROUND CONTROL UMITED,SIN037437,23,35.49,GROUNDS MAINTENANCE,14/07/2014,
090714C,GROUND CONTROL UMITED,SIN037437,24,39.49,GROUNDS MAINTENANCE,14/07/2014,
090714C,GROUND CONTROL UMITED,SIN037437,25,39.49,GROUNDS MAINTENANCE,14/07/2014,
090714C,GROUND CONTROL UMITED,SIN037437,26,13.34,GROUNDS MAINTENANCE,14/07/2014,
090714C,GROUND CONTROL UMITED,SIN037437,27,13.34,GROUNDS MAINTENANCE,14/07/2014,
090714C,GROUND CONTROL UMITED,SIN037437,28,13.34,GROUNDS MAINTENANCE,14/07/2014,
090714C,GROUND CONTROL UMITED,SIN037437,29,6.67,GROUNDS MAINTENANCE,14/07/2014,
090714C,GROUND CONTROL UMITED,SIN037437,30,8.89,GROUNDS MAINTENANCE,14/07/2014,
800040387,*THOMAS KNEALE & CO LTD,TK107571,1,42.98,COMMUNITY RELATIONS,14/07/2014,"1,258.80"
800040387,*THOMAS KNEALE & CO LTD,TK107571,2,214.9,COMMUNITY RELATIONS,14/07/2014,
800040387,*THOMAS KNEALE & CO LTD,TK107571,3,334.95,COMMUNITY RELATIONS,14/07/2014,
800040387,*THOMAS KNEALE & CO LTD,TK107571,4,133.98,COMMUNITY RELATIONS,14/07/2014,
800040387,*THOMAS KNEALE & CO LTD,TK107571,5,85.96,COMMUNITY RELATIONS,14/07/2014,
800040387,*THOMAS KNEALE & CO LTD,TK107571,6,10.89,CLOTHING,14/07/2014,
800040387,*THOMAS KNEALE & CO LTD,TK107571,7,0.99,CLOTHING,14/07/2014,
800040387,*THOMAS KNEALE & CO LTD,TK107571,8,1.48,CLOTHING,14/07/2014,
800040387,*THOMAS KNEALE & CO LTD,TK107571,9,3.47,CLOTHING,14/07/2014,
800040387,*THOMAS KNEALE & CO LTD,TK107571,10,10.89,CLOTHING,14/07/2014,
800040387,*THOMAS KNEALE & CO LTD,TK107571,11,0.99,CLOTHING,14/07/2014,
800040387,*THOMAS KNEALE & CO LTD,TK107571,12,10.89,CLOTHING,14/07/2014,
800040387,*THOMAS KNEALE & CO LTD,TK107571,13,3.47,CLOTHING,14/07/2014,
800040387,*THOMAS KNEALE & CO LTD,TK107571,14,10.89,CLOTHING,14/07/2014,
800040387,*THOMAS KNEALE & CO LTD,TK107571,15,10.89,CLOTHING,14/07/2014,
800040387,*THOMAS KNEALE & CO LTD,TK107571,16,6.94,CLOTHING,14/07/2014,
800040387,*THOMAS KNEALE & CO LTD,TK107571,17,9.96,OFFICE FURNITURE,14/07/2014,
800040387,*THOMAS KNEALE & CO LTD,TK107571,18,9.96,OFFICE FURNITURE,14/07/2014,
800040387,*THOMAS KNEALE & CO LTD,TK107571,19,2.59,OFFICE FURNITURE,14/07/2014,
800040387,*THOMAS KNEALE & CO LTD,TK107571,20,1.48,CLOTHING,14/07/2014,
800040387,*THOMAS KNEALE & CO LTD,TK107571,21,10.89,CLOTHING,14/07/2014,
800040387,*THOMAS KNEALE & CO LTD,TK107571,22,3.47,CLOTHING,14/07/2014,
800040387,*THOMAS KNEALE & CO LTD,TK107571,23,3.47,CLOTHING,14/07/2014,
800040387,*THOMAS KNEALE & CO LTD,TK107571,24,1.48,CLOTHING,14/07/2014,
800040387,*THOMAS KNEALE & CO LTD,TK107571,25,3.47,CLOTHING,14/07/2014,
800040387,*THOMAS KNEALE & CO LTD,TK107571,26,10.89,CLOTHING,14/07/2014,
800040387,*THOMAS KNEALE & CO LTD,TK107571,27,3.47,CLOTHING,14/07/2014,
800040387,*THOMAS KNEALE & CO LTD,TK107571,28,1.48,CLOTHING,14/07/2014,
800040387,*THOMAS KNEALE & CO LTD,TK107571,29,6.94,CLOTHING,14/07/2014,
800040387,*THOMAS KNEALE & CO LTD,TK107571,30,2.96,CLOTHING,14/07/2014,
800040387,*THOMAS KNEALE & CO LTD,TK107571,31,6.94,CLOTHING,14/07/2014,
800040387,*THOMAS KNEALE & CO LTD,TK107571,32,2.96,CLOTHING,14/07/2014,
800040387,*THOMAS KNEALE & CO LTD,TK107571,33,53.98,OFFICE FURNITURE,14/07/2014,
800040387,*THOMAS KNEALE & CO LTD,TK107571,34,10.89,CLOTHING,14/07/2014,
800040387,*THOMAS KNEALE & CO LTD,TK107571,35,3.47,CLOTHING,14/07/2014,
800040387,*THOMAS KNEALE & CO LTD,TK107571,36,10.89,CLOTHING,14/07/2014,
800040387,*THOMAS KNEALE & CO LTD,TK107571,37,0.99,CLOTHING,14/07/2014,
800040387,*THOMAS KNEALE & CO LTD,TK107571,38,3.47,CLOTHING,14/07/2014,
800040387,*THOMAS KNEALE & CO LTD,TK107571,39,67.95,OFFICE FURNITURE,14/07/2014,
800040387,*THOMAS KNEALE & CO LTD,TK107571,40,2.59,OFFICE FURNITURE,14/07/2014,
800040387,*THOMAS KNEALE & CO LTD,TK107571,41,10.89,CLOTHING,14/07/2014,
800040387,*THOMAS KNEALE & CO LTD,TK107571,42,1.48,CLOTHING,14/07/2014,
800040387,*THOMAS KNEALE & CO LTD,TK107571,43,3.47,CLOTHING,14/07/2014,
800040387,*THOMAS KNEALE & CO LTD,TK107571,44,1.48,CLOTHING,14/07/2014,
800040387,*THOMAS KNEALE & CO LTD,TK107571,45,3.47,CLOTHING,14/07/2014,
800040387,*THOMAS KNEALE & CO LTD,TK107571,46,10.89,CLOTHING,14/07/2014,
800040387,*THOMAS KNEALE & CO LTD,TK107571,47,10.89,CLOTHING,14/07/2014,
800040387,*THOMAS KNEALE & CO LTD,TK107571,48,10.89,CLOTHING,14/07/2014,
800040387,*THOMAS KNEALE & CO LTD,TK107571,49,10.89,CLOTHING,14/07/2014,
800040387,*THOMAS KNEALE & CO LTD,TK107571,50,10.89,CLOTHING,14/07/2014,
800040387,*THOMAS KNEALE & CO LTD,TK107571,51,3.47,CLOTHING,14/07/2014,
800040387,*THOMAS KNEALE & CO LTD,TK107571,52,1.48,CLOTHING,14/07/2014,
800040387,*THOMAS KNEALE & CO LTD,TK107571,53,10.89,CLOTHING,14/07/2014,
800040387,*THOMAS KNEALE & CO LTD,TK107571,54,10.89,CLOTHING,14/07/2014,
800040387,*THOMAS KNEALE & CO LTD,TK107571,55,10.89,CLOTHING,14/07/2014,
800040387,*THOMAS KNEALE & CO LTD,TK107571,56,0.99,CLOTHING,14/07/2014,
800040387,*THOMAS KNEALE & CO LTD,TK107571,57,2.96,CLOTHING,14/07/2014,
800040387,*THOMAS KNEALE & CO LTD,TK107571,58,10.89,CLOTHING,14/07/2014,
800040387,*THOMAS KNEALE & CO LTD,TK107571,59,6.94,CLOTHING,14/07/2014,
800040387,*THOMAS KNEALE & CO LTD,TK107571,60,2.96,CLOTHING,14/07/2014,
800039945,*XMA LTD,V696920,1,134.8,STATIONERY CONSUMABLES,14/07/2014,295.86
800039945,*XMA LTD,V696920,2,54.55,STATIONERY CONSUMABLES,14/07/2014,
800039945,*XMA LTD,V696920,3,51.23,STATIONERY CONSUMABLES,14/07/2014,
800039945,*XMA LTD,V696920,4,55.28,STATIONERY CONSUMABLES,14/07/2014,
140736,KING'S COLLEGE LONDON,IN031879R,1,290,UNWANTED FIRE SIGNALS,15/07/2014,290
070714C,HEALTH MANAGEMENT LIMITED=====,115857,1,"107,035.75",OHS CONTRACT,17/07/2014,"107,035.75"
020714C,LYNN WICKINS,71,1,712.5,PROFESSIONAL SERVICES,17/07/2014,712.5
140714F,BSIF ENTERPRISE LTD,100850,1,"1,000.00",PROFESSIONAL DEVELOPMENT,17/07/2014,"1,000.00"
140714F,AFFINITY WATER,101040834,1,549,CURRENT HYDRANT COSTS,17/07/2014,549
140714F,AFFINITY WATER,101040835,1,549,CURRENT HYDRANT COSTS,17/07/2014,549
140714F,AFFINITY WATER,101040836,1,549,CURRENT HYDRANT COSTS,17/07/2014,549
140714F,AFFINITY WATER,101040847,1,510,CURRENT HYDRANT COSTS,17/07/2014,510
140714F,AFFINITY WATER,101040901,1,300,CURRENT HYDRANT COSTS,17/07/2014,300
110714G,*SPRUE SAFETY PRODUCTS LTD====,1062115,1,"1,359.60",FIRE DETECTORS,17/07/2014,"1,359.60"
110714G,*SPRUE SAFETY PRODUCTS LTD====,1062120,1,"1,359.60",FIRE DETECTORS,17/07/2014,"1,359.60"
110714G,*SPRUE SAFETY PRODUCTS LTD====,1062256,1,988.8,FIRE DETECTORS,17/07/2014,988.8
140714F,*SPRUE SAFETY PRODUCTS LTD====,1062264,1,"2,842.80",FIRE DETECTORS,17/07/2014,"2,842.80"
140714F,*SPRUE SAFETY PRODUCTS LTD====,1062265,1,440,FIRE DETECTORS,17/07/2014,440
140714F,*SPRUE SAFETY PRODUCTS LTD====,1062266,1,800,FIRE DETECTORS,17/07/2014,800
800040199,*JAMES HUNTER (OUTFITTERS) LTD,107717,1,293.13,CLOTHING,17/07/2014,293.13
800040216,*JAMES HUNTER (OUTFITTERS) LTD,107734,1,251.09,CLOTHING,17/07/2014,251.09
110714G,CARDIFF UNIVERSITY,1104043,1,450,CONSULTANTS,17/07/2014,450
140714G,ROYAL COLLEGE OF MUSIC========,11042347,1,370,PRESS OFFICE,17/07/2014,370
080714C,SILVERSANDS LIMITED===========,121022,1,"5,700.00",PURCHASES-SOFTWARE,17/07/2014,"7,600.00"
080714C,SILVERSANDS LIMITED===========,121022,2,950,PURCHASES-SOFTWARE,17/07/2014,
080714C,SILVERSANDS LIMITED===========,121022,3,950,PURCHASES-SOFTWARE,17/07/2014,
090714C,SAFEGUARD PEST CON. & ENV.LTD,126330,1,460,PEST CONTROL,17/07/2014,460
140714G,BDO LLP,1294165,1,"1,210.00",PROFESSIONAL SERVICES,17/07/2014,"1,210.00"
040714C,MAYFAIR'S COACHES LTD=========,13538,1,595,CONTRACT HIRE,17/07/2014,"1,090.00"
040714C,MAYFAIR'S COACHES LTD=========,13538,2,495,CONTRACT HIRE,17/07/2014,
140714F,GP CONTRACTS==================,15045,1,295,OFFICE FURNITURE,17/07/2014,295
070714C,QAS SYSTEMS LTD===============,1522151,1,"8,789.33",PURCHASES-COMPUTER/EQUIPMENT,17/07/2014,"10,289.33"
070714C,QAS SYSTEMS LTD===============,1522151,2,"1,500.00",PURCHASES-COMPUTER/EQUIPMENT,17/07/2014,
030714F,TKG LTD T/A THE KEEN GROUP,156121,1,395.7,PUBLIC TRANSPORT,17/07/2014,395.7
090714C,IRON MOUNTAIN (UK) LTD========,16186550,1,"2,724.24",MAINTENANCE & SUPPORT,17/07/2014,"2,724.24"
140714G,CHANGING YOUNG MINDS,17/6/26/6/1/7/14,1,750,PROFESSIONAL DEVELOPMENT,17/07/2014,750
140714G,DRON & WRIGHT=================,17179,1,849.16,PROFESSIONAL SERVICES,17/07/2014,849.16
110714G,COMMUNITIES & LOCAL GOVERNMENT,1800019987,1,832.87,GENERAL,17/07/2014,832.87
070714C,ENERGY AUDITING AGENCY LTD====,20141967,1,"4,861.13",MAINTENANCE & SUPPORT,17/07/2014,"4,861.13"
070714C,CODEGATE LIMITED==============,206610,1,61.5,REPAIR & MAINTENANCE,17/07/2014,646.5
070714C,CODEGATE LIMITED==============,206610,2,575,PURCHASE,17/07/2014,
070714C,CODEGATE LIMITED==============,206610,3,10,REPAIR & MAINTENANCE,17/07/2014,
140714G,GRADIENT CONSULTANTS LLP======,2076,1,290,PROF FEES-MISCELLANEOUS,17/07/2014,455
140714G,GRADIENT CONSULTANTS LLP======,2076,2,55,PROF FEES-MISCELLANEOUS,17/07/2014,
140714G,GRADIENT CONSULTANTS LLP======,2076,3,55,PROF FEES-MISCELLANEOUS,17/07/2014,
140714G,GRADIENT CONSULTANTS LLP======,2076,4,55,PROF FEES-MISCELLANEOUS,17/07/2014,
040714C,EXCEL GROUP SERVICES LIMITED,211828,1,581.52,POSTAL SERVICES,17/07/2014,581.52
110714G,B NOKES CONTRACTS LTD,2246,1,"6,711.00",DEVELOPMENT  EXPENSES-CONTRACT,17/07/2014,"6,711.00"
140714G,BERKELEY CATERING LIMITED,225271,1,930.5,REFRESHMENTS,17/07/2014,930.5
110714G,B NOKES CONTRACTS LTD,2286,1,580,TACTICAL DAY TO DAY,17/07/2014,580
090714C,VODAFONE LIMITED==============,231815,1,"1,015.00",TELECOMMUNICATIONS,17/07/2014,"1,152.02"
090714C,VODAFONE LIMITED==============,231815,2,137.02,TELECOMMUNICATIONS,17/07/2014,
040714C,VIGILANCE PROPERTIES,2331,1,"7,500.00",PREMISES SECURITY,17/07/2014,"7,500.00"
040714C,VIGILANCE PROPERTIES,2353,1,"4,625.00",PREMISES SECURITY,17/07/2014,"4,625.00"
040714C,VIGILANCE PROPERTIES,2354,1,"4,625.00",PREMISES SECURITY,17/07/2014,"4,625.00"
040714C,VIGILANCE PROPERTIES,2355,1,"4,625.00",PREMISES SECURITY,17/07/2014,"4,625.00"
040714C,VIGILANCE PROPERTIES,2356,1,"4,625.00",PREMISES SECURITY,17/07/2014,"4,625.00"
040714C,VIGILANCE PROPERTIES,2357,1,"6,937.50",PREMISES SECURITY,17/07/2014,"6,937.50"
040714C,VIGILANCE PROPERTIES,2358,1,"4,625.00",PREMISES SECURITY,17/07/2014,"4,625.00"
040714C,VIGILANCE PROPERTIES,2359,1,"4,625.00",PREMISES SECURITY,17/07/2014,"4,625.00"
040714C,VIGILANCE PROPERTIES,2360,1,"4,625.00",PREMISES SECURITY,17/07/2014,"4,625.00"
040714C,VIGILANCE PROPERTIES,2361,1,"4,625.00",PREMISES SECURITY,17/07/2014,"4,625.00"
040714C,VIGILANCE PROPERTIES,2362,1,"4,625.00",PREMISES SECURITY,17/07/2014,"4,625.00"
110714G,BRISTOL UNIFORMS LTD==========,263184,1,748.42,CLOTHING,17/07/2014,748.42
110714G,BRISTOL UNIFORMS LTD==========,263185,1,"3,933.39",CLOTHING,17/07/2014,"3,933.39"
110714G,BRISTOL UNIFORMS LTD==========,263186,1,"197,575.56",CLOTHING,17/07/2014,"197,575.56"
800040517,ADECCO UK LIMITED=============,26839584,1,"1,471.35",FRS STAFF AGENCY,17/07/2014,"1,471.35"
800040538,ADECCO UK LIMITED=============,26839600,1,612.15,FRS STAFF AGENCY,17/07/2014,612.15
800040539,ADECCO UK LIMITED=============,26839601,1,879.9,FRS STAFF AGENCY,17/07/2014,879.9
080714C,PRECISE MEDIA MONITORING LTD==,285593,1,"1,143.30",PRESS OFFICE,17/07/2014,"1,143.30"
140714G,CARPETS & FLOOR COVERS DIRECT=,2901,1,"1,857.44",FIXTURES & FITTINGS,17/07/2014,"1,857.44"
140714G,CARPETS & FLOOR COVERS DIRECT=,2906,1,"1,171.35",PURCHASES-FITTINGS,17/07/2014,"1,171.35"
140714G,EUROLOOS LTD,29807,1,650,OPERATIONAL EQUIP-PURCHASE,17/07/2014,650
140714G,EUROLOOS LTD,29808,1,"1,495.00",OPERATIONAL EQUIP-PURCHASE,17/07/2014,"1,495.00"
140714G,EUROLOOS LTD,29809,1,"1,495.00",OPERATIONAL EQUIP-PURCHASE,17/07/2014,"1,495.00"
140714G,S W BRUCE & CO LTD,30321,1,"34,533.60",DEVELOPMENT  EXPENSES-CONTRACT,17/07/2014,"34,533.60"
140714G,S W BRUCE & CO LTD,30322,1,"21,912.32",DEVELOPMENT  EXPENSES-CONTRACT,17/07/2014,"21,912.32"
110714G,VI DISTRIBUTION,30538,1,"4,057.05",STRATEGIC (NON CYCLICAL),17/07/2014,"4,057.05"
110714G,MCGRATH BROS (WASTE CONTROL) L,328442,1,279.65,REFUSE COLLECTION,17/07/2014,279.65
140714G,MCGRATH BROS (WASTE CONTROL) L,328443,1,273,REFUSE COLLECTION,17/07/2014,585
140714G,MCGRATH BROS (WASTE CONTROL) L,328443,2,312,REFUSE COLLECTION,17/07/2014,
140714G,ARTIC BUILDING SERVICES LTD,35415,1,"12,852.00",STRATEGIC (NON CYCLICAL),17/07/2014,"12,852.00"
140714G,LEVEL 3 COMMUNICATIONS UK,35637986/909612,1,"3,276.00",MAINTENANCE & SUPPORT,17/07/2014,"90,526.84"
140714G,LEVEL 3 COMMUNICATIONS UK,35637986/909612,2,"1,596.33",MAINTENANCE & SUPPORT,17/07/2014,
140714G,LEVEL 3 COMMUNICATIONS UK,35637986/909612,3,"26,520.00",MAINTENANCE & SUPPORT,17/07/2014,
140714G,LEVEL 3 COMMUNICATIONS UK,35637986/909612,4,"2,262.39",MAINTENANCE & SUPPORT,17/07/2014,
140714G,LEVEL 3 COMMUNICATIONS UK,35637986/909612,5,103.75,MAINTENANCE & SUPPORT,17/07/2014,
140714G,LEVEL 3 COMMUNICATIONS UK,35637986/909612,6,"56,768.37",MAINTENANCE & SUPPORT,17/07/2014,
070714C,COMPUTACENTRE================,3780007791,1,267,ACQUISITIONS,17/07/2014,267
070714C,COMPUTACENTRE================,3780007793,1,267,ACQUISITIONS,17/07/2014,267
110714G,CANON (UK) LTD===============,401541750,1,14.46,OFFICE EQUIPMENT,17/07/2014,335.76
110714G,CANON (UK) LTD===============,401541750,2,26.78,OFFICE EQUIPMENT,17/07/2014,
110714G,CANON (UK) LTD===============,401541750,3,294.52,OFFICE EQUIPMENT,17/07/2014,
110714G,FOCUS & VISION TECHNOLOGY LTD,41137,1,663.96,MEDICAL EXPENSES CONTRACT,17/07/2014,663.96
110714G,FOCUS & VISION TECHNOLOGY LTD,41159,1,265.71,MEDICAL EXPENSES CONTRACT,17/07/2014,265.71
110714G,KNIGHTON CLEANING SERVICES LTD,41429,1,991.62,GENERAL CLEANS,17/07/2014,"69,564.50"
110714G,KNIGHTON CLEANING SERVICES LTD,41429,2,"1,093.94",GENERAL CLEANS,17/07/2014,
110714G,KNIGHTON CLEANING SERVICES LTD,41429,3,"1,025.14",GENERAL CLEANS,17/07/2014,
110714G,KNIGHTON CLEANING SERVICES LTD,41429,4,"1,235.07",GENERAL CLEANS,17/07/2014,
110714G,KNIGHTON CLEANING SERVICES LTD,41429,5,600.66,GENERAL CLEANS,17/07/2014,
110714G,KNIGHTON CLEANING SERVICES LTD,41429,6,"1,378.14",GENERAL CLEANS,17/07/2014,
110714G,KNIGHTON CLEANING SERVICES LTD,41429,7,"1,997.23",GENERAL CLEANS,17/07/2014,
110714G,KNIGHTON CLEANING SERVICES LTD,41429,8,"2,056.77",GENERAL CLEANS,17/07/2014,
110714G,KNIGHTON CLEANING SERVICES LTD,41429,9,"3,221.02",GENERAL CLEANS,17/07/2014,
110714G,KNIGHTON CLEANING SERVICES LTD,41429,10,"1,014.31",GENERAL CLEANS,17/07/2014,
110714G,KNIGHTON CLEANING SERVICES LTD,41429,11,897.76,GENERAL CLEANS,17/07/2014,
110714G,KNIGHTON CLEANING SERVICES LTD,41429,12,"1,230.40",GENERAL CLEANS,17/07/2014,
110714G,KNIGHTON CLEANING SERVICES LTD,41429,13,"1,021.91",GENERAL CLEANS,17/07/2014,
110714G,KNIGHTON CLEANING SERVICES LTD,41429,14,"1,067.57",GENERAL CLEANS,17/07/2014,
110714G,KNIGHTON CLEANING SERVICES LTD,41429,15,"1,092.48",GENERAL CLEANS,17/07/2014,
110714G,KNIGHTON CLEANING SERVICES LTD,41429,16,"1,359.80",GENERAL CLEANS,17/07/2014,
110714G,KNIGHTON CLEANING SERVICES LTD,41429,17,"1,237.63",GENERAL CLEANS,17/07/2014,
110714G,KNIGHTON CLEANING SERVICES LTD,41429,18,588.38,GENERAL CLEANS,17/07/2014,
110714G,KNIGHTON CLEANING SERVICES LTD,41429,19,"12,339.17",GENERAL CLEANS,17/07/2014,
110714G,KNIGHTON CLEANING SERVICES LTD,41429,20,"1,191.21",GENERAL CLEANS,17/07/2014,
110714G,KNIGHTON CLEANING SERVICES LTD,41429,21,396.82,GENERAL CLEANS,17/07/2014,
110714G,KNIGHTON CLEANING SERVICES LTD,41429,22,"1,507.79",GENERAL CLEANS,17/07/2014,
110714G,KNIGHTON CLEANING SERVICES LTD,41429,23,"3,162.03",GENERAL CLEANS,17/07/2014,
110714G,KNIGHTON CLEANING SERVICES LTD,41429,24,633.17,GENERAL CLEANS,17/07/2014,
110714G,KNIGHTON CLEANING SERVICES LTD,41429,25,"1,725.77",GENERAL CLEANS,17/07/2014,
110714G,KNIGHTON CLEANING SERVICES LTD,41429,26,852.78,GENERAL CLEANS,17/07/2014,
110714G,KNIGHTON CLEANING SERVICES LTD,41429,27,"1,301.90",GENERAL CLEANS,17/07/2014,
110714G,KNIGHTON CLEANING SERVICES LTD,41429,28,"1,918.39",GENERAL CLEANS,17/07/2014,
110714G,KNIGHTON CLEANING SERVICES LTD,41429,29,"1,240.41",GENERAL CLEANS,17/07/2014,
110714G,KNIGHTON CLEANING SERVICES LTD,41429,30,900.06,GENERAL CLEANS,17/07/2014,
110714G,KNIGHTON CLEANING SERVICES LTD,41429,31,"1,201.95",GENERAL CLEANS,17/07/2014,
110714G,KNIGHTON CLEANING SERVICES LTD,41429,32,"1,225.16",GENERAL CLEANS,17/07/2014,
110714G,KNIGHTON CLEANING SERVICES LTD,41429,33,"5,567.33",GENERAL CLEANS,17/07/2014,
110714G,KNIGHTON CLEANING SERVICES LTD,41429,34,731.29,GENERAL CLEANS,17/07/2014,
110714G,KNIGHTON CLEANING SERVICES LTD,41429,35,913.03,GENERAL CLEANS,17/07/2014,
110714G,KNIGHTON CLEANING SERVICES LTD,41429,36,"1,838.08",GENERAL CLEANS,17/07/2014,
110714G,KNIGHTON CLEANING SERVICES LTD,41429,37,"1,071.46",GENERAL CLEANS,17/07/2014,
110714G,KNIGHTON CLEANING SERVICES LTD,41429,38,811.49,GENERAL CLEANS,17/07/2014,
110714G,KNIGHTON CLEANING SERVICES LTD,41429,39,"1,615.01",GENERAL CLEANS,17/07/2014,
110714G,KNIGHTON CLEANING SERVICES LTD,41429,40,"1,312.98",GENERAL CLEANS,17/07/2014,
110714G,KNIGHTON CLEANING SERVICES LTD,41429,41,"1,307.85",GENERAL CLEANS,17/07/2014,
110714G,KNIGHTON CLEANING SERVICES LTD,41429,42,"1,210.26",GENERAL CLEANS,17/07/2014,
110714G,KNIGHTON CLEANING SERVICES LTD,41429,43,479.28,GENERAL CLEANS,17/07/2014,
110714G,KNIGHTON CLEANING SERVICES LTD,41443,1,"2,179.32",GENERAL CLEANS,17/07/2014,"78,179.98"
110714G,KNIGHTON CLEANING SERVICES LTD,41443,2,"2,016.80",GENERAL CLEANS,17/07/2014,
110714G,KNIGHTON CLEANING SERVICES LTD,41443,3,"1,424.19",GENERAL CLEANS,17/07/2014,
110714G,KNIGHTON CLEANING SERVICES LTD,41443,4,"1,150.68",GENERAL CLEANS,17/07/2014,
110714G,KNIGHTON CLEANING SERVICES LTD,41443,5,"1,202.80",GENERAL CLEANS,17/07/2014,
110714G,KNIGHTON CLEANING SERVICES LTD,41443,6,"1,064.57",GENERAL CLEANS,17/07/2014,
110714G,KNIGHTON CLEANING SERVICES LTD,41443,7,756.41,GENERAL CLEANS,17/07/2014,
110714G,KNIGHTON CLEANING SERVICES LTD,41443,8,"1,209.50",GENERAL CLEANS,17/07/2014,
110714G,KNIGHTON CLEANING SERVICES LTD,41443,9,"1,193.82",GENERAL CLEANS,17/07/2014,
110714G,KNIGHTON CLEANING SERVICES LTD,41443,10,"1,074.37",GENERAL CLEANS,17/07/2014,
110714G,KNIGHTON CLEANING SERVICES LTD,41443,11,"1,895.33",GENERAL CLEANS,17/07/2014,
110714G,KNIGHTON CLEANING SERVICES LTD,41443,12,"2,253.31",GENERAL CLEANS,17/07/2014,
110714G,KNIGHTON CLEANING SERVICES LTD,41443,13,761.25,GENERAL CLEANS,17/07/2014,
110714G,KNIGHTON CLEANING SERVICES LTD,41443,14,"1,443.83",GENERAL CLEANS,17/07/2014,
110714G,KNIGHTON CLEANING SERVICES LTD,41443,15,760.66,GENERAL CLEANS,17/07/2014,
110714G,KNIGHTON CLEANING SERVICES LTD,41443,16,"1,512.68",GENERAL CLEANS,17/07/2014,
110714G,KNIGHTON CLEANING SERVICES LTD,41443,17,"1,746.68",GENERAL CLEANS,17/07/2014,
110714G,KNIGHTON CLEANING SERVICES LTD,41443,18,776.01,GENERAL CLEANS,17/07/2014,
110714G,KNIGHTON CLEANING SERVICES LTD,41443,19,"2,295.39",GENERAL CLEANS,17/07/2014,
110714G,KNIGHTON CLEANING SERVICES LTD,41443,20,"1,820.81",GENERAL CLEANS,17/07/2014,
110714G,KNIGHTON CLEANING SERVICES LTD,41443,21,929,GENERAL CLEANS,17/07/2014,
110714G,KNIGHTON CLEANING SERVICES LTD,41443,22,930.22,GENERAL CLEANS,17/07/2014,
110714G,KNIGHTON CLEANING SERVICES LTD,41443,23,"1,079.28",GENERAL CLEANS,17/07/2014,
110714G,KNIGHTON CLEANING SERVICES LTD,41443,24,"1,762.12",GENERAL CLEANS,17/07/2014,
110714G,KNIGHTON CLEANING SERVICES LTD,41443,25,"1,047.27",GENERAL CLEANS,17/07/2014,
110714G,KNIGHTON CLEANING SERVICES LTD,41443,26,821.3,GENERAL CLEANS,17/07/2014,
110714G,KNIGHTON CLEANING SERVICES LTD,41443,27,967.95,GENERAL CLEANS,17/07/2014,
110714G,KNIGHTON CLEANING SERVICES LTD,41443,28,"1,331.26",GENERAL CLEANS,17/07/2014,
110714G,KNIGHTON CLEANING SERVICES LTD,41443,29,769.15,GENERAL CLEANS,17/07/2014,
110714G,KNIGHTON CLEANING SERVICES LTD,41443,30,"1,552.66",GENERAL CLEANS,17/07/2014,
110714G,KNIGHTON CLEANING SERVICES LTD,41443,31,"1,269.14",GENERAL CLEANS,17/07/2014,
110714G,KNIGHTON CLEANING SERVICES LTD,41443,32,"1,390.96",GENERAL CLEANS,17/07/2014,
110714G,KNIGHTON CLEANING SERVICES LTD,41443,33,781.29,GENERAL CLEANS,17/07/2014,
110714G,KNIGHTON CLEANING SERVICES LTD,41443,34,936.38,GENERAL CLEANS,17/07/2014,
110714G,KNIGHTON CLEANING SERVICES LTD,41443,35,955.47,GENERAL CLEANS,17/07/2014,
110714G,KNIGHTON CLEANING SERVICES LTD,41443,36,696.05,GENERAL CLEANS,17/07/2014,
110714G,KNIGHTON CLEANING SERVICES LTD,41443,37,"1,509.43",GENERAL CLEANS,17/07/2014,
110714G,KNIGHTON CLEANING SERVICES LTD,41443,38,"1,333.12",GENERAL CLEANS,17/07/2014,
110714G,KNIGHTON CLEANING SERVICES LTD,41443,39,948.17,GENERAL CLEANS,17/07/2014,
110714G,KNIGHTON CLEANING SERVICES LTD,41443,40,"2,789.42",GENERAL CLEANS,17/07/2014,
110714G,KNIGHTON CLEANING SERVICES LTD,41443,41,"1,031.38",GENERAL CLEANS,17/07/2014,
110714G,KNIGHTON CLEANING SERVICES LTD,41443,42,"1,077.95",GENERAL CLEANS,17/07/2014,
110714G,KNIGHTON CLEANING SERVICES LTD,41443,43,"1,043.41",GENERAL CLEANS,17/07/2014,
110714G,KNIGHTON CLEANING SERVICES LTD,41443,44,946.71,GENERAL CLEANS,17/07/2014,
110714G,KNIGHTON CLEANING SERVICES LTD,41443,45,"1,292.11",GENERAL CLEANS,17/07/2014,
110714G,KNIGHTON CLEANING SERVICES LTD,41443,46,"2,271.32",GENERAL CLEANS,17/07/2014,
110714G,KNIGHTON CLEANING SERVICES LTD,41443,47,"1,852.56",GENERAL CLEANS,17/07/2014,
110714G,KNIGHTON CLEANING SERVICES LTD,41443,48,"1,041.22",GENERAL CLEANS,17/07/2014,
110714G,KNIGHTON CLEANING SERVICES LTD,41443,49,620.74,GENERAL CLEANS,17/07/2014,
110714G,KNIGHTON CLEANING SERVICES LTD,41443,50,678.04,GENERAL CLEANS,17/07/2014,
110714G,KNIGHTON CLEANING SERVICES LTD,41443,51,788.06,GENERAL CLEANS,17/07/2014,
110714G,KNIGHTON CLEANING SERVICES LTD,41443,52,"2,314.55",GENERAL CLEANS,17/07/2014,
110714G,KNIGHTON CLEANING SERVICES LTD,41443,53,916.7,GENERAL CLEANS,17/07/2014,
110714G,KNIGHTON CLEANING SERVICES LTD,41443,54,"1,587.64",GENERAL CLEANS,17/07/2014,
110714G,KNIGHTON CLEANING SERVICES LTD,41443,55,"2,615.05",GENERAL CLEANS,17/07/2014,
110714G,KNIGHTON CLEANING SERVICES LTD,41443,56,766.46,GENERAL CLEANS,17/07/2014,
110714G,KNIGHTON CLEANING SERVICES LTD,41443,57,783.17,GENERAL CLEANS,17/07/2014,
110714G,KNIGHTON CLEANING SERVICES LTD,41443,58,13,GENERAL CLEANS,17/07/2014,
110714G,KNIGHTON CLEANING SERVICES LTD,41443,59,"1,064.91",GENERAL CLEANS,17/07/2014,
110714G,KNIGHTON CLEANING SERVICES LTD,41443,60,808.7,GENERAL CLEANS,17/07/2014,
110714G,KNIGHTON CLEANING SERVICES LTD,41443,61,"1,051.51",GENERAL CLEANS,17/07/2014,
110714G,KNIGHTON CLEANING SERVICES LTD,41443,62,"1,276.74",GENERAL CLEANS,17/07/2014,
140714G,BOND DICKINSON LLP,4176798,1,"1,293.30",PROFESSIONAL SERVICES,17/07/2014,"1,293.30"
110714G,MARTIN LAVELL LTD=============,41962,1,337.6,BOOKS & JOURNALS,17/07/2014,356.1
110714G,MARTIN LAVELL LTD=============,41962,2,18.5,BOOKS & JOURNALS,17/07/2014,
040714C,GLOBAL TO LOCAL LTD,437/17/AF194,1,200,CONSULTANTS,17/07/2014,"1,482.29"
040714C,GLOBAL TO LOCAL LTD,437/17/AF194,2,"1,000.00",CONSULTANTS,17/07/2014,
040714C,GLOBAL TO LOCAL LTD,437/17/AF194,3,282.29,CONSULTANTS,17/07/2014,
020714C,MITIE SECURITY (LONDON) LTD===,45/559234,1,"5,670.00",PREMISES SECURITY,17/07/2014,"5,670.00"
110714G,SPORTSAFE UK LTD==============,459370,1,260,GYM EQUIPMENT,17/07/2014,260
140714G,SPORTSAFE UK LTD==============,459417,1,275,GYM EQUIPMENT,17/07/2014,275
110714G,SPORTSAFE UK LTD==============,459418,1,330,GYM EQUIPMENT,17/07/2014,330
110714G,SPORTSAFE UK LTD==============,459419,1,260,GYM EQUIPMENT,17/07/2014,260
110714G,SPORTSAFE UK LTD==============,459421,1,147,GYM EQUIPMENT,17/07/2014,352.76
110714G,SPORTSAFE UK LTD==============,459421,2,205.76,GYM EQUIPMENT,17/07/2014,
140714G,R J HOLLAND LTD===============,4818,1,741.55,DEVELOPMENT  EXPENSES-CONTRACT,17/07/2014,"1,403.81"
140714G,R J HOLLAND LTD===============,4818,2,662.26,DEVELOPMENT  EXPENSES-CONTRACT,17/07/2014,
800040327,*GREENHAM TRADING LTD=========,5647239,1,184.58,HYGIENE,17/07/2014,485.06
800040327,*GREENHAM TRADING LTD=========,5647239,2,4.75,HYGIENE,17/07/2014,
800040327,*GREENHAM TRADING LTD=========,5647239,3,8.55,HYGIENE,17/07/2014,
800040327,*GREENHAM TRADING LTD=========,5647239,4,31,HYGIENE,17/07/2014,
800040327,*GREENHAM TRADING LTD=========,5647239,5,29.5,HYGIENE,17/07/2014,
800040327,*GREENHAM TRADING LTD=========,5647239,6,3.8,HYGIENE,17/07/2014,
800040327,*GREENHAM TRADING LTD=========,5647239,7,3.8,HYGIENE,17/07/2014,
800040327,*GREENHAM TRADING LTD=========,5647239,8,7.28,HYGIENE,17/07/2014,
800040327,*GREENHAM TRADING LTD=========,5647239,9,5.66,HYGIENE,17/07/2014,
800040327,*GREENHAM TRADING LTD=========,5647239,10,46.49,HYGIENE,17/07/2014,
800040327,*GREENHAM TRADING LTD=========,5647239,11,118.9,HYGIENE,17/07/2014,
800040327,*GREENHAM TRADING LTD=========,5647239,12,40.75,HYGIENE,17/07/2014,
140714G,GAS & AIR SERVICES (UK)=======,6426,1,"1,321.42",REPAIR & MAINTENANCE,17/07/2014,"1,321.42"
110714G,TRY & LILLY LTD===============,64477,1,106.06,UNIFORMS - POMS,17/07/2014,897.29
110714G,TRY & LILLY LTD===============,64477,2,159.09,UNIFORMS - POMS,17/07/2014,
110714G,TRY & LILLY LTD===============,64477,3,159.09,UNIFORMS - POMS,17/07/2014,
110714G,TRY & LILLY LTD===============,64477,4,319.1,UNIFORMS - POMS,17/07/2014,
110714G,TRY & LILLY LTD===============,64477,5,153.95,UNIFORMS - POMS,17/07/2014,
040714C,SWEETT  UK LTD,7039915,1,440.13,PROF FEES-MISCELLANEOUS,17/07/2014,440.13
030714F,SWEETT  UK LTD,7039916,1,542.16,DEVELOPMENT  EXPENSES-CONTRACT,17/07/2014,542.16
140714F,OPERATIONAL RESEARCH IN HEALTH,70Y/LFB1/46,1,"9,405.00",CONSULTANTS,17/07/2014,"9,405.00"
070714C,ARTELIA,7238,1,"2,176.22",CONSULTANTS,17/07/2014,"2,176.22"
140714G,CANON (UK) LTD===============,770473256,1,307.26,OFFICE EQUIPMENT,17/07/2014,307.26
140714G,CANON (UK) LTD===============,770473260,1,307.26,OFFICE EQUIPMENT,17/07/2014,307.26
110714G,TWO SERVICES LTD==============,77154,1,60,CATERING EQUIPMENT,17/07/2014,274.28
110714G,TWO SERVICES LTD==============,77154,2,214.28,CATERING EQUIPMENT,17/07/2014,
140714G,VCG KESTREL LIMITED===========,89292,1,475,PRINTING,17/07/2014,475
110714G,CITY UNIVERSITY===============,90303433,1,"1,960.00",MEDICAL EXPENSES CONTRACT,17/07/2014,"1,960.00"
140714G,DRAEGER SAFETY UK LIMITED=====,90446989,1,313.6,PROTECTIVE EQUIPT - PARTS,17/07/2014,"1,133.80"
140714G,DRAEGER SAFETY UK LIMITED=====,90446989,2,35.1,PROTECTIVE EQUIPT - PARTS,17/07/2014,
140714G,DRAEGER SAFETY UK LIMITED=====,90446989,3,232,PROTECTIVE EQUIPT - PARTS,17/07/2014,
140714G,DRAEGER SAFETY UK LIMITED=====,90446989,4,83.2,PROTECTIVE EQUIPT - PARTS,17/07/2014,
140714G,DRAEGER SAFETY UK LIMITED=====,90446989,5,23,PROTECTIVE EQUIPT - PARTS,17/07/2014,
140714G,DRAEGER SAFETY UK LIMITED=====,90446989,6,111.1,PROTECTIVE EQUIPT - PARTS,17/07/2014,
140714G,DRAEGER SAFETY UK LIMITED=====,90446989,7,25.4,PROTECTIVE EQUIPT - PARTS,17/07/2014,
140714G,DRAEGER SAFETY UK LIMITED=====,90446989,8,310.4,PROTECTIVE EQUIPT - PARTS,17/07/2014,
010714E,LPFA CONTRIBUTIONS ACCOUNT====,BD530,1,"63,947.00",PENSION SERVICES,17/07/2014,"63,947.00"
800040627,ALLSTAR BUSINESS SOLUTIONS LTD,E2003137380,1,958.85,FUEL,17/07/2014,"19,571.61"
800040627,ALLSTAR BUSINESS SOLUTIONS LTD,E2003137380,2,923.61,FUEL,17/07/2014,
800040627,ALLSTAR BUSINESS SOLUTIONS LTD,E2003137380,3,637.18,FUEL,17/07/2014,
800040627,ALLSTAR BUSINESS SOLUTIONS LTD,E2003137380,4,633.52,FUEL,17/07/2014,
800040627,ALLSTAR BUSINESS SOLUTIONS LTD,E2003137380,5,485.79,FUEL,17/07/2014,
800040627,ALLSTAR BUSINESS SOLUTIONS LTD,E2003137380,6,464.38,FUEL,17/07/2014,
800040627,ALLSTAR BUSINESS SOLUTIONS LTD,E2003137380,7,454.1,FUEL,17/07/2014,
800040627,ALLSTAR BUSINESS SOLUTIONS LTD,E2003137380,8,424.92,FUEL,17/07/2014,
800040627,ALLSTAR BUSINESS SOLUTIONS LTD,E2003137380,9,385.46,FUEL,17/07/2014,
800040627,ALLSTAR BUSINESS SOLUTIONS LTD,E2003137380,10,381.79,FUEL,17/07/2014,
800040627,ALLSTAR BUSINESS SOLUTIONS LTD,E2003137380,11,377.15,FUEL,17/07/2014,
800040627,ALLSTAR BUSINESS SOLUTIONS LTD,E2003137380,12,350.65,FUEL,17/07/2014,
800040627,ALLSTAR BUSINESS SOLUTIONS LTD,E2003137380,13,328.02,FUEL,17/07/2014,
800040627,ALLSTAR BUSINESS SOLUTIONS LTD,E2003137380,14,313.38,FUEL,17/07/2014,
800040627,ALLSTAR BUSINESS SOLUTIONS LTD,E2003137380,15,308.9,FUEL,17/07/2014,
800040627,ALLSTAR BUSINESS SOLUTIONS LTD,E2003137380,16,304.07,FUEL,17/07/2014,
800040627,ALLSTAR BUSINESS SOLUTIONS LTD,E2003137380,17,297.2,FUEL,17/07/2014,
800040627,ALLSTAR BUSINESS SOLUTIONS LTD,E2003137380,18,295.37,FUEL,17/07/2014,
800040627,ALLSTAR BUSINESS SOLUTIONS LTD,E2003137380,19,288.91,FUEL,17/07/2014,
800040627,ALLSTAR BUSINESS SOLUTIONS LTD,E2003137380,20,282.54,FUEL,17/07/2014,
800040627,ALLSTAR BUSINESS SOLUTIONS LTD,E2003137380,21,277.02,FUEL,17/07/2014,
800040627,ALLSTAR BUSINESS SOLUTIONS LTD,E2003137380,22,276.7,FUEL,17/07/2014,
800040627,ALLSTAR BUSINESS SOLUTIONS LTD,E2003137380,23,275.87,FUEL,17/07/2014,
800040627,ALLSTAR BUSINESS SOLUTIONS LTD,E2003137380,24,253.37,FUEL,17/07/2014,
800040627,ALLSTAR BUSINESS SOLUTIONS LTD,E2003137380,25,244.34,FUEL,17/07/2014,
800040627,ALLSTAR BUSINESS SOLUTIONS LTD,E2003137380,26,236.98,FUEL,17/07/2014,
800040627,ALLSTAR BUSINESS SOLUTIONS LTD,E2003137380,27,236.22,FUEL,17/07/2014,
800040627,ALLSTAR BUSINESS SOLUTIONS LTD,E2003137380,28,233.56,FUEL,17/07/2014,
800040627,ALLSTAR BUSINESS SOLUTIONS LTD,E2003137380,29,229.03,FUEL,17/07/2014,
800040627,ALLSTAR BUSINESS SOLUTIONS LTD,E2003137380,30,223.27,FUEL,17/07/2014,
800040627,ALLSTAR BUSINESS SOLUTIONS LTD,E2003137380,31,221.54,FUEL,17/07/2014,
800040627,ALLSTAR BUSINESS SOLUTIONS LTD,E2003137380,32,219.4,FUEL,17/07/2014,
800040627,ALLSTAR BUSINESS SOLUTIONS LTD,E2003137380,33,217.73,FUEL,17/07/2014,
800040627,ALLSTAR BUSINESS SOLUTIONS LTD,E2003137380,34,216.82,FUEL,17/07/2014,
800040627,ALLSTAR BUSINESS SOLUTIONS LTD,E2003137380,35,208.15,FUEL,17/07/2014,
800040627,ALLSTAR BUSINESS SOLUTIONS LTD,E2003137380,36,204.45,FUEL,17/07/2014,
800040627,ALLSTAR BUSINESS SOLUTIONS LTD,E2003137380,37,193.19,FUEL,17/07/2014,
800040627,ALLSTAR BUSINESS SOLUTIONS LTD,E2003137380,38,186.93,FUEL,17/07/2014,
800040627,ALLSTAR BUSINESS SOLUTIONS LTD,E2003137380,39,186.83,FUEL,17/07/2014,
800040627,ALLSTAR BUSINESS SOLUTIONS LTD,E2003137380,40,185.83,FUEL,17/07/2014,
800040627,ALLSTAR BUSINESS SOLUTIONS LTD,E2003137380,41,183.68,FUEL,17/07/2014,
800040627,ALLSTAR BUSINESS SOLUTIONS LTD,E2003137380,42,180.32,FUEL,17/07/2014,
800040627,ALLSTAR BUSINESS SOLUTIONS LTD,E2003137380,43,175.27,FUEL,17/07/2014,
800040627,ALLSTAR BUSINESS SOLUTIONS LTD,E2003137380,44,172.84,FUEL,17/07/2014,
800040627,ALLSTAR BUSINESS SOLUTIONS LTD,E2003137380,45,169.99,FUEL,17/07/2014,
800040627,ALLSTAR BUSINESS SOLUTIONS LTD,E2003137380,46,169.14,FUEL,17/07/2014,
800040627,ALLSTAR BUSINESS SOLUTIONS LTD,E2003137380,47,158.2,FUEL,17/07/2014,
800040627,ALLSTAR BUSINESS SOLUTIONS LTD,E2003137380,48,154.01,FUEL,17/07/2014,
800040627,ALLSTAR BUSINESS SOLUTIONS LTD,E2003137380,49,150.79,FUEL,17/07/2014,
800040627,ALLSTAR BUSINESS SOLUTIONS LTD,E2003137380,50,149.6,FUEL,17/07/2014,
800040627,ALLSTAR BUSINESS SOLUTIONS LTD,E2003137380,51,146.18,FUEL,17/07/2014,
800040627,ALLSTAR BUSINESS SOLUTIONS LTD,E2003137380,52,145.71,FUEL,17/07/2014,
800040627,ALLSTAR BUSINESS SOLUTIONS LTD,E2003137380,53,141.33,FUEL,17/07/2014,
800040627,ALLSTAR BUSINESS SOLUTIONS LTD,E2003137380,54,141,FUEL,17/07/2014,
800040627,ALLSTAR BUSINESS SOLUTIONS LTD,E2003137380,55,140.2,FUEL,17/07/2014,
800040627,ALLSTAR BUSINESS SOLUTIONS LTD,E2003137380,56,130.21,FUEL,17/07/2014,
800040627,ALLSTAR BUSINESS SOLUTIONS LTD,E2003137380,57,129.77,FUEL,17/07/2014,
800040627,ALLSTAR BUSINESS SOLUTIONS LTD,E2003137380,58,128.83,FUEL,17/07/2014,
800040627,ALLSTAR BUSINESS SOLUTIONS LTD,E2003137380,59,128.36,FUEL,17/07/2014,
800040627,ALLSTAR BUSINESS SOLUTIONS LTD,E2003137380,60,128.12,FUEL,17/07/2014,
800040627,ALLSTAR BUSINESS SOLUTIONS LTD,E2003137380,61,122.99,FUEL,17/07/2014,
800040627,ALLSTAR BUSINESS SOLUTIONS LTD,E2003137380,62,122.92,FUEL,17/07/2014,
800040627,ALLSTAR BUSINESS SOLUTIONS LTD,E2003137380,63,122.87,FUEL,17/07/2014,
800040627,ALLSTAR BUSINESS SOLUTIONS LTD,E2003137380,64,116.95,FUEL,17/07/2014,
800040627,ALLSTAR BUSINESS SOLUTIONS LTD,E2003137380,65,116.68,FUEL,17/07/2014,
800040627,ALLSTAR BUSINESS SOLUTIONS LTD,E2003137380,66,114.95,FUEL,17/07/2014,
800040627,ALLSTAR BUSINESS SOLUTIONS LTD,E2003137380,67,114.23,FUEL,17/07/2014,
800040627,ALLSTAR BUSINESS SOLUTIONS LTD,E2003137380,68,113.58,FUEL,17/07/2014,
800040627,ALLSTAR BUSINESS SOLUTIONS LTD,E2003137380,69,111.99,FUEL,17/07/2014,
800040627,ALLSTAR BUSINESS SOLUTIONS LTD,E2003137380,70,107.45,FUEL,17/07/2014,
800040627,ALLSTAR BUSINESS SOLUTIONS LTD,E2003137380,71,102.65,FUEL,17/07/2014,
800040627,ALLSTAR BUSINESS SOLUTIONS LTD,E2003137380,72,102.47,FUEL,17/07/2014,
800040627,ALLSTAR BUSINESS SOLUTIONS LTD,E2003137380,73,102.39,FUEL,17/07/2014,
800040627,ALLSTAR BUSINESS SOLUTIONS LTD,E2003137380,74,101.11,FUEL,17/07/2014,
800040627,ALLSTAR BUSINESS SOLUTIONS LTD,E2003137380,75,94.35,FUEL,17/07/2014,
800040627,ALLSTAR BUSINESS SOLUTIONS LTD,E2003137380,76,91.32,FUEL,17/07/2014,
800040627,ALLSTAR BUSINESS SOLUTIONS LTD,E2003137380,77,91.07,FUEL,17/07/2014,
800040627,ALLSTAR BUSINESS SOLUTIONS LTD,E2003137380,78,85.34,FUEL,17/07/2014,
800040627,ALLSTAR BUSINESS SOLUTIONS LTD,E2003137380,79,84.89,FUEL,17/07/2014,
800040627,ALLSTAR BUSINESS SOLUTIONS LTD,E2003137380,80,83.89,FUEL,17/07/2014,
800040627,ALLSTAR BUSINESS SOLUTIONS LTD,E2003137380,81,82.72,FUEL,17/07/2014,
800040627,ALLSTAR BUSINESS SOLUTIONS LTD,E2003137380,82,75.1,FUEL,17/07/2014,
800040627,ALLSTAR BUSINESS SOLUTIONS LTD,E2003137380,83,72,FUEL,17/07/2014,
800040627,ALLSTAR BUSINESS SOLUTIONS LTD,E2003137380,84,71.21,FUEL,17/07/2014,
800040627,ALLSTAR BUSINESS SOLUTIONS LTD,E2003137380,85,71,FUEL,17/07/2014,
800040627,ALLSTAR BUSINESS SOLUTIONS LTD,E2003137380,86,70.12,FUEL,17/07/2014,
800040627,ALLSTAR BUSINESS SOLUTIONS LTD,E2003137380,87,65,FUEL,17/07/2014,
800040627,ALLSTAR BUSINESS SOLUTIONS LTD,E2003137380,88,63.96,FUEL,17/07/2014,
800040627,ALLSTAR BUSINESS SOLUTIONS LTD,E2003137380,89,63.01,FUEL,17/07/2014,
800040627,ALLSTAR BUSINESS SOLUTIONS LTD,E2003137380,90,62.64,FUEL,17/07/2014,
800040627,ALLSTAR BUSINESS SOLUTIONS LTD,E2003137380,91,61.77,FUEL,17/07/2014,
800040627,ALLSTAR BUSINESS SOLUTIONS LTD,E2003137380,92,56.08,FUEL,17/07/2014,
800040627,ALLSTAR BUSINESS SOLUTIONS LTD,E2003137380,93,45.84,FUEL,17/07/2014,
800040627,ALLSTAR BUSINESS SOLUTIONS LTD,E2003137380,94,45.4,FUEL,17/07/2014,
800040627,ALLSTAR BUSINESS SOLUTIONS LTD,E2003137380,95,43.33,FUEL,17/07/2014,
800040627,ALLSTAR BUSINESS SOLUTIONS LTD,E2003137380,96,37.58,FUEL,17/07/2014,
800040627,ALLSTAR BUSINESS SOLUTIONS LTD,E2003137380,97,34.19,FUEL,17/07/2014,
140714G,HALL FUELS,I06888674,1,"3,199.50",FUEL,17/07/2014,"3,199.50"
110714G,HALL FUELS,I06903100,1,"3,232.80",FUEL,17/07/2014,"3,232.80"
110714G,HALL FUELS,I06903101,1,"3,232.80",FUEL,17/07/2014,"3,232.80"
010714E,MOTT MACDONALD============,IN00293731,1,"6,052.50",CONSULTANTS,17/07/2014,"6,052.50"
010714E,MOTT MACDONALD============,IN00293732,1,"1,835.00",CONSULTANTS,17/07/2014,"1,835.00"
140714F,SERVOCA SECURE SOLUTIONS LTD,IN006056,1,"3,272.00",PREMISES SECURITY,17/07/2014,"3,272.00"
140714G,CHILDCARE VOUCHERS LTD========,INS09071722/144969,1,674.34,CHILDCARE,17/07/2014,674.34
140736,JCT600 CONTRACTS LIMITED======,INV00055742,1,320.39,LEASE CAR CHARGES,17/07/2014,320.39
140736,JCT600 CONTRACTS LIMITED======,INV00055742,2,-28.38,VAT CAR LEASING,17/07/2014,
140736,JCT600 CONTRACTS LIMITED======,INV00055742,3,28.38,LEASE CAR CHARGES,17/07/2014,
140736,JCT600 CONTRACTS LIMITED======,INV00065601,1,450.75,LEASE CAR CHARGES,17/07/2014,450.75
140736,JCT600 CONTRACTS LIMITED======,INV00065601,2,-39.01,VAT CAR LEASING,17/07/2014,
140736,JCT600 CONTRACTS LIMITED======,INV00065601,3,39.01,LEASE CAR CHARGES,17/07/2014,
140736,JCT600 CONTRACTS LIMITED======,INV00065602,1,273.7,LEASE CAR CHARGES,17/07/2014,273.7
140736,JCT600 CONTRACTS LIMITED======,INV00065602,2,-23.28,VAT CAR LEASING,17/07/2014,
140736,JCT600 CONTRACTS LIMITED======,INV00065602,3,23.28,LEASE CAR CHARGES,17/07/2014,
140736,JCT600 CONTRACTS LIMITED======,INV00065603,1,326.15,LEASE CAR CHARGES,17/07/2014,326.15
140736,JCT600 CONTRACTS LIMITED======,INV00065603,2,-28.05,VAT CAR LEASING,17/07/2014,
140736,JCT600 CONTRACTS LIMITED======,INV00065603,3,28.05,LEASE CAR CHARGES,17/07/2014,
140736,JCT600 CONTRACTS LIMITED======,INV00065604,1,332.29,LEASE CAR CHARGES,17/07/2014,332.29
140736,JCT600 CONTRACTS LIMITED======,INV00065604,2,-29.46,VAT CAR LEASING,17/07/2014,
140736,JCT600 CONTRACTS LIMITED======,INV00065604,3,29.46,LEASE CAR CHARGES,17/07/2014,
140736,JCT600 CONTRACTS LIMITED======,INV00065605,1,345.97,LEASE CAR CHARGES,17/07/2014,345.97
140736,JCT600 CONTRACTS LIMITED======,INV00065605,2,-30.65,VAT CAR LEASING,17/07/2014,
140736,JCT600 CONTRACTS LIMITED======,INV00065605,3,30.65,LEASE CAR CHARGES,17/07/2014,
140736,JCT600 CONTRACTS LIMITED======,INV00065606,1,346.32,LEASE CAR CHARGES,17/07/2014,346.32
140736,JCT600 CONTRACTS LIMITED======,INV00065606,2,-30.76,VAT CAR LEASING,17/07/2014,
140736,JCT600 CONTRACTS LIMITED======,INV00065606,3,30.76,LEASE CAR CHARGES,17/07/2014,
140736,JCT600 CONTRACTS LIMITED======,INV00065607,1,358.44,LEASE CAR CHARGES,17/07/2014,358.44
140736,JCT600 CONTRACTS LIMITED======,INV00065607,2,-31.9,VAT CAR LEASING,17/07/2014,
140736,JCT600 CONTRACTS LIMITED======,INV00065607,3,31.9,LEASE CAR CHARGES,17/07/2014,
140736,JCT600 CONTRACTS LIMITED======,INV00065608,1,405.78,LEASE CAR CHARGES,17/07/2014,405.78
140736,JCT600 CONTRACTS LIMITED======,INV00065608,2,-36.66,VAT CAR LEASING,17/07/2014,
140736,JCT600 CONTRACTS LIMITED======,INV00065608,3,36.66,LEASE CAR CHARGES,17/07/2014,
140736,JCT600 CONTRACTS LIMITED======,INV00065609,1,490.95,LEASE CAR CHARGES,17/07/2014,490.95
140736,JCT600 CONTRACTS LIMITED======,INV00065609,2,-44.06,VAT CAR LEASING,17/07/2014,
140736,JCT600 CONTRACTS LIMITED======,INV00065609,3,44.06,LEASE CAR CHARGES,17/07/2014,
140736,JCT600 CONTRACTS LIMITED======,INV00065934,1,"3,943.92",LEASE CAR CHARGES,17/07/2014,"5,558.04"
140736,JCT600 CONTRACTS LIMITED======,INV00065934,2,"1,614.12",P/PAYMTS-CAR LEASG-RENTAL,17/07/2014,
140736,JCT600 CONTRACTS LIMITED======,INV00065934,3,-498.12,VAT CAR LEASING,17/07/2014,
140736,JCT600 CONTRACTS LIMITED======,INV00065934,4,498.12,LEASE CAR CHARGES,17/07/2014,
140736,JCT600 CONTRACTS LIMITED======,INV00065935,1,"2,458.10",LEASE CAR CHARGES,17/07/2014,"3,603.24"
140736,JCT600 CONTRACTS LIMITED======,INV00065935,2,"1,145.14",P/PAYMTS-CAR LEASG-RENTAL,17/07/2014,
140736,JCT600 CONTRACTS LIMITED======,INV00065935,3,-316.99,VAT CAR LEASING,17/07/2014,
140736,JCT600 CONTRACTS LIMITED======,INV00065935,4,316.99,LEASE CAR CHARGES,17/07/2014,
140736,JCT600 CONTRACTS LIMITED======,INV00065936,1,"2,613.17",LEASE CAR CHARGES,17/07/2014,"3,506.64"
140736,JCT600 CONTRACTS LIMITED======,INV00065936,2,893.47,P/PAYMTS-CAR LEASG-RENTAL,17/07/2014,
140736,JCT600 CONTRACTS LIMITED======,INV00065936,3,-315.12,VAT CAR LEASING,17/07/2014,
140736,JCT600 CONTRACTS LIMITED======,INV00065936,4,315.12,LEASE CAR CHARGES,17/07/2014,
110714G,SKYGUARD LTD,INV5450,1,"1,701.70",OPERATIONAL EQUIP-PURCHASE,17/07/2014,"1,701.70"
140714G,GREEN BROTHERS SIGNS LTD,INV5687,1,510.24,OPERATIONAL EQUIP-PURCHASE,17/07/2014,510.24
902430,NAT WEST BANK=================,Jun-14,1,"1,381.77",BANK CHARGES,17/07/2014,"1,381.77"
110714G,BLUE3 (LONDON) LTD OPERATING,LFB-ISP-006,1,"3,852.52",DAY TO DAY MINOR IMPS,17/07/2014,"3,852.52"
110714G,COFELY WORKPLACE LIMITED,M128940,1,"1,248.85",STRATEGIC (NON CYCLICAL),17/07/2014,"1,248.85"
140737,ARVAL UK LTD,RI000125134,1,"2,674.73",LEASE CAR CHARGES,17/07/2014,"3,563.05"
140737,ARVAL UK LTD,RI000125134,2,888.32,P/PAYMTS-CAR LEASG-RENTAL,17/07/2014,
140737,ARVAL UK LTD,RI000125134,3,-301.68,VAT CAR LEASING,17/07/2014,
140737,ARVAL UK LTD,RI000125134,4,301.68,LEASE CAR CHARGES,17/07/2014,
140737,ARVAL UK LTD,RI0001254130,1,418.58,LEASE CAR CHARGES,17/07/2014,418.58
140737,ARVAL UK LTD,RI0001254130,2,-33.3,VAT CAR LEASING,17/07/2014,
140737,ARVAL UK LTD,RI0001254130,3,33.3,LEASE CAR CHARGES,17/07/2014,
140737,ARVAL UK LTD,RI0001254131,1,398.2,LEASE CAR CHARGES,17/07/2014,398.2
140737,ARVAL UK LTD,RI0001254131,2,-34.16,VAT CAR LEASING,17/07/2014,
140737,ARVAL UK LTD,RI0001254131,3,34.16,LEASE CAR CHARGES,17/07/2014,
140737,ARVAL UK LTD,RI0001254133,1,380.74,LEASE CAR CHARGES,17/07/2014,380.74
140737,ARVAL UK LTD,RI0001254133,2,-30.18,VAT CAR LEASING,17/07/2014,
140737,ARVAL UK LTD,RI0001254133,3,30.18,LEASE CAR CHARGES,17/07/2014,
140737,ARVAL UK LTD,RI0001254135,1,"2,296.97",LEASE CAR CHARGES,17/07/2014,"3,093.71"
140737,ARVAL UK LTD,RI0001254135,2,796.74,P/PAYMTS-CAR LEASG-RENTAL,17/07/2014,
140737,ARVAL UK LTD,RI0001254135,3,-260.44,VAT CAR LEASING,17/07/2014,
140737,ARVAL UK LTD,RI0001254135,4,260.44,LEASE CAR CHARGES,17/07/2014,
140737,ARVAL UK LTD,RI0001254136,1,"2,620.60",LEASE CAR CHARGES,17/07/2014,"3,490.95"
140737,ARVAL UK LTD,RI0001254136,2,870.35,P/PAYMTS-CAR LEASG-RENTAL,17/07/2014,
140737,ARVAL UK LTD,RI0001254136,3,-301.36,VAT CAR LEASING,17/07/2014,
140737,ARVAL UK LTD,RI0001254136,4,301.36,LEASE CAR CHARGES,17/07/2014,
140737,ARVAL UK LTD,RI0001254137,1,"3,264.17",LEASE CAR CHARGES,17/07/2014,"4,348.25"
140737,ARVAL UK LTD,RI0001254137,2,"1,084.08",P/PAYMTS-CAR LEASG-RENTAL,17/07/2014,
140737,ARVAL UK LTD,RI0001254137,3,-361.48,VAT CAR LEASING,17/07/2014,
140737,ARVAL UK LTD,RI0001254137,4,361.48,LEASE CAR CHARGES,17/07/2014,
030714F,HUNTER LODGE==================,S-015521,1,500,ADVERTISING,17/07/2014,500
090714C,GROUND CONTROL UMITED,SIN037436,1,13.34,GROUNDS MAINTENANCE,17/07/2014,996.1
090714C,GROUND CONTROL UMITED,SIN037436,2,13.34,GROUNDS MAINTENANCE,17/07/2014,
090714C,GROUND CONTROL UMITED,SIN037436,3,13.34,GROUNDS MAINTENANCE,17/07/2014,
090714C,GROUND CONTROL UMITED,SIN037436,4,42.7,GROUNDS MAINTENANCE,17/07/2014,
090714C,GROUND CONTROL UMITED,SIN037436,5,42.7,GROUNDS MAINTENANCE,17/07/2014,
090714C,GROUND CONTROL UMITED,SIN037436,6,13.34,GROUNDS MAINTENANCE,17/07/2014,
090714C,GROUND CONTROL UMITED,SIN037436,7,13.34,GROUNDS MAINTENANCE,17/07/2014,
090714C,GROUND CONTROL UMITED,SIN037436,8,55.32,GROUNDS MAINTENANCE,17/07/2014,
090714C,GROUND CONTROL UMITED,SIN037436,9,13.34,GROUNDS MAINTENANCE,17/07/2014,
090714C,GROUND CONTROL UMITED,SIN037436,10,13.34,GROUNDS MAINTENANCE,17/07/2014,
090714C,GROUND CONTROL UMITED,SIN037436,11,62,GROUNDS MAINTENANCE,17/07/2014,
090714C,GROUND CONTROL UMITED,SIN037436,12,46.43,GROUNDS MAINTENANCE,17/07/2014,
090714C,GROUND CONTROL UMITED,SIN037436,13,50.44,GROUNDS MAINTENANCE,17/07/2014,
090714C,GROUND CONTROL UMITED,SIN037436,14,13.34,GROUNDS MAINTENANCE,17/07/2014,
090714C,GROUND CONTROL UMITED,SIN037436,15,13.34,GROUNDS MAINTENANCE,17/07/2014,
090714C,GROUND CONTROL UMITED,SIN037436,16,13.34,GROUNDS MAINTENANCE,17/07/2014,
090714C,GROUND CONTROL UMITED,SIN037436,17,50.44,GROUNDS MAINTENANCE,17/07/2014,
090714C,GROUND CONTROL UMITED,SIN037436,18,15.9,GROUNDS MAINTENANCE,17/07/2014,
090714C,GROUND CONTROL UMITED,SIN037436,19,13.34,GROUNDS MAINTENANCE,17/07/2014,
090714C,GROUND CONTROL UMITED,SIN037436,20,51.77,GROUNDS MAINTENANCE,17/07/2014,
090714C,GROUND CONTROL UMITED,SIN037436,21,13.34,GROUNDS MAINTENANCE,17/07/2014,
090714C,GROUND CONTROL UMITED,SIN037436,22,13.34,GROUNDS MAINTENANCE,17/07/2014,
090714C,GROUND CONTROL UMITED,SIN037436,23,13.34,GROUNDS MAINTENANCE,17/07/2014,
090714C,GROUND CONTROL UMITED,SIN037436,24,50.44,GROUNDS MAINTENANCE,17/07/2014,
090714C,GROUND CONTROL UMITED,SIN037436,25,46.43,GROUNDS MAINTENANCE,17/07/2014,
090714C,GROUND CONTROL UMITED,SIN037436,26,13.34,GROUNDS MAINTENANCE,17/07/2014,
090714C,GROUND CONTROL UMITED,SIN037436,27,46.43,GROUNDS MAINTENANCE,17/07/2014,
090714C,GROUND CONTROL UMITED,SIN037436,28,15.9,GROUNDS MAINTENANCE,17/07/2014,
090714C,GROUND CONTROL UMITED,SIN037436,29,50.44,GROUNDS MAINTENANCE,17/07/2014,
090714C,GROUND CONTROL UMITED,SIN037436,30,50.44,GROUNDS MAINTENANCE,17/07/2014,
090714C,GROUND CONTROL UMITED,SIN037436,31,50.44,GROUNDS MAINTENANCE,17/07/2014,
090714C,GROUND CONTROL UMITED,SIN037436,32,47.59,GROUNDS MAINTENANCE,17/07/2014,
090714C,GROUND CONTROL UMITED,SIN037436,33,13.34,GROUNDS MAINTENANCE,17/07/2014,
090714C,GROUND CONTROL UMITED,SIN037436,34,6.85,GROUNDS MAINTENANCE,17/07/2014,
110714G,BERENDSEN UK LTD,SN1730448,1,"9,137.35",LAUNDRY,17/07/2014,"9,137.35"
100714F,ARVAL UK LTD,VS0001273763,1,360.35,CONTRACT HIRE,17/07/2014,360.35
110714G,DNV CERTIFICATION LTD=========,ZNOGB227 1191374,1,"11,244.50",CONSULTANTS,17/07/2014,"11,244.50"
902431,LONDON PENSIONS FUND AUTHORITY,PENSION JULY 14,2,"333,500.00",PENSION PAST SERVICE COSTS,18/07/2014,"333,500.00"
160714G,WOLF SAFETY LAMP CO LTD=======,23910,1,"3,750.00",GENERAL CONSUMABLES,21/07/2014,"3,750.00"
160714G,HAYS ACCOUNTANCY & FINANCE====,1004477249,1,899,FRS STAFF AGENCY,21/07/2014,899
800040782,AZTEC COMPUTING LTD===========,10450,1,"2,800.00",CONSULTANTS,21/07/2014,"6,300.00"
800040782,AZTEC COMPUTING LTD===========,10450,2,"3,500.00",CONSULTANTS,21/07/2014,
800040783,AZTEC COMPUTING LTD===========,10451,1,"7,000.00",TELECOMMUNICATIONS,21/07/2014,"7,000.00"
800040784,AZTEC COMPUTING LTD===========,10452,1,"2,100.00",MAINTENANCE & SUPPORT,21/07/2014,"2,100.00"
800040785,AZTEC COMPUTING LTD===========,10453,1,"11,375.00",MAINTENANCE & SUPPORT,21/07/2014,"22,750.00"
800040785,AZTEC COMPUTING LTD===========,10453,2,"11,375.00",MAINTENANCE & SUPPORT,21/07/2014,
140740,MISS REBECCA THOMAS===========,107644B,1,"10,000.00",COUNSELS FEES,21/07/2014,"10,000.00"
160714C,INFOR (UNITED KINGDOM) LIMITED,11405162-GB04G,1,570.67,MAINTENANCE & SUPPORT,21/07/2014,570.67
160714C,INFOR (UNITED KINGDOM) LIMITED,11405164-GB04G,1,"5,920.67",MAINTENANCE & SUPPORT,21/07/2014,"5,920.67"
160714C,INFOR (UNITED KINGDOM) LIMITED,11405176-GB04G,1,"1,070.03",MAINTENANCE & SUPPORT,21/07/2014,"1,997.33"
160714C,INFOR (UNITED KINGDOM) LIMITED,11405176-GB04G,2,927.3,MAINTENANCE & SUPPORT,21/07/2014,
160714G,BRITISH TELECOMMUNICATIONS PLC,151743,1,"2,800.00",TELECOMMUNICATIONS,21/07/2014,"15,220.50"
160714G,BRITISH TELECOMMUNICATIONS PLC,151743,2,"12,420.50",TELECOMMUNICATIONS,21/07/2014,
080714E,DYSLEXIA ACTION,170329,1,525,LEARNING SUPPORT,21/07/2014,525
030714C,B NOKES CONTRACTS LTD,2284,1,"1,452.50",TACTICAL DAY TO DAY,21/07/2014,"1,452.50"
160714G,AUTOGLASS LIMITED=============,23675503,1,884.35,WINDSCREEN & TYRE CHARGES,21/07/2014,884.35
160714C,ARKAS LIMITED=================,25555,1,"8,520.00",STRATEGIC (NON CYCLICAL),21/07/2014,"8,520.00"
160714C,ARKAS LIMITED=================,25556,1,"4,920.00",STRATEGIC (NON CYCLICAL),21/07/2014,"4,920.00"
800040530,ADECCO UK LIMITED=============,26839597,1,611.8,FRS STAFF AGENCY,21/07/2014,611.8
800040732,ADECCO UK LIMITED=============,26846647,1,745.18,FRS STAFF AGENCY,21/07/2014,745.18
800040733,ADECCO UK LIMITED=============,26846648,1,963.6,FRS STAFF AGENCY,21/07/2014,963.6
800040734,ADECCO UK LIMITED=============,26846649,1,351.68,FRS STAFF AGENCY,21/07/2014,351.68
800040735,ADECCO UK LIMITED=============,26846650,1,"1,071.25",FRS STAFF AGENCY,21/07/2014,"1,071.25"
800040737,ADECCO UK LIMITED=============,26846652,1,489.72,FRS STAFF AGENCY,21/07/2014,489.72
800040738,ADECCO UK LIMITED=============,26846653,1,489.72,FRS STAFF AGENCY,21/07/2014,489.72
800040739,ADECCO UK LIMITED=============,26846654,1,635.17,FRS STAFF AGENCY,21/07/2014,635.17
800040740,ADECCO UK LIMITED=============,26846655,1,"1,782.72",FRS STAFF AGENCY,21/07/2014,"1,782.72"
800040741,ADECCO UK LIMITED=============,26846656,1,489.72,FRS STAFF AGENCY,21/07/2014,489.72
800040742,ADECCO UK LIMITED=============,26846657,1,367.08,FRS STAFF AGENCY,21/07/2014,367.08
800040743,ADECCO UK LIMITED=============,26846658,1,"1,076.80",FRS STAFF AGENCY,21/07/2014,"1,076.80"
800040744,ADECCO UK LIMITED=============,26846659,1,489.72,FRS STAFF AGENCY,21/07/2014,489.72
800040745,ADECCO UK LIMITED=============,26846660,1,966.84,FRS STAFF AGENCY,21/07/2014,966.84
800040746,ADECCO UK LIMITED=============,26846661,1,"1,686.30",FRS STAFF AGENCY,21/07/2014,"1,686.30"
800040747,ADECCO UK LIMITED=============,26846662,1,585.92,FRS STAFF AGENCY,21/07/2014,585.92
800040750,ADECCO UK LIMITED=============,26846665,1,351.68,FRS STAFF AGENCY,21/07/2014,351.68
800040751,ADECCO UK LIMITED=============,26846666,1,439.6,FRS STAFF AGENCY,21/07/2014,439.6
800040752,ADECCO UK LIMITED=============,26846667,1,612.15,FRS STAFF AGENCY,21/07/2014,612.15
800040753,ADECCO UK LIMITED=============,26846668,1,879.9,FRS STAFF AGENCY,21/07/2014,879.9
800040755,ADECCO UK LIMITED=============,26846670,1,439.6,FRS STAFF AGENCY,21/07/2014,439.6
800040756,ADECCO UK LIMITED=============,26846671,1,269.45,FRS STAFF AGENCY,21/07/2014,269.45
800040757,ADECCO UK LIMITED=============,26846672,1,439.6,FRS STAFF AGENCY,21/07/2014,439.6
800040758,ADECCO UK LIMITED=============,26846673,1,879.9,FRS STAFF AGENCY,21/07/2014,879.9
800040759,ADECCO UK LIMITED=============,26846674,1,980.9,FRS STAFF AGENCY,21/07/2014,980.9
800040773,ADECCO UK LIMITED=============,26850263,1,"1,241.25",FRS STAFF AGENCY,21/07/2014,"1,241.25"
800040774,ADECCO UK LIMITED=============,26850264,1,496.5,FRS STAFF AGENCY,21/07/2014,496.5
800040775,ADECCO UK LIMITED=============,26850265,1,"1,241.25",FRS STAFF AGENCY,21/07/2014,"1,241.25"
800040776,ADECCO UK LIMITED=============,26850266,1,496.5,FRS STAFF AGENCY,21/07/2014,496.5
800040777,ADECCO UK LIMITED=============,26850267,1,"1,212.00",FRS STAFF AGENCY,21/07/2014,"1,212.00"
800040778,ADECCO UK LIMITED=============,26850268,1,"2,867.35",PROF FEES-SOFTWARE CONSULTANTS,21/07/2014,"2,867.35"
800040779,ADECCO UK LIMITED=============,26850269,1,"2,867.35",PROF FEES-SOFTWARE CONSULTANTS,21/07/2014,"2,867.35"
800040781,ADECCO UK LIMITED=============,26850271,1,840.24,FRS STAFF AGENCY,21/07/2014,840.24
800040763,ADECCO UK LIMITED=============,26850272,1,902.48,FRS STAFF AGENCY,21/07/2014,902.48
800040764,ADECCO UK LIMITED=============,26850273,1,"1,415.96",FRS STAFF AGENCY,21/07/2014,"1,415.96"
800040762,ADECCO UK LIMITED=============,26850274,1,"1,292.20",FRS STAFF AGENCY,21/07/2014,"1,292.20"
800040765,ADECCO UK LIMITED=============,26850275,1,"1,292.20",FRS STAFF AGENCY,21/07/2014,"1,292.20"
800040766,ADECCO UK LIMITED=============,26850276,1,"1,292.20",FRS STAFF AGENCY,21/07/2014,"1,292.20"
800040767,ADECCO UK LIMITED=============,26850277,1,"1,033.76",FRS STAFF AGENCY,21/07/2014,"1,033.76"
800040768,ADECCO UK LIMITED=============,26850278,1,775.32,FRS STAFF AGENCY,21/07/2014,775.32
800040769,ADECCO UK LIMITED=============,26850279,1,"1,292.20",FRS STAFF AGENCY,21/07/2014,"1,292.20"
800040770,ADECCO UK LIMITED=============,26850280,1,"1,033.76",FRS STAFF AGENCY,21/07/2014,"1,033.76"
150714C,STORM TECHNOLOGIES============,279877,1,246.98,ACQUISITIONS,21/07/2014,402.22
150714C,STORM TECHNOLOGIES============,279877,2,155.24,ACQUISITIONS,21/07/2014,
160714G,MCGRATH BROS (WASTE CONTROL) L,330382,1,266.48,REFUSE COLLECTION,21/07/2014,"16,658.89"
160714G,MCGRATH BROS (WASTE CONTROL) L,330382,2,111.36,REFUSE COLLECTION,21/07/2014,
160714G,MCGRATH BROS (WASTE CONTROL) L,330382,3,207.84,REFUSE COLLECTION,21/07/2014,
160714G,MCGRATH BROS (WASTE CONTROL) L,330382,4,90.08,REFUSE COLLECTION,21/07/2014,
160714G,MCGRATH BROS (WASTE CONTROL) L,330382,5,111.36,REFUSE COLLECTION,21/07/2014,
160714G,MCGRATH BROS (WASTE CONTROL) L,330382,6,82.04,REFUSE COLLECTION,21/07/2014,
160714G,MCGRATH BROS (WASTE CONTROL) L,330382,7,29.32,REFUSE COLLECTION,21/07/2014,
160714G,MCGRATH BROS (WASTE CONTROL) L,330382,8,163.32,REFUSE COLLECTION,21/07/2014,
160714G,MCGRATH BROS (WASTE CONTROL) L,330382,9,111.36,REFUSE COLLECTION,21/07/2014,
160714G,MCGRATH BROS (WASTE CONTROL) L,330382,10,82.04,REFUSE COLLECTION,21/07/2014,
160714G,MCGRATH BROS (WASTE CONTROL) L,330382,11,36.65,REFUSE COLLECTION,21/07/2014,
160714G,MCGRATH BROS (WASTE CONTROL) L,330382,12,114.2,REFUSE COLLECTION,21/07/2014,
160714G,MCGRATH BROS (WASTE CONTROL) L,330382,13,163.32,REFUSE COLLECTION,21/07/2014,
160714G,MCGRATH BROS (WASTE CONTROL) L,330382,14,286.28,REFUSE COLLECTION,21/07/2014,
160714G,MCGRATH BROS (WASTE CONTROL) L,330382,15,111.36,REFUSE COLLECTION,21/07/2014,
160714G,MCGRATH BROS (WASTE CONTROL) L,330382,16,302.36,REFUSE COLLECTION,21/07/2014,
160714G,MCGRATH BROS (WASTE CONTROL) L,330382,17,82.04,REFUSE COLLECTION,21/07/2014,
160714G,MCGRATH BROS (WASTE CONTROL) L,330382,18,266.48,REFUSE COLLECTION,21/07/2014,
160714G,MCGRATH BROS (WASTE CONTROL) L,330382,19,29.32,REFUSE COLLECTION,21/07/2014,
160714G,MCGRATH BROS (WASTE CONTROL) L,330382,20,330.8,REFUSE COLLECTION,21/07/2014,
160714G,MCGRATH BROS (WASTE CONTROL) L,330382,21,143.52,REFUSE COLLECTION,21/07/2014,
160714G,MCGRATH BROS (WASTE CONTROL) L,330382,22,82.04,REFUSE COLLECTION,21/07/2014,
160714G,MCGRATH BROS (WASTE CONTROL) L,330382,23,82.04,REFUSE COLLECTION,21/07/2014,
160714G,MCGRATH BROS (WASTE CONTROL) L,330382,24,82.04,REFUSE COLLECTION,21/07/2014,
160714G,MCGRATH BROS (WASTE CONTROL) L,330382,25,29.32,REFUSE COLLECTION,21/07/2014,
160714G,MCGRATH BROS (WASTE CONTROL) L,330382,26,131.16,REFUSE COLLECTION,21/07/2014,
160714G,MCGRATH BROS (WASTE CONTROL) L,330382,27,82.04,REFUSE COLLECTION,21/07/2014,
160714G,MCGRATH BROS (WASTE CONTROL) L,330382,28,286.28,REFUSE COLLECTION,21/07/2014,
160714G,MCGRATH BROS (WASTE CONTROL) L,330382,29,238.04,REFUSE COLLECTION,21/07/2014,
160714G,MCGRATH BROS (WASTE CONTROL) L,330382,30,82.04,REFUSE COLLECTION,21/07/2014,
160714G,MCGRATH BROS (WASTE CONTROL) L,330382,31,119.4,REFUSE COLLECTION,21/07/2014,
160714G,MCGRATH BROS (WASTE CONTROL) L,330382,32,266.48,REFUSE COLLECTION,21/07/2014,
160714G,MCGRATH BROS (WASTE CONTROL) L,330382,33,119.4,REFUSE COLLECTION,21/07/2014,
160714G,MCGRATH BROS (WASTE CONTROL) L,330382,34,111.36,REFUSE COLLECTION,21/07/2014,
160714G,MCGRATH BROS (WASTE CONTROL) L,330382,35,159.6,REFUSE COLLECTION,21/07/2014,
160714G,MCGRATH BROS (WASTE CONTROL) L,330382,36,111.36,REFUSE COLLECTION,21/07/2014,
160714G,MCGRATH BROS (WASTE CONTROL) L,330382,37,143.52,REFUSE COLLECTION,21/07/2014,
160714G,MCGRATH BROS (WASTE CONTROL) L,330382,38,114.2,REFUSE COLLECTION,21/07/2014,
160714G,MCGRATH BROS (WASTE CONTROL) L,330382,39,82.04,REFUSE COLLECTION,21/07/2014,
160714G,MCGRATH BROS (WASTE CONTROL) L,330382,40,202.16,REFUSE COLLECTION,21/07/2014,
160714G,MCGRATH BROS (WASTE CONTROL) L,330382,41,202.16,REFUSE COLLECTION,21/07/2014,
160714G,MCGRATH BROS (WASTE CONTROL) L,330382,42,111.36,REFUSE COLLECTION,21/07/2014,
160714G,MCGRATH BROS (WASTE CONTROL) L,330382,43,82.04,REFUSE COLLECTION,21/07/2014,
160714G,MCGRATH BROS (WASTE CONTROL) L,330382,44,90.08,REFUSE COLLECTION,21/07/2014,
160714G,MCGRATH BROS (WASTE CONTROL) L,330382,45,266.48,REFUSE COLLECTION,21/07/2014,
160714G,MCGRATH BROS (WASTE CONTROL) L,330382,46,202.16,REFUSE COLLECTION,21/07/2014,
160714G,MCGRATH BROS (WASTE CONTROL) L,330382,47,119.4,REFUSE COLLECTION,21/07/2014,
160714G,MCGRATH BROS (WASTE CONTROL) L,330382,48,82.04,REFUSE COLLECTION,21/07/2014,
160714G,MCGRATH BROS (WASTE CONTROL) L,330382,49,82.04,REFUSE COLLECTION,21/07/2014,
160714G,MCGRATH BROS (WASTE CONTROL) L,330382,50,119.4,REFUSE COLLECTION,21/07/2014,
160714G,MCGRATH BROS (WASTE CONTROL) L,330382,51,266.48,REFUSE COLLECTION,21/07/2014,
160714G,MCGRATH BROS (WASTE CONTROL) L,330382,52,90.08,REFUSE COLLECTION,21/07/2014,
160714G,MCGRATH BROS (WASTE CONTROL) L,330382,53,82.04,REFUSE COLLECTION,21/07/2014,
160714G,MCGRATH BROS (WASTE CONTROL) L,330382,54,139.2,REFUSE COLLECTION,21/07/2014,
160714G,MCGRATH BROS (WASTE CONTROL) L,330382,55,29.32,REFUSE COLLECTION,21/07/2014,
160714G,MCGRATH BROS (WASTE CONTROL) L,330382,56,114.2,REFUSE COLLECTION,21/07/2014,
160714G,MCGRATH BROS (WASTE CONTROL) L,330382,57,29.32,REFUSE COLLECTION,21/07/2014,
160714G,MCGRATH BROS (WASTE CONTROL) L,330382,58,143.52,REFUSE COLLECTION,21/07/2014,
160714G,MCGRATH BROS (WASTE CONTROL) L,330382,59,69.57,REFUSE COLLECTION,21/07/2014,
160714G,MCGRATH BROS (WASTE CONTROL) L,330382,60,230.6,REFUSE COLLECTION,21/07/2014,
160714G,MCGRATH BROS (WASTE CONTROL) L,330382,61,111.36,REFUSE COLLECTION,21/07/2014,
160714G,MCGRATH BROS (WASTE CONTROL) L,330382,62,111.36,REFUSE COLLECTION,21/07/2014,
160714G,MCGRATH BROS (WASTE CONTROL) L,330382,63,90.08,REFUSE COLLECTION,21/07/2014,
160714G,MCGRATH BROS (WASTE CONTROL) L,330382,64,302.36,REFUSE COLLECTION,21/07/2014,
160714G,MCGRATH BROS (WASTE CONTROL) L,330382,65,82.04,REFUSE COLLECTION,21/07/2014,
160714G,MCGRATH BROS (WASTE CONTROL) L,330382,66,230.6,REFUSE COLLECTION,21/07/2014,
160714G,MCGRATH BROS (WASTE CONTROL) L,330382,67,82.04,REFUSE COLLECTION,21/07/2014,
160714G,MCGRATH BROS (WASTE CONTROL) L,330382,68,103.32,REFUSE COLLECTION,21/07/2014,
160714G,MCGRATH BROS (WASTE CONTROL) L,330382,69,111.36,REFUSE COLLECTION,21/07/2014,
160714G,MCGRATH BROS (WASTE CONTROL) L,330382,70,111.36,REFUSE COLLECTION,21/07/2014,
160714G,MCGRATH BROS (WASTE CONTROL) L,330382,71,82.04,REFUSE COLLECTION,21/07/2014,
160714G,MCGRATH BROS (WASTE CONTROL) L,330382,72,328.06,REFUSE COLLECTION,21/07/2014,
160714G,MCGRATH BROS (WASTE CONTROL) L,330382,73,90.08,REFUSE COLLECTION,21/07/2014,
160714G,MCGRATH BROS (WASTE CONTROL) L,330382,74,111.36,REFUSE COLLECTION,21/07/2014,
160714G,MCGRATH BROS (WASTE CONTROL) L,330382,75,111.36,REFUSE COLLECTION,21/07/2014,
160714G,MCGRATH BROS (WASTE CONTROL) L,330382,76,114.2,REFUSE COLLECTION,21/07/2014,
160714G,MCGRATH BROS (WASTE CONTROL) L,330382,77,82.04,REFUSE COLLECTION,21/07/2014,
160714G,MCGRATH BROS (WASTE CONTROL) L,330382,78,82.04,REFUSE COLLECTION,21/07/2014,
160714G,MCGRATH BROS (WASTE CONTROL) L,330382,79,82.04,REFUSE COLLECTION,21/07/2014,
160714G,MCGRATH BROS (WASTE CONTROL) L,330382,80,82.04,REFUSE COLLECTION,21/07/2014,
160714G,MCGRATH BROS (WASTE CONTROL) L,330382,81,266.48,REFUSE COLLECTION,21/07/2014,
160714G,MCGRATH BROS (WASTE CONTROL) L,330382,82,286.28,REFUSE COLLECTION,21/07/2014,
160714G,MCGRATH BROS (WASTE CONTROL) L,330382,83,111.36,REFUSE COLLECTION,21/07/2014,
160714G,MCGRATH BROS (WASTE CONTROL) L,330382,84,29.32,REFUSE COLLECTION,21/07/2014,
160714G,MCGRATH BROS (WASTE CONTROL) L,330382,85,114.2,REFUSE COLLECTION,21/07/2014,
160714G,MCGRATH BROS (WASTE CONTROL) L,330382,86,111.36,REFUSE COLLECTION,21/07/2014,
160714G,MCGRATH BROS (WASTE CONTROL) L,330382,87,90.08,REFUSE COLLECTION,21/07/2014,
160714G,MCGRATH BROS (WASTE CONTROL) L,330382,88,536.03,REFUSE COLLECTION,21/07/2014,
160714G,MCGRATH BROS (WASTE CONTROL) L,330382,89,82.04,REFUSE COLLECTION,21/07/2014,
160714G,MCGRATH BROS (WASTE CONTROL) L,330382,90,90.08,REFUSE COLLECTION,21/07/2014,
160714G,MCGRATH BROS (WASTE CONTROL) L,330382,91,286.28,REFUSE COLLECTION,21/07/2014,
160714G,MCGRATH BROS (WASTE CONTROL) L,330382,92,82.04,REFUSE COLLECTION,21/07/2014,
160714G,MCGRATH BROS (WASTE CONTROL) L,330382,93,111.36,REFUSE COLLECTION,21/07/2014,
160714G,MCGRATH BROS (WASTE CONTROL) L,330382,94,111.36,REFUSE COLLECTION,21/07/2014,
160714G,MCGRATH BROS (WASTE CONTROL) L,330382,95,302.36,REFUSE COLLECTION,21/07/2014,
160714G,MCGRATH BROS (WASTE CONTROL) L,330382,96,111.36,REFUSE COLLECTION,21/07/2014,
160714G,MCGRATH BROS (WASTE CONTROL) L,330382,97,"1,629.81",REFUSE COLLECTION,21/07/2014,
160714G,MCGRATH BROS (WASTE CONTROL) L,330382,98,82.04,REFUSE COLLECTION,21/07/2014,
160714G,MCGRATH BROS (WASTE CONTROL) L,330382,99,111.36,REFUSE COLLECTION,21/07/2014,
160714G,MCGRATH BROS (WASTE CONTROL) L,330382,100,111.36,REFUSE COLLECTION,21/07/2014,
160714G,MCGRATH BROS (WASTE CONTROL) L,330382,101,303.12,REFUSE COLLECTION,21/07/2014,
160714G,MCGRATH BROS (WASTE CONTROL) L,330382,102,82.04,REFUSE COLLECTION,21/07/2014,
160714G,MCGRATH BROS (WASTE CONTROL) L,330382,103,130.28,REFUSE COLLECTION,21/07/2014,
160714G,MCGRATH BROS (WASTE CONTROL) L,330382,104,131.16,REFUSE COLLECTION,21/07/2014,
160714G,MCGRATH BROS (WASTE CONTROL) L,330382,105,36.65,REFUSE COLLECTION,21/07/2014,
160714G,MCGRATH BROS (WASTE CONTROL) L,330382,106,111.36,REFUSE COLLECTION,21/07/2014,
160714G,MCGRATH BROS (WASTE CONTROL) L,330382,107,119.4,REFUSE COLLECTION,21/07/2014,
160714G,MCGRATH BROS (WASTE CONTROL) L,330382,108,114.2,REFUSE COLLECTION,21/07/2014,
160714G,MCGRATH BROS (WASTE CONTROL) L,330382,109,82.04,REFUSE COLLECTION,21/07/2014,
160714G,MCGRATH BROS (WASTE CONTROL) L,330382,110,82.04,REFUSE COLLECTION,21/07/2014,
160714G,MCGRATH BROS (WASTE CONTROL) L,330382,111,29.32,REFUSE COLLECTION,21/07/2014,
160714G,MCGRATH BROS (WASTE CONTROL) L,330382,112,82.04,REFUSE COLLECTION,21/07/2014,
160714G,HUNTERS CONTRACTS LIMITED,346615,1,408.2,OFFICE FURNITURE,21/07/2014,443.56
160714G,HUNTERS CONTRACTS LIMITED,346615,2,35.36,OFFICE FURNITURE,21/07/2014,
140714G,ELECTROBASE R P,39617,1,749,GENERAL CONSUMABLES,21/07/2014,749
070714C,WILLIAM SUGDEN & SONS LTD=====,44590,1,785,UNIFORMS - POMS,21/07/2014,785
070714C,WILLIAM SUGDEN & SONS LTD=====,44607,1,"1,570.00",UNIFORMS - POMS,21/07/2014,"1,962.50"
070714C,WILLIAM SUGDEN & SONS LTD=====,44607,2,392.5,UNIFORMS - POMS,21/07/2014,
160714C,URS SCOTT WILSON LIMITED,5934878,1,"1,289.82",PROF FEES-MISCELLANEOUS,21/07/2014,"1,289.82"
030714F,TOYOTA MATERIAL HANDLING UK LT,610125300,1,909.99,PURCHASE,21/07/2014,909.99
070714C,SWEETT  UK LTD,7039910,1,479.33,PROF FEES-MISCELLANEOUS,21/07/2014,479.33
160714C,*SP SERVICES,739632,1,265.9,OPERATIONAL EQUIP-PURCHASE,21/07/2014,310.89
160714C,*SP SERVICES,739632,2,44.99,OPERATIONAL EQUIP-PURCHASE,21/07/2014,
160714C,DRAEGER SAFETY UK LIMITED=====,90433526/90451833,1,"1,844.05",PROTECTIVE EQUIPT - PARTS,21/07/2014,"1,844.05"
080714C,DRAEGER SAFETY UK LIMITED=====,90450724,1,354,PROTECTIVE EQUIPT - PARTS,21/07/2014,354
080714C,DRAEGER SAFETY UK LIMITED=====,90450773,1,111.1,PROTECTIVE EQUIPT - PARTS,21/07/2014,"2,225.80"
080714C,DRAEGER SAFETY UK LIMITED=====,90450773,2,425.55,PROTECTIVE EQUIPT - PARTS,21/07/2014,
080714C,DRAEGER SAFETY UK LIMITED=====,90450773,3,"1,423.25",PROTECTIVE EQUIPT - PARTS,21/07/2014,
080714C,DRAEGER SAFETY UK LIMITED=====,90450773,4,213.9,PROTECTIVE EQUIPT - PARTS,21/07/2014,
080714C,DRAEGER SAFETY UK LIMITED=====,90450773,5,52,PROTECTIVE EQUIPT - PARTS,21/07/2014,
160714G,NORTHGATE INFO SOLUTIONS UK LT,91310610,1,"13,462.78",MAINTENANCE & SUPPORT,21/07/2014,"13,462.78"
080714C,NISBETS=======================,9902465,1,529.99,CATERING EQUIPMENT,21/07/2014,529.99
140714F,ASTEC SURVEYS LIMITED=========,ASL-14-176,1,175,ASBESTOS,21/07/2014,525
140714F,ASTEC SURVEYS LIMITED=========,ASL-14-176,2,175,ASBESTOS,21/07/2014,
140714F,ASTEC SURVEYS LIMITED=========,ASL-14-176,3,175,ASBESTOS,21/07/2014,
090714C,HALL FUELS,I06908713,1,"3,771.60",FUEL,21/07/2014,"3,771.60"
160714C,COFELY WORKPLACE LIMITED,M129698,1,258.85,STRATEGIC (NON CYCLICAL),21/07/2014,258.85
160714C,COFELY WORKPLACE LIMITED,M129699,1,303.83,STRATEGIC (NON CYCLICAL),21/07/2014,303.83
150714C,COFELY WORKPLACE LIMITED,M129700,1,643.85,STRATEGIC (NON CYCLICAL),21/07/2014,643.85
160714C,COFELY WORKPLACE LIMITED,M129701,1,643.85,STRATEGIC (NON CYCLICAL),21/07/2014,643.85
160714C,COFELY WORKPLACE LIMITED,M129702,1,313.85,STRATEGIC (NON CYCLICAL),21/07/2014,313.85
160714C,COFELY WORKPLACE LIMITED,M129703,1,258.85,STRATEGIC (NON CYCLICAL),21/07/2014,258.85
160714C,COFELY WORKPLACE LIMITED,M129704,1,258.85,STRATEGIC (NON CYCLICAL),21/07/2014,258.85
160714C,COFELY WORKPLACE LIMITED,M129705,1,643.85,STRATEGIC (NON CYCLICAL),21/07/2014,643.85
160714C,COFELY WORKPLACE LIMITED,M129752,1,313.85,STRATEGIC (NON CYCLICAL),21/07/2014,313.85
160714C,COFELY WORKPLACE LIMITED,M129757,1,258.85,STRATEGIC (NON CYCLICAL),21/07/2014,258.85
160714C,COFELY WORKPLACE LIMITED,M129772,1,"1,541.88",STRATEGIC (NON CYCLICAL),21/07/2014,"1,541.88"
160714C,CANNON'S MSA LTD,NV1075004,1,447.5,GENERAL CONSUMABLES,21/07/2014,447.5
160714G,SECURITAS SECURITY SERVICES LT,S-SIN0248460,1,"304,202.14",GENERAL,21/07/2014,"304,202.14"
160714G,BLACK AND WHITE TRADING LTD,SYM316,1,699,PROFESSIONAL DEVELOPMENT,21/07/2014,"1,398.00"
160714G,BLACK AND WHITE TRADING LTD,SYM316,2,699,PROFESSIONAL DEVELOPMENT,21/07/2014,
800040396,*XMA LTD,V740170,1,67.4,STATIONERY CONSUMABLES,21/07/2014,257.48
800040396,*XMA LTD,V740170,2,134.8,STATIONERY CONSUMABLES,21/07/2014,
800040396,*XMA LTD,V740170,3,55.28,STATIONERY CONSUMABLES,21/07/2014,
160714G,BRITISH TELECOM===============,VP71178070M20401GH,1,"3,220.86",CALL CHARGES,21/07/2014,"85,488.24"
160714G,BRITISH TELECOM===============,VP71178070M20401GH,2,"82,267.38",TELECOMMUNICATIONS,21/07/2014,
140714G,VODAFONE PAGING LTD===========,VR1394102,1,"4,686.09",CELLULAR TELEPHONES,21/07/2014,"4,686.09"
160714G,SPEAKERS TRUST,WEB/003982,1,257.5,GENERAL,21/07/2014,257.5
160714G,SPEAKERS TRUST,WEB/003983,1,"1,545.00",GENERAL,21/07/2014,"1,545.00"
